{"text_format":"1","workbook":"xlsx","n_sheets":8,"sheets":["Cover Sheet","Scoresheet","Named Ranges","Sheet2","Sheet1","TOC Data","Dropdown Lists","Cover Sheet Links"],"not_rendered":{"charts":0,"images":0,"macros":1,"external_links":0,"defined_names":374,"comments":1,"pivot_tables":0},"unopened":[],"bounds":{"document_bytes":16777216,"sheet_cells":100000,"rows_first":2000,"rows_last":500,"rows_between":2000,"halvings":0,"cell_chars":16384,"cell_head_chars":4096},"cells_cut":0,"cells_raw":0,"read":"whole","date_system":"1900"}

{"sheet":"Cover Sheet","index":0,"n_rows":34,"n_cols":5,"rows_kept":34,"cut":false,"hidden":false,"merged":[[1,0,2,3],[10,1,10,9],[12,2,12,9],[16,2,16,9],[7,0,7,15],[6,0,6,15],[14,2,14,9]]}
[]
[null,null,null,null,"Multifamily 2020 Housing Tax Credit Self-Scoring Worksheets"]
[null,null,null,null,"and 2020 Available Financing Proposals' Deferred Loan Priority Checklist"]
[]
["2019 11 20 ver 1"]
[]
["INSTRUCTIONS"]
["When you indicate the type of funding you are applying for, the applicable Housing Tax Credit Self-scoring Worksheet or Deferred Loan Priority Checklist will open. If you go back to the Cover Sheet and change your selection, the sheet will update to reflect the Cover Sheet selection’s criteria. Minnesota Housing will only review the submitted information based on the selection made on the Cover Sheet.\n\nIf you are submitting an application in the 2020 HTC 4% Only Round, select the '4% Housing Tax Credits Only Request' proposal type.  If you are submitting an application in the 2020 Available Financing Round, select either the '4% Housing Tax Credits and a Deferred Loan Request' or 'Deferred Loan Only Request' proposal type.\n\nNOTE: Unchecking your proposal type selection after beginnning to enter data in the scoresheet will clear all information that has been entered.\n\n"]
[]
[]
[null,"Indicate the type of funding you are applying for:"]
[]
[null,null,"4% Housing Tax Credits Only Request"]
[]
[null,null,"4% Housing Tax Credits and a Deferred Loan Request"]
[]
[null,null,"Deferred Loan Only Request"]
[]
[]
[]
["The Self-Scoring Worksheet and Deferred Loan Priority Checklist are color coded to assist applicants in filling out the proper information."]
[]
[null,null,"Light blue cells can be filled out by the applicant."]
[]
[null,null,"Grey cells cannot be edited. An error message will appear if you try to click on or enter data in grey cells."]
[]
[null,null,"Cells may turn grey if:"]
[null,null,"- You filled in another cell that is mutually exclusive of this cell, or"]
[null,null,"- You have not completed the necessary associated information in a previous cell. "]
[]
[null,null,"If you need to edit a grey cell, you may need to delete or edit data in a previous cell(s) before it becomes editable and turns blue. "]
[null,null,"See the help text to identify which cells contain these dependencies."]
[]
[null,null,"Monitor resolution may vary. If a cell appears to have text that isn’t visible, try adjusting your zoom or select the cell to see the contents in the formula bar."]

{"sheet":"Scoresheet","index":1,"n_rows":776,"n_cols":18,"rows_kept":776,"cut":false,"hidden":true,"merged":[[229,16,231,19],[4,0,4,13],[26,2,26,15],[29,2,29,15],[34,2,34,15],[15,0,15,13],[622,4,622,13],[624,2,624,13],[662,3,662,13],[557,6,557,13],[541,4,541,13],[543,5,543,13],[544,5,544,13],[545,6,545,13],[550,4,550,13],[555,6,555,13],[546,6,546,13],[548,4,548,13],[466,7,466,13],[461,6,461,13],[463,6,463,13],[464,7,464,13],[465,7,465,13],[479,5,479,13],[663,3,663,13],[573,6,573,13],[565,2,565,13],[82,0,82,15],[83,0,83,15],[117,3,117,15],[119,3,119,15],[84,0,84,15],[608,3,608,13],[448,2,448,13],[605,3,605,13],[607,3,607,13],[597,4,597,13],[600,0,600,13],[595,5,595,13],[480,5,480,13],[249,2,249,13],[251,10,251,11],[244,2,244,13],[442,2,442,13],[510,2,510,11],[536,6,536,13],[537,5,537,13],[556,6,556,13],[0,0,0,13],[1,0,1,13],[2,0,2,13],[3,0,3,13],[5,0,5,13],[619,8,619,13],[613,8,613,13],[618,8,618,13],[596,5,596,13],[535,6,535,13],[525,2,525,13],[559,2,559,13],[561,2,561,13],[593,3,593,13],[428,7,428,13],[564,2,564,13],[457,4,457,13],[567,3,567,13],[388,6,388,13],[507,2,507,13],[495,2,495,13],[474,4,474,13],[477,5,477,13],[526,2,526,13],[460,5,460,13],[775,0,775,13],[413,7,413,13],[136,5,136,12],[146,3,146,13],[134,3,134,13],[141,2,141,13],[517,2,517,13],[519,0,519,13],[521,1,521,13],[392,6,392,13],[395,6,395,12],[396,6,396,13],[393,6,393,13],[398,3,398,13],[400,4,400,13],[310,2,310,13],[313,2,313,13],[326,2,326,13],[328,3,328,13],[601,2,601,13],[488,4,488,13],[471,6,471,13],[476,5,476,13],[261,3,261,13],[259,3,259,13],[317,5,317,13],[271,5,271,12],[275,5,275,12],[257,2,257,13],[268,3,268,13],[356,2,356,13],[447,2,447,13],[315,3,315,13],[279,5,279,11],[307,1,307,13],[347,2,347,13],[311,2,311,13],[309,2,309,12],[338,6,338,12],[301,5,301,12],[284,5,284,12],[299,5,299,12],[281,5,281,12],[364,5,364,13],[263,4,263,13],[603,3,603,13],[497,4,497,13],[500,2,500,13],[481,5,481,13],[462,5,462,13],[469,5,469,13],[467,5,467,13],[468,5,468,13],[470,5,470,13],[473,4,473,13],[478,5,478,13],[475,5,475,13],[527,4,527,13],[529,5,529,13],[523,2,523,13],[530,6,530,13],[531,6,531,13],[532,5,532,13],[533,5,533,13],[534,6,534,13],[514,4,514,13],[512,2,512,13],[494,2,494,13],[501,2,501,13],[687,4,687,13],[693,2,693,13],[697,0,697,13],[688,4,688,13],[680,8,680,13],[297,5,297,12],[252,10,252,11],[303,5,303,12],[286,3,286,13],[344,3,344,10],[345,3,345,13],[289,3,289,13],[367,5,367,13],[277,5,277,12],[365,5,365,13],[342,2,342,13],[254,10,254,11],[321,5,321,13],[323,5,323,13],[264,4,264,13],[265,4,265,13],[266,4,266,13],[305,1,305,13],[295,5,295,12],[773,1,773,13],[743,3,743,13],[747,3,747,13],[766,1,766,13],[767,1,767,13],[728,3,728,13],[729,3,729,13],[730,3,730,13],[736,3,736,13],[737,3,737,13],[731,3,731,13],[740,3,740,13],[732,3,732,13],[770,1,770,13],[771,1,771,13],[745,2,745,13],[748,3,748,13],[752,0,752,8],[762,0,762,13],[733,3,733,13],[769,1,769,13],[764,1,764,13],[765,1,765,13],[741,3,741,13],[711,3,711,13],[712,3,712,13],[713,3,713,13],[714,3,714,13],[768,1,768,13],[723,2,723,13],[724,3,724,13],[725,3,725,13],[726,3,726,13],[727,3,727,13],[734,3,734,13],[735,3,735,13],[738,3,738,13],[739,3,739,13],[742,3,742,13],[750,3,750,13],[720,3,720,13],[721,3,721,13],[718,3,718,13],[715,3,715,13],[716,3,716,13],[483,3,483,13],[485,2,485,13],[487,4,487,13],[490,2,490,13],[492,2,492,13],[681,8,681,13],[654,8,654,13],[631,4,631,13],[641,2,641,13],[553,5,553,13],[554,6,554,13],[515,4,515,13],[552,5,552,13],[503,2,503,13],[498,4,498,13],[509,2,509,13],[505,4,505,13],[617,8,617,13],[664,3,664,13],[598,5,598,13],[634,3,634,13],[520,1,520,13],[652,8,652,13],[632,3,632,13],[614,8,614,13],[615,8,615,13],[616,8,616,13],[621,4,621,13],[627,3,627,13],[625,2,625,13],[626,2,626,13],[674,3,674,13],[719,3,719,13],[706,5,706,13],[717,3,717,13],[629,4,629,13],[630,4,630,13],[651,8,651,13],[661,3,661,13],[635,3,635,13],[636,3,636,13],[637,3,637,13],[639,3,639,13],[646,3,646,13],[633,3,633,13],[656,8,656,13],[638,3,638,13],[655,8,655,13],[612,8,612,13],[660,3,660,13],[710,2,710,13],[704,5,704,13],[689,4,689,13],[691,2,691,13],[682,8,682,13],[645,3,645,13],[658,2,658,13],[659,3,659,13],[700,3,700,13],[702,3,702,13],[678,8,678,13],[679,8,679,13],[698,2,698,13],[692,2,692,13],[695,2,695,10],[686,4,686,13],[665,3,665,13],[666,3,666,13],[668,2,668,13],[672,3,672,13],[653,8,653,13],[628,4,628,13],[185,16,185,17],[131,0,131,13],[186,2,186,12],[159,4,159,13],[167,3,167,13],[175,5,175,13],[176,5,176,13],[171,4,171,13],[181,2,181,13],[156,3,156,13],[169,3,169,13],[172,4,172,13],[173,5,173,13],[174,4,174,13],[68,2,68,15],[73,2,73,13],[70,2,70,13],[168,3,168,13],[170,3,170,13],[144,2,144,13],[143,2,143,13],[163,2,163,13],[165,2,165,13],[128,3,128,13],[126,3,126,13],[127,3,127,13],[120,3,120,13],[114,3,114,13],[115,3,115,13],[116,3,116,13],[104,3,104,13],[105,3,105,13],[106,3,106,13],[125,3,125,15],[107,3,107,15],[109,3,109,15],[110,3,110,15],[111,3,111,15],[45,2,45,15],[48,2,48,15],[50,2,50,15],[53,2,53,15],[56,2,56,15],[59,2,59,15],[62,2,62,15],[65,2,65,15],[13,2,13,15],[37,2,37,15],[40,2,40,15],[43,2,43,15],[32,2,32,15],[18,2,18,15],[21,2,21,15],[23,2,23,15],[7,2,7,7],[7,8,7,11],[8,2,8,7],[8,8,8,9],[9,2,9,7],[9,8,9,9],[10,2,10,7],[10,8,10,11],[11,2,11,7],[11,8,11,11],[121,3,121,13],[200,3,200,13],[211,3,211,13],[212,3,212,13],[188,3,188,11],[221,5,221,13],[199,3,199,13],[178,4,178,13],[218,5,218,13],[177,5,177,13],[216,4,216,13],[230,2,230,13],[232,3,232,13],[222,5,222,13],[213,4,213,13],[253,10,253,11],[180,2,180,13],[206,2,206,13],[182,3,182,13],[183,3,183,13],[196,2,196,13],[219,5,219,13],[220,5,220,13],[198,3,198,13],[224,5,224,13],[225,4,225,13],[209,3,209,13],[210,3,210,13],[214,4,214,13],[248,2,248,5],[201,3,201,13],[215,4,215,13],[340,6,340,12],[202,3,202,13],[208,2,208,13],[223,5,223,13],[204,2,204,13],[217,5,217,13],[246,2,246,13],[382,6,382,13],[229,0,229,13],[343,3,343,10],[355,2,355,13],[358,2,358,13],[349,3,349,12],[371,2,371,13],[283,5,283,12],[319,5,319,13],[325,0,325,13],[374,2,374,13],[376,3,376,13],[378,4,378,13],[380,6,380,13],[360,3,360,13],[362,5,362,13],[227,2,227,13],[458,4,458,13],[437,7,437,13],[452,0,452,13],[422,7,422,13],[423,7,423,13],[425,7,425,13],[426,7,426,13],[446,10,446,12],[406,7,406,13],[418,4,418,13],[434,7,434,13],[453,2,453,13],[456,4,456,13],[415,7,415,13],[416,7,416,13],[431,5,431,13],[441,2,441,13],[454,2,454,13],[433,7,433,13],[420,5,420,13],[444,2,444,13],[445,2,445,13],[439,2,439,13],[372,2,372,13],[369,2,369,13],[384,6,384,13],[404,7,404,13],[429,7,429,13],[436,7,436,13],[408,7,408,13],[410,5,410,13],[76,2,76,13],[81,0,81,13],[113,3,113,15],[94,3,94,13],[95,4,95,13],[96,4,96,13],[97,5,97,13],[98,5,98,13],[99,5,99,13],[90,3,90,13],[79,2,79,13],[100,4,100,13],[386,6,386,13],[402,5,402,13],[390,4,390,13],[255,10,255,11]]}
["Multifamily Deferred Only Priority Checklist"]
["2020 Available Financing Proposals"]
["2020 Housing Tax Credit Self-Scoring Worksheet"]
["4% Housing Tax Credits Only"]
["Housing Tax Credit projects submitted in a Competitive funding round*"]
["Updated November 2019"]
[]
[null,null,"Project Name:"]
[null,null,"Property Number (D#):",null,null,null,null,null,null,null,"Include \"D\" in the Property Number"]
[null,null,"Project Number (M#):",null,null,null,null,null,null,null,"Include \"M\" in the Project Number. Only enter one Project Number."]
[null,null,"Primary Address:"]
[null,null,"City:"]
[]
[null,null,"*A Competitive funding round includes the Consolidated Request for Proposal (RFP), HTC Round 2, and available financing through the year including first mortgage products, bonds, and deferred funds in conjunction with 4% credits"]
[]
["Instructions"]
[]
["Strategic Priority Policy Threshold:"]
[null,"A.","All projects, must meet at least one of the Strategic Priority Policy Thresholds defined in Article 9 of the State of Minnesota Housing Tax Credit Qualified Allocation Plan (QAP) in order to apply for Housing Tax Credits (HTC)."]
[]
["Minimum Point Requirements:"]
[null,"A.","Request for tax credits in association with tax exempt volume limited bonds must demonstrate the project is eligible for no fewer than 40 points."]
[]
[null,"B.","Minnesota Housing reserves the right to reject applications not meeting its Project Selection requirements as contained in the HTC Program Procedural Manual, to revise proposal features, and associated scoring, and to ensure the project meets the requirements."]
[]
["Documentation of Points:"]
[null,"A.","Indicate the selection criteria expected for your project. Where multiple points per section are available, please check the appropriate box (□) for points claimed. In addition to the self-scoring worksheet the applicant must submit a separate detail sheet and documentation that clearly supports the points claimed. Minnesota Housing will determine the eligible points; points will not be awarded unless documentation is provided along with the application to justify the points claimed."]
[]
["Documentation of Units:"]
[null,"A.","Indicate the number of units for each selection criteria expected for your project.  When calculating a percentage for a criterion all units must be rounded up to the next full unit.  The number of units indicated will be required and incorporated into the Tax Credit Declaration of Land Use Restrictive Covenants (declaration) and deferred loan documents with the exception of tenant targeting in the Permanent Supportive Housing for High Priority Homeless."]
[]
["Extended Duration:"]
[null,"A.","Request for Minnesota Housing Finance Agency (Minnesota Housing) administered tax credits from the state’s tax credit volume cap must maintain the duration of low-income use for a minimum of 30 years or longer if a longer duration is selected. The owner agrees that the Qualified Contract  provisions of IRC §§ 42(h)(6)(E)(i)(II) and 42(h)(6)(F) (which provision would permit the owner to terminate the restrictions under this agreement at the end of the compliance period in the event Minnesota Housing does not present the owner with a qualified contract for the acquisition of the project) do not apply to the project, and the owner also agrees the Section 42 income and rental restrictions must apply for a period of at least 30 years beginning with the first day of the compliance period in which the building is a part of a qualified low-income housing project. "]
[]
[null,"B.","Request for tax credits in association with tax exempt volume limited bonds must maintain the duration of low-income use for a minimum of 30 years, or longer if a longer duration is selected. The owner agrees that the Qualified Contract provisions of IRC §§ 42(h)(6)(E)(i)(II) and 42(h)(6)(F) (which provision would permit the owner to terminate the restrictions under this agreement at the end of the compliance period in the event Minnesota Housing does not present the owner with a qualified contract for the acquisition of the project) will not apply to the project for a minimum of 20 years beginning with the first day of the compliance period in which the building is a part of a qualified low-income housing project."]
[]
["Design Standards:"]
[null,"A.","The project must meet the requirements in the Minnesota Housing Rental Housing Design/Construction Standards and be evidenced by a Design Standards Certification form executed by the owner and architect. Additional design requirements will be imposed if Large Family Housing points are claimed/awarded or points are claimed/awarded that require specific design elements (e.g. Universal Design). "]
[]
["A Declaration of Land Use Restrictive Covenants:"]
[null,"A.","A Declaration of Land Use Restrictive Covenants covering the rent restrictions and occupancy requirements presented at selection must be recorded against the property."]
[]
["Affirmative Fair Housing:"]
[null,"A.","Affirmative Fair Housing Marketing Regulations, held as centrally important by Minnesota Housing, require that each applicant carry out an affirmative marketing program to attract prospective buyers or tenants of all majority and minority groups in the housing market area regardless of race, creed, color, religion, sex, national origin, marital status, status with regard to public assistance, disability, sexual orientation, or familial status. At the time of 8609, all applicants must submit an Affirmative Fair Housing Marketing Plan documenting an acceptable plan to carry out an affirmative marketing program."]
["Strategic Priority Policy Threshold:"]
[null,"A.","As required by Minn. Stat. § 462A.222, subd. (3)(d) residential rental housing projects financed with an allocation of tax-exempt bonds under chapter 474A are the highest strategic priority, and such development are therefore not required to meet a separate strategic priority threshold. "]
[]
["Minimum Point Requirements:"]
[null,"A.","Request for tax credits in association with tax exempt volume limited bonds must demonstrate the project is eligible for no fewer than 40 points."]
[]
[null,"B.","Minnesota Housing reserves the right to reject applications not meeting its Project Selection requirements as contained in the HTC Program Procedural Manual, to revise proposal features, and associated scoring, and to ensure the project meets the requirements."]
[]
["Documentation of Points:"]
[null,"A.","Indicate the selection criteria expected for your project. Where multiple points per section are available, please check the appropriate box (□) for points claimed. In addition to the self-scoring worksheet the applicant must submit a separate detail sheet and documentation that clearly supports the points claimed. Minnesota Housing will determine the eligible points; points will not be awarded unless documentation is provided along with the application to justify the points claimed."]
[]
["Documentation of Units:"]
[null,"A.","Indicate the number of units for each selection criteria expected for your project.  When calculating a percentage for a criterion all units must be rounded up to the next full unit.  The number of units indicated will be required and incorporated into the Tax Credit Declaration of Land Use Restrictive Covenants (declaration) and deferred loan documents with the exception of tenant targeting in the Permanent Supportive Housing for High Priority Homeless."]
[]
["Extended Duration:"]
[null,"A.","Request for tax credits in association with tax exempt volume limited bonds must maintain the duration of low-income use for a minimum of 30 years, or longer if a longer duration is selected. The owner agrees that the Qualified Contract provisions of IRC §§ 42(h)(6)(E)(i)(II) and 42(h)(6)(F) (which provision would permit the owner to terminate the restrictions under this agreement at the end of the compliance period in the event Minnesota Housing does not present the owner with a qualified contract for the acquisition of the project) will not apply to the project for a minimum of 20 years beginning with the first day of the compliance period in which the building is a part of a qualified low-income housing project."]
[]
["Design Standards:"]
[null,"A.","The project must meet the requirements in the Minnesota Housing Rental Housing Design/Construction Standards and be evidenced by a Design Standards Certification form executed by the owner and architect. Additional design requirements will be imposed if Large Family Housing points are claimed/awarded or points are claimed/awarded that require specific design elements (e.g. Universal Design). "]
[]
["A Declaration of Land Use Restrictive Covenants:"]
[null,"A.","A Declaration of Land Use Restrictive Covenants covering the rent restrictions and occupancy requirements presented at selection must be recorded against the property."]
[]
["Affirmative Fair Housing:"]
[null,"A.","Affirmative Fair Housing Marketing Regulations, held as centrally important by Minnesota Housing, require that each applicant carry out an affirmative marketing program to attract prospective buyers or tenants of all majority and minority groups in the housing market area regardless of race, creed, color, religion, sex, national origin, marital status, status with regard to public assistance, disability, sexual orientation, or familial status. At the time of 8609, all applicants must submit an Affirmative Fair Housing Marketing Plan documenting an acceptable plan to carry out an affirmative marketing program."]
["Strategic Priority Threshold:"]
[null,"A.","All projects, must meet at least one of the Strategic Priority Policy Thresholds in order to qualify for deferred loans."]
[]
["Documentation of Units:"]
[null,"A.","Indicate the number of units for each selection criteria expected for your project.  When calculating a percentage for a criterion all units must be rounded up to the next full unit.  The number of units indicated will be required and incorporated into the deferred loan documents with the exception of tenant targeting in the Permanent Supportive Housing for High Priority Homeless."]
[]
["Design Standards:"]
[null,"A.","The project must meet the requirements in the Minnesota Housing Rental Housing Design/Construction Standards and be evidenced by a Design Standards Certification form executed by the owner and architect. Additional design requirements will be imposed if Large Family Housing is claimed/awarded or other criterion is claimed/awarded that require specific design elements (e.g. Universal Design). "]
[]
["Affirmative Fair Housing:"]
[null,"A.","Affirmative Fair Housing Marketing Regulations, held as centrally important by Minnesota Housing, require that each applicant carry out an affirmative marketing program to attract prospective buyers or tenants of all majority and minority groups in the housing market area regardless of race, creed, color, religion, sex, national origin, marital status, status with regard to public assistance, disability, sexual orientation, or familial status. At the time of loan closing, all applicants must submit an Affirmative Fair Housing Marketing Plan documenting an acceptable plan to carry out an affirmative marketing program."]
[]
["Strategic Priority Thresholds"]
[]
["Applicants using this Self-scoring Worksheet must demonstrate that the project meets at least one of the following priorities. "]
["Select at least one Strategic Priority Threshold to activate Selection Criteria."]
[]
["Select all that apply."]
[]
["A.","Access to Fixed Transit: "]
[]
[null,"1.",null,"Projects within one-half mile of a planned or existing LRT, BRT or commuter rail station."]
[]
["B.","Greater Minnesota Workforce Housing:"]
[]
[null,"1.",null,"Projects in Greater Minnesota documenting both of the following:"]
[null,null,null,"a.","Need: Projects in communities with low vacancy (typically considered 4 percent and below, documented by a market study or other "]
[null,null,null,null,"third party data) and:"]
[null,null,null,null,"i.","That have experienced net job growth of 100 or more jobs, or"]
[null,null,null,null,"ii.","With 15 percent or more of the workforce commuting 30 or more miles to work, or"]
[null,null,null,null,"iii.","With planned job expansion documented by a local employer"]
[null,null,null,"b.","Employer Support in the form of a letter of support from an employer with 20 or more full time employees.  The letter should discuss the difficulty of employees' to locate housing in the jurisdiction where the project is located and provide a description of employee wages and proposed rents in the project."]
[]
["C.","Economic Integration: "]
[]
[null,"1.",null,"Projects located in higher income communities (outside of rural/tribal designated areas) with access to low and moderate wage jobs, "]
[null,null,null,"meeting either First or Second Tier Community Economic Integration as defined in the Areas of Opportunity category."]
[null,null,null,"This strategic priority must be selected to activate the Economic Integration criterion."]
[]
["D.","Tribal: "]
[]
[null,"1.",null,"Projects sponsored by tribal governments, tribally designated housing entities or tribal corporate entities."]
[]
["E.","Community Development Initiative:"]
[]
[null,"1.",null,"Projects that contribute to active implementation of a Community Development Initiative, as defined in the Community Development "]
[null,null,null,"Initiative selection criterion to address locally identified needs and priorities in which local stakeholders are actively engaged."]
[null,null,null,"This strategic priority must be selected to activate the Community Development Initiative selection criterion."]
[]
["F.","Preservation: "]
[]
[null,"1.",null,"Projects that preserve existing federally assisted housing or other critical affordable housing projects must be eligible under the "]
[null,null,null,"Preservation selection criterion."]
[null,null,null," This strategic priority must be selected to activate the Preservation selection criterion."]
[]
["G.","Supportive Housing:"]
[]
[null,"1.",null,"Projects that will serve people with disabilities or High Priority Homeless (HPH) households must be eligible under the Permanent Supportive "]
[null,null,null,"Housing for High Priority Homeless selection criterion or the People with Disabilities selection criterion. "]
[null,null,null,"This strategic priority must be selected to activate the High Priority Homeless or People with Disabilities selection criteria."]
[]
["2020 HOUSING TAX CREDIT SELECTION CRITERIA",null,null,null,null,null,null,null,null,null,null,null,null,null,null,"Developer Claimed"]
["1. Greatest Need Tenant Targeting",null,null,null,null,null,null,null,null,null,null,null,null,null,{"$f":"IF(HTCOnlyScoresheet=TRUE,\"7 to 47 points\", \"5 to 39 points\")","v":"5 to 39 points"},{"$f":"GreatestNeedTenantTargetingTotalScore","v":0}]
[null,"A.","Large Family Housing ",null,null,null,null,null,null,null,null,null,null,null,{"$f":"IF(HTCOnlyScoresheet=TRUE,\"10 to 15 points\", \"5 to 7 points\")","v":"5 to 7 points"},{"$f":"LargeFamilyHousingTotalScore","v":0}]
[]
[null,null,"1.","Large Family Housing - The proposal is for a project that provides family housing that is not restricted to persons 55 years old or older. The owner agrees to market to families with minor children. Select all that apply:",null,null,null,null,null,null,null,null,null,null,null,null,"Number of Units with"]
[null,null,null,null,null,null,null,null,null,null,null,null,null,null,null,null,"2 Bedrooms"]
[null,null,null,"a.",null,"At least 75% of the total assisted* units contain two or more bedrooms. ",null,null,null,null,null,null,null,null,{"$f":"IF(HTCOnlyScoresheet=TRUE,\"10 points\", \"5 points\")","v":"5 points"},null,"3 Bedrooms"]
[null,null,null,null,null,null,null,null,null,null,null,null,null,null,null,null,"4 Bedrooms"]
[null,null,null,"b.",null,"For Greater Minnesota proposals if eligible under 1. a. above, at least one-third of the 75% contain three or more bedrooms.",null,null,null,null,null,null,null,null,{"$f":"IF(HTCOnlyScoresheet=TRUE,\"5 points\", \"2 points\")","v":"2 points"}]
[]
[]
[null,"*","Assisted is defined as tax credit units for HTC applications and affordable units for deferred funding."]
[]
[null,"B.","Permanent Supportive Housing for High Priority Homeless*",null,null,null,null,null,null,null,null,null,null,null,"7 to 22 points",{"$f":"PermanentSupportiveHousingTotalScore","v":0}]
[null,null,"Select Supportive Housing under Strategic Priority Threshold to enable checkboxes for Permanent Supportive Housing for High Priority Homeless."]
[]
[null,null,"1.","A minimum of 5% of the total units, but no fewer than four units are set aside and rented to High Priority Homeless who are households ",null,null,null,null,null,null,null,null,null,null,null,null,"Number of Units Representing:"]
[null,null,null,"prioritized for permanent supportive housing by the Coordinated Entry System**  (HPH units) and targeted to the populations indicated "]
[null,null,null,"below. Select one and complete the unit count below:",null,null,null,null,null,null,null,null,null,null,null,null,"Youth with Children"]
[null,null,null,null,null,null,null,null,null,null,null,null,null,null,null,null,"Youth Singles"]
[null,null,null,"a.",null,"50% to 100%, but no fewer than 20 units",null,null,null,null,null,null,null,null,"20 points",null,"Youth Total",{"$f":"SUM(DevSupportiveHousingYouthWithChildrenUnitsValue, DevSupportiveHousingYouthUnitsValue)","v":0}]
[null,null,null,null,null,null,null,null,null,null,null,null,null,null,null,null,"Single Adults"]
[null,null,null,"b.",null,"10% to 49.99%, but no fewer than 7 units",null,null,null,null,null,null,null,null,"10 points",null,"Families with Children"]
[null,null,null,null,null,null,null,null,null,null,null,null,null,null,null,null,"Total High Priority Homeless",{"$f":"SUM(DevSupportiveHousingYouthUnitsValue, DevSupportiveHousingYouthWithChildrenUnitsValue,DevSupportiveHousingSingleAdultUnitsValue,DevSupportiveHousingFamiliesUnitsValue)","v":0}]
[null,null,null,"c.",null,"5% to 9.99%, but no fewer than 4 units",null,null,null,null,null,null,null,null,"7 points"]
[]
[null,null,"2.","Continuum of Care - Proposals that are eligible for B. 1 above can claim this selection criterion if units will be available for populations",null,null,null,null,null,null,null,null,null,null,null,null,"Number of Units"]
[null,null,null,"consistent with local needs identified by the local Continuum of Care. Published Priorities are available on Minnesota Housing’s",null,null,null,null,null,null,null,null,null,null,null,null,"Priority Type",""]
[null,null,null,"website at:"]
[null,null,null,null,"http://www.mnhousing.gov"]
[]
[null,null,null,"a.",null,"5% of units or more, but no fewer than four units, targeted to Continuum of Care Household Type Priority One",null,null,null,null,null,null,null,null,"2 points"]
[null,null,null,null,null,null,null,null,null,null,""]
[null,null,"NOTE:\nPermanent Supportive Housing for High Priority Homeless (B.) and People with Disabilities (C.) selection criteria cannot be claimed for the same units. \n"]
[]
[null,null,"To be eligible for Permanent Supportive Housing for High Priority Homeless (HPH), the proposal must meet all of the following conditions:"]
[]
[null,null,"1.","The applicant must complete and submit the Supportive Housing application materials, including the narratives, forms and submittals identified in the Application Checklist in the Multifamily Customer Portal."]
[null,null,"2.","The applicant agrees to pursue and continue renewal of rental assistance, operating subsidy or service funding contracts for as long as the funding is available"]
[null,null,"3.","The applicant agrees that if units set aside for High Priority Homeless are occupied by households without rental assistance, the gross rents, including an allowance for tenant-paid utilities cannot exceed the greater of 30% of the household's monthly income or the most current Supportive Housing Standard for the unit size, as published annually by Minnesota Housing in the Multifamily Underwriting Standards in the Supportive Housing Standards - High Priority Homeless or People with Disabilities section.  The owner must establish and implement policy and procedure to specify the calculation method used to determine the appropriate rent amount and periodic income recertification to adjust rents. "]
[null,null,"4.","Supportive Housing Threshold Criteria:"]
[null,null,null,"a.","Supportive Services: On-site service coordination and tenant engagement must be made available to all supportive housing residents. The level and type of services offered should be appropriate for the needs of the target population, with a minimum of tenant service coordination averaging two hours per household per week as further defined in the supportive housing narrative. "]
[null,null,null,"b.","Experienced service provider, or partnering with an experienced service provider, with demonstrated outcomes:"]
[null,null,null,null,"i.","At a minimum, the service provider has experience providing services to a similar population to maintain housing over a period of time, and has sufficient capacity to deliver the services proposed."]
[null,null,null,"c.","Service funding commitments: At a minimum, a portion of service funding is secured with a viable plan for securing the remaining resources, as approved by Minnesota Housing. Evidence must be provided in the application narrative and commitment letters or other documentation."]
[null,null,null,null,"i.","Developments with 5% to 9.99% HPH units must have secured at least 75% of service funding"]
[null,null,null,null,"ii.","Developments with 10% to 49.99% HPH units must have secured at least 20% of service funding"]
[null,null,null,null,"iii.","Developments with 50% to 100% HPH units must have secured at least 5% of service funding"]
[null,null,null,"d.","Coordinated Entry and serving highest need households: The property owner must agree to accept high priority households for the HPH supportive housing units through Coordinated Entry."]
[]
[null,null,"A proposal that claims this category and is selected to receive tax credits will be required to comply with the reporting requirements for Permanent Supportive Housing for High Priority Homeless, as defined by Minnesota Housing. The Tax Credit Declaration of Land Use Restrictive Covenants, including a specific Rider to the Declaration and Minnesota Housing Loan documents, will contain performance requirements related to these permanent supportive housing units for High Priority Homeless and will be recorded with the property."]
[null,null,"A proposal that claims this category will be required to comply with the reporting requirements for Permanent Supportive Housing for High Priority Homeless, as defined by Minnesota Housing. Minnesota Housing Loan documents will contain performance requirements related to these permanent supportive housing units for High Priority Homeless and will be recorded with the property."]
[null,null,"*","Specific performance requirement relief provisions are available for projects eligible for the Permanent Supportive Housing High Priority Homeless category selection criterion for “HPH Units”. Reference Chapter 6.A. of the HTC Program Procedural Manual for additional details. Specific performance requirements will be incorporated into the Tax Credit Declaration of Land Use Restrictive Covenants and deferred loan documents recorded with the property."]
[null,null,"**","Coordinated Entry System is defined by the Statewide Coordinated Entry standards and protocol as adopted by the local Continuum of Care, or such successor system as determined by Minnesota Housing.  "]
[]
[null,"C.","People with Disabilities",null,null,null,null,null,null,null,null,null,null,null,"7 to 10 points",{"$f":"PeopleWithDisabilitiesTotalScore","v":0}]
[null,null,"Select Supportive Housing under Strategic Priority Threshold to enable checkboxes for People with Disabilities."]
[]
[null,null,"1.","Select the number of units set aside for people with disabilities:",null,null,null,null,null,null,null,null,null,null,null,null,"Number of Units"]
[]
[null,null,null,"a.",null,"15% to 25% of units",null,null,null,null,null,null,null,null,"10 points"]
[]
[null,null,null,"b.",null,"10% to 14.99% of units",null,null,null,null,null,null,null,null,"9 points"]
[]
[null,null,null,"c.",null,"5% to 9.99%, but no fewer than four units ",null,null,null,null,null,null,null,null,"7 points"]
[]
[null,null,"Permanent housing proposals are not restricted to persons of a particular age group.  A percentage of the units are set aside and rented to persons with any of the following disabilities* : "]
[]
[null,null,"i.","A serious and persistent mental illness as defined in Minn. Stat. § 245.462, subdivision 20, paragraph (c)"]
[null,null,"ii.","A developmental disability as defined in United States Code, Title 42, Section 6001, paragraph (5), as amended"]
[null,null,"iii.","Assessed as drug dependent as defined in Minn. Stat. § 254A.02, subdivision 5, and are receiving or will receive care and treatment services provided by an approved treatment program as defined in Minn. Stat. § 254A.02, Subdivision 2"]
[null,null,"iv.","A brain injury as defined in Minn. Stat. § 256B.093, Subdivision 4, paragraph (a)"]
[null,null,"v.","Permanent physical disabilities that substantially limit major life activities, if at least 50% of the units in the project are accessible as provided under Minnesota Rules Chapter 1341"]
[]
[null,null,"NOTE:  Minnesota Housing considers accessible units to be Type A and/or Type B units as identified in the referenced Chapter 1341, also known as the Minnesota Accessibility Code."]
[]
[null,null,"NOTE:  This definition is not limited to persons with mobility impairment."]
[]
[null,null,"NOTE:  Permanent Supportive Housing for High Priority Homeless (B.) and People with Disabilities (C.) selection criteria may not be claimed for the same units. \n\nTo be eligible under People with Disabilities, the proposal must meet all of the following conditions:"]
[null,null,"1.","The applicant must submit the People with Disabilities narratives and any other forms and submittals identified in the Application Checklist in the Multifamily Customer Portal."]
[null,null,"2.","The applicant must submit a signed Service Agreement.  Applicant can either complete the signature page (must be completed by both parties) attached to the People with Disabilities Narrative, or submit a separate signed service agreement."]
[null,null,"3.","The applicant agrees to pursue and continue renewal of rental assistance, operating subsidy or service funding contracts for as long as the funding is available."]
[null,null,"4.","The application must meet the following threshold criteria as evidenced in the People with Disabilities Narrative and Service Agreement:"]
[null,null,null,"a.","Target population: The target population(s) of people with disabilities must be clearly defined in the narrative (e.g., mental illness, developmental disability, physical disability)."]
[null,null,null,"b.","Units are restricted to households with incomes at or below 30% MTSP income limits."]
[null,null,null,"c.","The applicant agrees that if units set aside for People with Disabilities are occupied by households without project-based rental assistance, the gross rents, including an allowance for tenant-paid utilities, cannot exceed the greater of 30% of the household's monthly income or the most current Supportive Housing Standard for the unit size, as published annually by Minnesota Housing in the Multifamily Underwriting Standards in the Supportive Housing Standards - High Priority Homeless or People with Disabilities section.  The owner must establish and implement policy and procedures to specify the calculation method used to determine the appropriate rent amount and periodic income recertification to adjust rents."]
[null,null,null,"d.","Service Agreement: The property owner must have an agreement with the county or tribal human services office specifying:"]
[null,null,null,null,"i.","How they will provide outreach to the target population"]
[null,null,null,null,"ii.","How eligible applicants will be referred to the property management agent"]
[null,null,null,null,"iii.","That verification of applicant disability will be provided to the owner"]
[null,null,null,null,"iv.","The types of services appropriate to the population that will be made available with the goal of housing stability"]
[null,null,null,null,"v.","Service funding sources"]
[null,null,null,null,"vi.","How services will be provided to tenants"]
[null,null,null,null,"vii.","How the service entity will communicate and coordinate with property management"]
[null,null,null,null,"viii.","Plans for crisis intervention, eviction prevention and lease mitigation"]
[null,null,null,"e.","Units for individuals with disabilities must be provided in an integrated setting."]
[]
[null,"*","Specific performance requirement relief provisions are available for projects that meet the People with Disabilities Selection Criterion for “PDSC Units.” Reference Section 6.A. of the HTC Program Procedural Manual for additional details. Specific performance requirements will be incorporated into the Tax Credit Declaration of Land Use Restrictive Covenants and deferred loan documents recorded with the property."]
[]
["2. Serves Lowest Income for Long Durations ",null,null,null,null,null,null,null,null,null,null,null,null,null,"2 to 35 points",{"$f":"ServesLowestIncomeTotalScore","v":0},{"$f":"IF(DEFOnlyScoresheet= TRUE, \"\", IF(ServesLowestIncomeTotalScore>35, \"Selections for Serves Lowest Income Tenants/Rent Reduction and Rental Assistance indicate that the units have been double-counted. Please update your selections.\", \"\"))","v":""}]
[null,"A.","Serves Lowest Income Tenants/Rent Reduction",null,null,null,null,null,null,null,null,null,null,null,"8 to 13 points",{"$f":"ServesLowestIncomeTenantsTotalScore","v":0}]
[]
[null,null,"1.","Eligibility is based on gross rent level, including utilities before rental assistance. Eligible units must have rents affordable to \n"]
[null,null,null,"households whose incomes do not exceed 50% of MTSP income limits as published by HUD without rental assistance for a \n",null,null,null,null,null,null,null,null,null,null,null,null,null,"Select cell to edit number of units."]
[null,null,null,"period of 10 years.",null,null,null,null,null,null,null,null,null,null,null,null,"Number of Units"]
[]
[null,null,null,"The applicant agrees to maintain the deeper rent structure for which selection points are requested."]
[]
[null,null,null,"This selection will restrict rents only (tenant incomes will not be restricted to the 50% income level by claiming this section)."]
[]
[null,null,null,"a.",null,"100% of the restricted unit rents affordable to households with incomes at the county 50% HUD MTSP income limit",null,null,null,null,null,null,null,null,"13 points"]
[]
[null,null,null,"b.",null,"At least 50% of the restricted unit rents affordable to households with incomes at the county 50% HUD MTSP income limit",null,null,null,null,null,null,null,null,"8 points"]
[]
[null,null,"NOTE: Serves Lowest Income and Rental Assistance selection criteria cannot be claimed for the same units."]
[]
[null,null,"Minnesota Housing will incorporate these restrictions into the Declaration of Land Use Restrictive Covenants and Minnesota Housing loan documents. The applicant must demonstrate, to the sole satisfaction of Minnesota Housing, that the property can achieve these reduced rents and remain financially feasible [IRC § 42(m)(2)]. Contingent upon financial plans demonstrating feasibility, positive cash flow on a 15-year pro forma and gaining Minnesota Housing management approval (for management, operational expenses, and cash flow assumptions)."]
[]
[null,null,"IMPORTANT"]
[null,null,"All 50% rent restricted units must meet rents affordable at the 50% MTSP income for a minimum of 10 years after the last placed in service date for any building in the property or loan closing.  After the 10 year period has expired, if the units are not otherwise subject to more restrictive conditions, rent may be increased to the 60% MTSP rent limit over a three year period, with increases not to exceed the amount listed in the table below, provided that a more restrictive threshold, selection priority or funding requirements do not apply."]
[]
[null,null,null,null,null,null,null,null,"YEAR",null,"30% of 50% Rent Levels"]
[null,null,null,null,null,null,null,null,"1-10",null,"30% of 50%"]
[null,null,null,null,null,null,null,null,11,null,"30% of 53%"]
[null,null,null,null,null,null,null,null,12,null,"30% of 57%"]
[null,null,null,null,null,null,null,null,13,null,"30% of 60%"]
[]
[null,"B.","Rental Assistance",null,null,null,null,null,null,null,null,null,null,null,"2 to 26 points",{"$f":"RentalAssitanceTotalScore","v":0}]
[]
[null,null,"1.","Priority is given to an owner who submits with the application a fully executed binding commitment (i.e., binding Resolution/binding Letter of Approval from the governing body) for project-based rental assistance awarded in accordance with 24 CFR Ch. IX, Section 983.51 or which is effectively project-based by written contract. For the purposes of this category, project-based rental assistance is defined as a project-specific funding stream that supports the operations of the property, reduces the tenant rent burden, and provides for the tenant paid portion of rent to be no greater than 30% of household income."]
[]
[null,null,null,"NOTE:  Minnesota Housing, at its sole discretion, will consider rental assistance programs with alternative rent structures as proposed by the applicant, where households may pay more than 30% of their household income when the program goals align with the needs of low-income populations such as with the Moving to Work and site-based Housing Support programs."]
[]
[null,null,null,"\u009f","New or transferred federal rental assistance contracts that were executed within the past 15 years are eligible. This includes transfers of existing Section 8 contracts under the 8bb notice to new construction projects or existing developments that currently have no Existing Federal Assistance."]
[null,null,null,"\u009f","Site-based Housing Support* and awards of project-based McKinney Vento Continuum of Care funding, will be considered project-based rental assistance."]
[null,null,null,"\u009f","Privately funded rental assistance must demonstrate a commitment of a minimum of four years. Documentation must also contain language regarding the possibility of future renewals."]
[null,null,null,"\u009f","A current request for Minnesota Housing Rental Assistance is not eligible to claim this category. A past award of existing Rental Assistance will be counted toward meeting the required percentages."]
[]
[null,null,null,"For developments that agree to set aside units and have the required binding commitment for the associated percentage of units",null,null,null,null,null,null,null,null,null,null,null,null,null,"Select cell to edit number of units."]
[null,null,null,"with project based rental assistance units as follows. Select one option from a. - f. and, if applicable, select g.",null,null,null,null,null,null,null,null,null,null,null,null,"Number of units"]
[]
[null,null,null,"a.",null,"100% of the total units for project-based rental assistance",null,null,null,null,null,null,null,null,"15 points"]
[]
[null,null,null,"b.",null,"Between 51.1% to 99.9% of the total units ",null,null,null,null,null,null,null,null,"12 points"]
[]
[null,null,null,"c.",null,"20.1% to 51% of the total units",null,null,null,null,null,null,null,null,"9 points"]
[]
[null,null,null,"d.",null,"10.1% to 20% of the total units, with a minimum of  four units",null,null,null,null,null,null,null,null,"6 points"]
[]
[null,null,null,"e.",null,"5% to 10% of the total units, with a minimum of four units",null,null,null,null,null,null,null,null,"3 points"]
[]
[null,null,null,"f.",null,"Less than 5% of units, with a minimum of four units",null,null,null,null,null,null,null,null,"2 points"]
[]
[null,null,null,"g.",null,"For selection components a. - f. above, if, in addition, the development agrees to provide the ",null,null,null,null,null,null,null,null,"4 points"]
[null,null,null,null,null,"project-based rental assistance for a minimum 10 years after the last placed in service date for any building in the property or loan closing. The owner must continue renewals of existing project-based housing subsidy payment contract(s). Applicant agrees that rents will remain at affordable at 50% MTSP income limits for a 10 year period if the rental assistance is not available for the full period.**"]
[]
[null,null,"2.","Projects that are eligible under B. 1. a. - f. above and have rental assistance (as described above), that agree to further restrict units "]
[null,null,null,"to households whose incomes do not exceed 30% of MTSP income limit for a 10 year period. Rental Assistance Commitment "]
[null,null,null,"documentation should indicate that deeper income restrictions on project based units is allowable***. Select one:"]
[null,null,"2.","Projects that are eligible under B. 1. a. - f. above and have rental assistance (as described above), that agree to further restrict units "]
[null,null,null,"to households whose incomes do not exceed 30% of MTSP income limit for a 10 year period after the last placed in service date for "]
[null,null,null,"any building in the property or loan closing. Rental Assistance Commitment documentation should indicate that deeper income restrictions "]
[null,null,null,"on project based units is allowable***. Select one:"]
[null,null,null,null,null,null,null,null,null,null,null,null,null,null,null,null,null,"Select cell to edit number of units."]
[null,null,null,null,null,null,null,null,null,null,null,null,null,null,null,null,"Number of units"]
[null,null,null,"a.",null,"75.1% to 100% of the total units",null,null,null,null,null,null,null,null,"7 points"]
[]
[null,null,null,"b.",null,"50.1% to 75% of the total units",null,null,null,null,null,null,null,null,"6 points"]
[]
[null,null,null,"c.",null,"25.1% to 50% of the total units",null,null,null,null,null,null,null,null,"5 points"]
[]
[null,null,null,"d.",null,"15.1% to 25% of the total units",null,null,null,null,null,null,null,null,"4 points"]
[]
[null,null,null,"e.",null,"5% to 15% of the total units but no fewer than four units",null,null,null,null,null,null,null,null,"3 points"]
[]
[null,"NOTE: Rental Assistance and Serves Lowest-Income Tenants/Rent Reduction selection criteria cannot be claimed for the same units.\n\nNOTE: Rental Assistance selection criterion cannot be claimed if the development qualifies for or is claiming Existing Federal Assistance under the Preservation criterion. Rental assistance under the Rental Assistance Demonstration Program (components I or II) or the Public Housing Program are also not eligible. "]
[]
[null,"To claim the criterion, the applicant must comply with all program requirements for the assistance at application, including maintaining rents within the appropriate payment standard for the project area in which the project is located for the full compliance and extended use period of the housing tax credits.\n\nRent for assisted units must be at or below Fair Market Rents (or appropriate payment standard for the project area).  Eligibility and agreeing to a minimum number of assisted units does not release owners from their obligations under the Minnesota Human Rights Act and Section 42 prohibiting refusal to lease to the holder of a voucher of eligibility under Section 8 of the United States Housing Act of 1937 because of the status of the prospective tenant as such a holder.\n"]
[]
[null,"*","Formerly known as Group Residential Housing."]
[null,"**","Specific performance requirement relief provisions are available for projects claiming the Rental Assistance selection criterion for Continued Renewal Rental Assisted units “CRRA Units.” Reference Chapter 6.A. of the HTC Program Procedural Manual for additional details. Specific performance requirements will be incorporated into the Tax Credit Declaration of Land Use Restrictive Covenants and deferred loan documents recorded with the property."]
[null,"***","Specific performance requirement relief provisions are available for projects claiming the Rental Assistance selection criterion for Further Restricted Rental Assisted units “FRRA Units.” Reference Chapter 6.A. of the HTC Program Procedural Manual for additional details. Specific performance requirements will be incorporated into the Tax Credit Declaration of Land Use Restrictive Covenants and deferred loan documents recorded with the property."]
[]
[null,"C.","Long Term Affordability",null,null,null,null,null,null,null,null,null,null,null,"3 to 9 points",{"$f":"LongTermAffordabilityTotalScore","v":0}]
[]
[null,null,"1.","The owner agrees that the Qualified Contract provisions of IRC §§ 42(h)(6)(E)(i)(II) and 42(h)(6)(F) (which provision would permit the owner to terminate the restrictions under this agreement at the end of the compliance period in the event Minnesota Housing does not present the owner with a qualified contract for the acquisition of the project) do not apply to the project, except as set out below and, where applicable, agrees to extend the long-term affordability of the project by extending the term of the declaration beyond 30 years (beginning on the first day of the compliance period in which the building is a part of a qualified low-income housing project). Select one:"]
[]
[null,null,null,"a.",null,"Extend the term of the declaration and waive the right to Qualified Contract for a minimum of 40 years.",null,null,null,null,null,null,null,null,"9 points"]
[]
[null,null,null,"b.",null,"Extend the term of the declaration and waive the right to Qualified Contract for a minimum of 35 years.",null,null,null,null,null,null,null,null,"8 points"]
[]
[null,null,null,"c.",null,"Waive the right to Qualified Contract for a minimum of 30 years.",null,null,null,null,null,null,null,null,"7 points"]
[]
[null,null,null,"d.",null,"Waive the right to Qualified Contract for a minimum of 25 years.",null,null,null,null,null,null,null,null,"3 points"]
[]
["3. Areas of Opportunity ",null,null,null,null,null,null,null,null,null,null,null,null,null,"1 to 28 points",{"$f":"AreasOfOpportunityTotalScore","v":0}]
[null,"A.","Economic Integration",null,null,null,null,null,null,null,null,null,null,null,"2 to 9 points",{"$f":"EconomicIntegrationTotalScore","v":0}]
[]
[null,null,"1.","Projects that meet the requirements under economic integration include (select one): "]
[null,null,null,null,null,null,null,null,null,null,null,null,null,null,null,null,null,"Select cell to edit number of units."]
[null,null,null,"a.",null,"Provides the project economic integration by providing at least 25% but not greater than 80% of the total units in the project as",null,null,null,null,null,null,null,null,"2 points",null,"Number of units"]
[null,null,null,null,null,"qualified assisted low-income units (does not include full-time manager or other common space units)"]
[]
[null,null,null,"b.","Promotes economic integration for projects that are located in higher income communities that are outside of Rural/Tribal Designated "]
[null,null,null,null,"Areas. First and second tier economic integration areas are outside of racially and ethnically concentrated areas of poverty. "]
[null,null,null,null,"Select Economic Integration under Strategic Priority Threshold to enable the checkboxes for First and Second Tier."]
[null,null,null,null,"First and Second Tier are disabled when Rural/Tribal under the section Supporting Community and Economic Development has been selected."]
[]
[null,null,null,null,"i.",null,"First Tier - The proposed housing is located in a first tier census tract ",null,null,null,null,null,null,null,"9 points"]
[]
[null,null,null,null,"ii.",null,"Second Tier - The proposed housing is located in a second tier census tract",null,null,null,null,null,null,null,"7 points"]
[]
[null,null,"The following resources on Minnesota Housing’s website may be used to determine if the proposed housing is located in areas that meet the requirements under Economic Integration: "]
[null,null,null,"Economic integration area maps and census tract listing"]
[null,null,null,"Rural/Tribal Designated areas maps and census tract listing"]
[null,null,null,"Economic integration and Rural/Tribal Designation Area map overlays in the community profiles interactive mapping tool"]
[]
[null,"B.","Access to Higher Performing Schools ",null,null,null,null,null,null,null,null,null,null,null,"4 points",{"$f":"AccessToSchoolsTotalScore","v":0}]
[null,null,null,null,null,null,null,null,null,null,null,null,null,null,null,null,"Number of units to be marketed"]
[null,null,"1.","Projects serving families in locations that will provide access to higher performing schools must have at ",null,null,null,null,null,null,null,null,null,null,null,null,"to families with minor children"]
[null,null,null,"least 25% of total assisted units, with a minimum of 15 units, contain two or more bedrooms, and the ",null,null,null,null,null,null,null,null,null,null,null,null,"2 Bedrooms"]
[null,null,null,"owner agrees to market the units to families with minor children.",null,null,null,null,null,null,null,null,null,null,null,null,"3 Bedrooms"]
[null,null,null,null,null,null,null,null,null,null,null,null,null,null,null,null,"4 Bedrooms"]
[null,null,null,"a.",null,"The proposed housing will serve families and is located in an area considered to have Access to Higher Performing Schools",null,null,null,null,null,null,null,null,"4 points"]
[]
[null,null,"Link to Access to Higher Performing Schools area maps"]
[null,null,"Link to Access to Higher Performing Schools Area map overlays in the community profiles interactive mapping tool"]
[]
[null,"C.","Workforce Housing Communities",null,null,null,null,null,null,null,null,null,null,null,"3 to 6 points",{"$f":"WorkforceHousingCommunitiesTotalScore","v":0}]
[]
[null,null,"1.","Projects located in or near a city or township needing workforce housing (communities having a large number of jobs or job growth, individual employer growth, or having a large share of their workforce commuting long distances). Select one: "]
[]
[null,null,null,"a.",null,"The proposed housing is in a Top Job Center or Net Five Year Job Growth Community ",null,null,null,null,null,null,null,null,"6 points"]
[]
[null,null,null,"b.",null,"The proposed housing is in an Individual Employer Growth community where an individual employer has added at least 100 net jobs",null,null,null,null,null,null,null,null,"6 points"]
[null,null,null,null,null," (for permanent employees of the company) during the previous five years, as evidenced by documentation signed by an authorized representative of the company, subject to validation by Minnesota Housing "]
[]
[null,null,null,"c.",null,"The proposed housing is in a Long Commute Community",null,null,null,null,null,null,null,null,"3 points"]
[]
[null,null,"In the metropolitan area, project locations must be within five miles of a workforce housing city or township. In Greater Minnesota, project locations must be within ten miles of a workforce housing city or township. \n"]
[]
[null,null,"Link to Top Job Centers, Net Five Year Job Growth communities, and Long Commute communities lists and maps"]
[null,null,"Link to Proximity to workforce housing in the community profiles interactive mapping tool"]
[]
[null,"D.","Location Efficiency",null,null,null,null,null,null,null,null,null,null,null,"1 to 9 points",{"$f":"LocationEfficiencyTotalScore","v":0}]
[]
[null,null,"1.","For Projects in the Twin Cities metropolitan area, indicate whether the project will promote location efficiency based on access to transit and walkability. "]
[]
[null,null,null,"a.","Access to Transit: To claim access to transit in the Twin Cities metropolitan area, a project must be (select one):"]
[]
[null,null,null,null,"i.",null,"Located within one half mile of a planned* or existing LRT, BRT, or commuter rail station ",null,null,null,null,null,null,null,"7 points"]
[]
[null,null,null,null,"ii.",null,"Located within one quarter mile of a fixed route stop on Metro Transit’s Hi-Frequency Network",null,null,null,null,null,null,null,"4 points"]
[]
[null,null,null,null,"iii.",null,"Located within one quarter mile of a high service** public transportation fixed route stop ",null,null,null,null,null,null,null,"2 points"]
[]
[null,null,null,null,"iv.",null,"Located within one half mile of an express bus route stop",null,null,null,null,null,null,null,"2 points"]
[]
[null,null,null,null,"v.",null,"Located within one half mile of a park and ride facility ",null,null,null,null,null,null,null,"2 points"]
[]
[null,null,null,"b.","Walkability: To claim walkability in the Twin Cities metropolitan area, a project must meet the Access to Transit criterion described above, and be (select one):"]
[]
[null,null,null,null,"i.",null,"Located in an area with a Walk Score of 70 or more according to  ",null,null,null,null,null,null,null,"2 points"]
[null,null,null,null,null,null,"www.walkscore.com"]
[]
[null,null,null,null,"ii.",null,"Located in an area with a Walk Score between 50 and 69 according to ",null,null,null,null,null,null,null,"1 point"]
[null,null,null,null,null,null,"www.walkscore.com"]
[]
[null,null,"2.","For projects in Greater Minnesota, choose from urbanized areas and rural and small urban areas. Urbanized areas, according to the U.S. Census are places with populations greater than 50,000, and are defined by the Minnesota Department of Transportation (MnDOT)*** as areas in and around Duluth, East Grand Forks, La Crescent, Rochester, Moorhead, Mankato and St. Cloud. Rural and small urban areas are places with populations fewer than 50,000."]
[]
[null,null,null,"a.","Urbanized Areas (population greater than 50,000)****"]
[]
[null,null,null,null,"i.","Access to Transit: To claim access to transit, a project in Greater Minnesota must be (select one):"]
[]
[null,null,null,null,null,"1.",null,"Located within one quarter mile of a planned***** or existing public transportation fixed route stop",null,null,null,null,null,null,"7 points"]
[]
[null,null,null,null,null,"2.",null,"Located between one quarter mile and one half mile of a planned or existing public transportation fixed route stop ",null,null,null,null,null,null,"4 points"]
[]
[null,null,null,null,null,"3.",null,"Located less than one half mile of an express bus route stop or park and ride lot ",null,null,null,null,null,null,"4 points"]
[]
[null,null,null,null,"ii.","Walkability: To claim walkability, a project in Greater Minnesota must meet the Access to Transit criterion described above, and be (select one):"]
[]
[null,null,null,null,null,"1.",null,"Located in an area with a Walk Score of 70 or more according to",null,null,null,null,null,null,"2 points"]
[null,null,null,null,null,null,null,"www.walkscore.com"]
[]
[null,null,null,null,null,"2.",null,"Located in an area with a Walk Score between 50 and 69 according to ",null,null,null,null,null,null,"1 point"]
[null,null,null,null,null,null,null,"www.walkscore.com"]
[]
[null,null,null,"b.","Rural and Small Urban Areas (population fewer than 50,000).  For rural and small urban areas, applicants may claim Location Efficiency by having access to route deviation service or demand response/dial-a-ride, and walkability.  Route deviation service****** is different from fixed route transit in that the vehicle may leave its predetermined route upon request by passengers to be picked up or returned to destinations near the route, after which the vehicle returns to the predetermined route.  Passengers may call in advance for route deviations similar to that of demand response/dial-a-ride or access the service at designated route stops without advanced notice.  Demand response usually involves curb-to-curb or door-to-door service with trips scheduled in advance (also known as “Dial-A-Ride”)."]
[]
[null,null,null,null,"i.","Access to Transit: To claim access to transit, a project in Greater Minnesota must be (select one):"]
[]
[null,null,null,null,null,"1.",null,"Located within one quarter mile of an existing or planned***** designated stop that has service every ",null,null,null,null,null,null,"7 points"]
[null,null,null,null,null,null,null,"60 minutes OR served by demand response/dial-a-ride with no more than two hour advance notice."]
[]
[null,null,null,null,null,"2.",null,"Located between one quarter mile and one half mile of an existing or planned designated stop that has ",null,null,null,null,null,null,"4 points"]
[null,null,null,null,null,null,null,"service every 60 minutes OR served by demand response/dial-a-ride with prior day notice. "]
[]
[null,null,null,null,null,"3.",null,"The proposed housing has access to demand response/dial-a-ride service not meeting the scheduling ",null,null,null,null,null,null,"2 points"]
[null,null,null,null,null,null,null,"terms above"]
[]
[null,null,null,null,"ii.","Walkability: To claim walkability, a project in Greater Minnesota must meet the Access to Transit criteria described above, and be (select one):"]
[]
[null,null,null,null,null,"1.",null,"Located in an area with a Walk Score of 50 or more according to ",null,null,null,null,null,null,"2 points"]
[null,null,null,null,null,null,null,"www.walkscore.com"]
[]
[null,null,null,null,null,"2.",null,"Located in an area with a Walk Score between 35 – 49 according to ",null,null,null,null,null,null,"1 point"]
[null,null,null,null,null,null,null,"www.walkscore.com"]
[]
[null,null,"At the time of application, the applicant must submit a map identifying the location of the project with exact distances to the eligible public transit station/stop and include a copy of the route, span and frequency of service.\n\n"]
[]
[null,null,"Link to Access to transportation maps and census tract listings are found on Minnesota Housing's website"]
[null,null,"Link to Community profiles interactive mapping tool"]
[]
[null,"*","Includes planned stations on future transitways that are in advance design or under construction that meet the following criteria:  issuance of a draft EIS, station area planning underway, and adoption by the Metropolitan Council Transportation Policy Plan.  Transitways entering into advance design after publication will be eligible, but data may not be available using Minnesota Housing scoring tools."]
[null,"**","High service fixed route stop is defined as those serviced from 6 am to 7 pm and with service approximately every half hour during that time.  "]
[null,"***","Greater Minnesota Transit Investment Plan:",null,null,null,null,null,null,null,"http://minnesotago.org/index.php?cID=435"]
[null,"****","Eligible areas are those in and around Duluth, East Grand Forks, La Crescent, Rochester, Moorhead and St. Cloud.  These are the seven MnDOT identified fixed route transit systems for Greater Minnesota."]
[null,"*****","For a Greater Minnesota planned stop to be claimed, applicants must provide detailed location and service information including time and frequency of service, along with evidence of service availability from the transit authority providing service.  The planned stop of route must be available M-F and provide service every 60 minutes for a minimum of 10 hours per day."]
[null,"******","Applicants can find providers by county or city on MnDOT’s website:",null,null,null,null,null,null,null,null,"https://www.dot.state.mn.us/transit/riders/index.html"]
[null,null,"and the service type in MnDOT’s annual transit report: ",null,null,null,null,null,null,null,null,"http://www.dot.state.mn.us/govrel/reports/2017/transit.pdf "]
[]
["4. Supporting Community and Economic Development ",null,null,null,null,null,null,null,null,null,null,null,null,null,"1 to 18 points",{"$f":"SupportingCommunityTotalScore","v":0}]
[null,"A.","Community Development Initiative",null,null,null,null,null,null,null,null,null,null,null,"3 points",{"$f":"PlannedCommunityDevelopmentTotalScore","v":0}]
[null,null,"Select Community Development Initiative under Strategic Priorities to enable checkboxes for Community Development Initiative."]
[]
[null,null,"1.",null,"Project contributes to active implementation of a Community Development Initiative to address locally identified"]
[null,null,null,null,"needs and priorities, with active engagement by local stakeholders.  The initiative can be created by, and involve engagement from, a wide variety of public and private local community development partners such as cities, counties, employers, private foundations, public housing authorities, or other community stakeholders.  The plan must contain more components than the project itself.  Documentation must be provided that addresses four requirements for the Community Development Initiative: "]
[null,null,null,null,"Refer to the information below.  If you prefer to see this in a table format click here."]
[]
[null,null,null,null,"a.","Targeted Geographic Area and Map"]
[null,null,null,null,null,"i.","The Targeted Geographic Area boundaries must be larger than the proposed rental project site, yet within a measurable impact area.  For larger geographic areas, the Targeted Area must be small enough that one municipality or county (or a small conglomerate of municipalities or counties) can exercise jurisdiction over it."]
[null,null,null,null,"b.","Current implementation plan with goals or outcomes specific to the need identified by the initiative"]
[null,null,null,null,null,"i.","Include milestones or steps of the plan that have been:"]
[null,null,null,null,null,null,"a.","Completed"]
[null,null,null,null,null,null,"b.","Underway"]
[null,null,null,null,null,null,"c.","Planned"]
[null,null,null,null,"c.","Affordable housing is identified as a key strategy of the initiative"]
[null,null,null,null,"c.","Affordable housing as a key strategy of the initiative"]
[null,null,null,null,"d.","A list of stakeholders, including their role in active implementation of the initiative"]
[null,null,null,null,"d.","Stakeholder List and Role"]
[null,null,null,null,null,"i.","Provide a list of stakeholders involved and a description of their role in the active implementation of the initiative"]
[]
[null,null,null,null,"If a project is located in a Qualified Census Tract (QCT), in order to be eligible for these points, the project must provide additional evidence that demonstrates a strategy for obtaining commitments of public and/or private investment in non-housing efforts to demonstrate that the project contributes to a concerted community revitalization plan."]
[null,null,null,null,"If a project is located in a Qualified Census Tract (QCT), in order to be eligible for these points, the application must provide additional evidence that demonstrates a strategy for obtaining commitments of public and/or private investment in non-housing efforts to demonstrate that the project contributes to a concerted community revitalization plan.  Demonstrated strategy for obtaining commitments of public or private investment (or both) in non-housing infrastructure, amenities, or services that could include but are not limited to:"]
[null,null,null,null,"\u009f","Commercial/retail development"]
[null,null,null,null,"\u009f","Economic development"]
[null,null,null,null,"\u009f","Education-related initiatives/development"]
[null,null,null,null,"\u009f","Environmental clean-up"]
[null,null,null,null,"\u009f","Public works/infrastructure"]
[null,null,null,null,"\u009f","Parks, green space and recreation"]
[null,null,null,null,"\u009f","Transit-oriented development or transit initiatives"]
[]
[null,null,null,"Applicants must complete the Community Initiative Narrative and submit documentation demonstrating how the initiative meets the requirements outlined above.  Documents can include plans, charters or other evidence demonstrating active implementation of the Community Development Initiative.  Note that comprehensive and land use plans are not by themselves considered evidence of a Community Development Initiative."]
[]
[null,"B.","Eventual Tenant Ownership",null,null,null,null,null,null,null,null,null,null,null,"1 point",{"$f":"EventualTenantOwnershipTotalScore","v":0}]
[]
[null,null,"1.",null,"Projects with detached single-family units are eligible for homeowner conversion. The project owner must submit a "]
[null,null,null,null,"preliminary conversion plan with their application that is consistent with the requirements of the Eventual Tenant Ownership (ETO) Guide. The plan must address the transfer of 100% of the HTC unit ownership after the end of the 15-year compliance period from the initial ownership entity (or Minnesota Housing approved \"Transfer of Ownership\" entity) of the project to tenant ownership."]
[]
[null,null,"The unit purchase price at time of sale must be affordable to buyers with incomes meeting HTC eligibility requirements. To be eligible, the buyer must have an HTC qualifying income at the time of initial occupancy (HTC rental tenant). The final conversion plan, to be submitted by the 15th year of initial compliance, must incorporate an ownership exit strategy, a third party Property Capital Needs Assessment report and budget for capital improvements, and services including homeownership education and training. A final conversion plan complying with all of the requirements of the ETO Guide must be submitted to, and approved by, Minnesota Housing prior to commencing the conversion.\n\nThe Declaration of Land Use Restrictive Covenants will contain provisions ensuring compliance with these Eventual Tenant Ownership commitments by the owner, including a right of first refusal allowing tenants to purchase their units. (Refer to the Eventual Tenant Ownership (ETO) Guide and also to Chapter 3W of the HTC Program Procedural Manual for additional information.)\n\nNOTE: Until the time the HTC units are purchased by qualified tenants or in the event that not all HTC units are acquired by qualified tenants, the owner will extend the duration of low-income use for the full extended use period."]
[]
[null,"B.","Rural/Tribal",null,null,null,null,null,null,null,null,null,null,null,"10 points",{"$f":"RuralTribalDesignatedAreaTotalScore","v":0}]
[]
[null,null,"Projects located in Rural/Tribal Designated Areas outside of the Twin Cities seven-county metropolitan area. "]
[null,null,"Criterion has already been claimed/awarded under Economic Integration First Tier or Second Tier and cannot be claimed here."]
[]
[null,null,"1.",null,"The proposed housing is located in a census tract eligible as a Rural/Tribal Designate Area outside of the Twin Cities"]
[null,null,null,null,"seven-county metropolitan area."]
[]
[null,null,"Link to Rural/Tribal Designated Area maps and census tract listing"]
[null,null,"Link to Rural/Tribal Designation Area map overlays in the community profiles interactive mapping tool"]
[]
[null,"C.","QCT/Community Revitalization and Tribal Equivalent Areas",null,null,null,null,null,null,null,null,null,null,null,"1 point",{"$f":"QCTOrTribalEquivalentTotalScore","v":0}]
[]
[null,null,"1.",null,"The proposed housing is located in a QCT Community Revitalization Area or a Tribal Equivalent Area"]
[]
[null,null,"To be eligible for the QCT/Community Revitalization criterion, the project must be located in a Qualified Census Tract (See Qualified Census Tract – Reference Materials Index) and be part of a concerted plan that provides for community revitalization consistent with the definition described in the Community Development Initiative selection criterion. \n\n\n"]
[]
[null,null,"To be eligible for the Tribal Equivalent Areas criterion, the project must be located in one of the Tribal Equivalent Areas. Click here."]
[null,null,"Link to find these areas in the community profiles interactive mapping tool"]
[]
[null,"D.","Minority-owned/Women-owned Business Enterprise (MBE/WBE) ",null,null,null,null,null,null,null,null,null,null,null,"3 points",{"$f":"MBEWBETotalScore","v":0}]
[]
[null,null,"1.",null,"The project sponsor, executive director of a non-profit, general contractor, architect, or management agent is a "]
[null,null,null,null,"MBE/WBE*, as certified by the owner. "]
[]
[null,null,"*A MBE/WBE is a tribe or tribally-designated housing entity, tribal corporate entity, or another entity which is at least 51% owned by one or more minority persons or women, and whose management and daily business operations are controlled by one or more minority persons or women who own it."]
[]
["5. Preservation",null,null,null,null,null,null,null,null,null,null,null,null,null,"5 to 30 points",{"$f":"PreservationTotalScore","v":0}]
[null,"Select Preservation under Strategic Priorities to enable checkboxes."]
[null,"IMPORTANT NOTE: DUAL APPLICATION and PRE-APPLICATION REQUIRED.  \nApplicants must submit a dual application, as defined in the Multifamily Application Instructions: Consolidated RFP and HTC Rounds 1 and 2, if the development contains 40 units or more.\n\nApplicant must provide the required Pre-Application by the required Pre-Application due date (30 days, or such later date as may be established by Minnesota Housing) prior to the application deadline for HTC Round 1 or Round 2, as detailed in the Multifamily Customer Portal. Failure to submit all required pre-application materials will result in rejection of the pre-application. Provide Minnesota Housing’s “Preliminary Determination of Preservation Eligibility” letter with the application which should be consistent with threshold and items claimed below."]
[]
[null,null,"Thresholds: Applicants seeking Preservation points should read the descriptions and then select one of the following \nthree Thresholds:"]
[]
[null,null,"Projects must select one of the three Risk of Loss thresholds below to activate options in Preservation Selection Priority."]
[]
[null,null,"1.",null,"Risk of Loss Due to Market Conversion"]
[]
[null,null,null,null,"a.","Expiration of contract/use-restrictions"]
[null,null,null,null,null,"i.","Existing property at risk of conversion to market rate housing within five years of application date, and conversion is not prohibited by existing financing or use restrictions; OR"]
[null,null,null,null,null,"ii.","Existing tax credit developments eligible to exercise their option to file for a Qualified Contract, and have not previously exercised their option; AND"]
[null,null,null,null,"b.","Market for conversion evidenced by low physical vacancy rate (4% or lower) for market rate comparable units (comparable units to be validated by Minnesota Housing at Minnesota Housing’s discretion); AND"]
[null,null,null,null,"c.","Market for conversion evidenced by one or more of the following:"]
[null,null,null,null,null,"i.","An appraisal commissioned by Minnesota Housing within a year of the application date where the as-is unrestricted value is equal to or greater than the as-is restricted value; OR"]
[null,null,null,null,null,"ii.","For properties with Section 8 contracts, a Rent Comparability Study acceptable to Minnesota Housing staff and reviewers which was completed within a year of the application date that shows current rents are below comparable market rents; OR"]
[null,null,null,null,null,"iii.","A market study approved by Minnesota Housing completed within a year of the application date that shows current rents are below comparable market rents and that the property has comparable location, amenities and condition to convert to market rate; AND"]
[null,null,null,null,"d.","Fifteen (15) or more years have passed since the award of the existing federal assistance and the tax credit placed in service date (if applicable) for projects claiming Existing Federal Assistance, or 15 years must have passed since the closing of the loan that created rent and income restrictions or the most recent tax credit placed in service date for projects claiming Critical Affordable Units."]
[]
[null,null,null,null,"NOTE: Minnesota Housing, at its sole discretion, must agree that a market exists for a conversion to market rate housing. "]
[]
[null,null,"2.",null,"Risk of Loss Due to Critical Physical Needs"]
[]
[null,null,null,null,"a.","Fifteen (15) or more years have passed since the award of the Existing Federal Assistance and the tax credit placed in service date (if applicable) for projects claiming Existing Federal Assistance, or 15 years must have passed since the closing of the loan that created rent and income restrictions or the most recent tax credit placed in service date for projects claiming Critical Affordable Units; AND"]
[null,null,null,null,"b.","Critical physical needs identified by third party assessment to support the following conclusions:"]
[null,null,null,null,null,"i.","Repair/replacement of major physical plant components have been identified that will result in 15+ years sustained operations; AND"]
[null,null,null,null,null,"ii.","Identified scope of critical physical needs exceeds the available reserves by at least $5,000 per unit, as evidenced by the Three Year Critical Needs Model; "]
[]
[null,null,null,null,"NOTE:  Minnesota Housing will conduct an inspection of the development and must agree with applicant on scope of work, severity, levels and cost estimates."]
[]
[null,null,"3.",null,"Risk of Loss Due to Ownership Capacity/Program Commitment"]
[]
[null,null,null,null,"a.","Fifteen (15) or more years have passed since the award of the Existing Federal Assistance and the tax credit placed in service date (if applicable) for projects claiming Existing Federal Assistance, or 15 years must have passed since the closing of the loan that created rent and income restrictions or the most recent tax credit placed in service date for projects claiming Critical Affordable Units; AND"]
[null,null,null,null,"b.","One of four conditions exist:"]
[null,null,null,null,null,"i.","Existing conditions created by the current owner such as bankruptcy, insolvency, default, foreclosure action, unpaid taxes and assessments, on-going lack of compliance with lenders or terms of federal assistance, or self-determination by non-profit board are severe enough to put the property at significant risk of not remaining decent, safe and affordable. Ownership must be transferred to an unrelated party;  OR "]
[null,null,null,null,null,"ii.","The property has been or will be acquired from an unrelated party within three years of the application date after being offered for sale on the open market after an opt-out notice for the HAP contract had been submitted to Minnesota Housing; OR"]
[null,null,null,null,null,"iii.","The property has been or will be acquired from an unrelated party within 3 years of the application date as a result of a PARIF Right of First Refusal being exercised; OR"]
[null,null,null,null,null,"iv.","The acquisition of a property with USDA Rural Development rental assistance has occurred or will occur when the current or previous owner intends or intended to allow the existing USDA Rural Development mortgage to mature, and has turned down offers from USDA Rural Development to reamortize the mortgage.  Must apply within five years of maturity date and within three years of acquisition."]
[]
[null,null,"NOTE: Minnesota Housing, at its sole discretion, must agree that a change in ownership is necessary for units to remain decent, safe or affordable."]
[]
[null,null,"For projects meeting one of the three thresholds above, choose either Existing Federal Assistance or Critical Affordable Units at Risk of Loss below."]
[]
[]
[null,null,"Criteria:"]
[]
[null,null,"1.","Existing Federal Assistance:",null,null,null,null,null,null,null,null,null,null,"5 to 30 points"]
[null,null,null,"Definition: Any housing receiving project-based rental assistance or operating subsidies under a U.S. Department of Housing and Urban Development (HUD), U.S. Department of Agriculture Rural Development (RD), NAHASDA or other program that is not scheduled to sunset or expire. Properties that have converted their type of federal rental assistance through the Rental Assistance Demonstration program, Component 2 (RAD 2), and RAD for Project Rental Assistance Contracts (PRAC) are eligible. Such assistance must have been committed to the property 15 years prior to the year of application. \n\nOwner will continue renewals of existing project based housing subsidy payment contract(s) for as long as the assistance is available. Except for “good cause,” the owner will not evict existing subsidized residents and must continue to renew leases for those residents. Developments with qualified Existing Federal Assistance and which have secured additional federal rental assistance (including through an 8bb transfer) should count the total number of assisted units below. Such units are not eligible to be counted under Rental Assistance. "]
[]
[null,null,null,"Select an option from either a. or b. below.",null,null,null,null,null,null,null,null,null,null,null,null,"Number of units"]
[]
[null,null,null,"a.","Existing Federally Assisted Units:"]
[]
[null,null,null,null,"i.",null,"100% of units are federally assisted",null,null,null,null,null,null,null,"30 points"]
[]
[null,null,null,null,"ii.",null,"75.01% - 99.99% of units are federally assisted ",null,null,null,null,null,null,null,"22 points"]
[]
[null,null,null,null,"iii.",null,"50.01 - 75% of units are federally assisted",null,null,null,null,null,null,null,"15 points"]
[]
[null,null,null,null,"iv.",null,"25.01% - 50% of units are federally assisted",null,null,null,null,null,null,null,"10 points"]
[]
[null,null,null,null,"v.",null,"Less than 25% of units are federally assisted",null,null,null,null,null,null,null,"5 points"]
[]
[null,null,null,"b.","Partially assisted projects with Existing Federally Assisted Units in Economic Integration census tracts:"]
[]
[null,null,null,null,"i.",null,"75.01 - 99.99% of units are federally assisted",null,null,null,null,null,null,null,"30 points"]
[]
[null,null,null,null,"ii.",null,"25.01 - 75% of units are federally assisted ",null,null,null,null,null,null,null,"20 points"]
[]
[null,null,null,null,"iii.",null,"Less than 25% of units are federally assisted",null,null,null,null,null,null,null,"10 points"]
[]
[null,"OR"]
[]
[null,null,"2.","Critical Affordable Units at Risk of Loss  ",null,null,null,null,null,null,null,null,null,null,"6 points"]
[]
[null,null,null,"a.",null,"Any housing with a current recorded deed restriction limiting rent or income restrictions at or below the greater of",null,null,null,null,null,null,null,null,"6 points"]
[null,null,null,null,null,"80% of statewide median income or area median income. Includes existing public housing units, including converting through Rental Assistance Demonstration Program, Component 1 (RAD 1), tax credit units, Rural Development funded units without rental assistance and Existing Federal Assistance not described in paragraph 1. above (e.g., 202, 236) or other programs limiting income and rent restrictions as stated above. "]
[null,null,null,null,"AND"]
[null,null,null,null,null,"You must also claim and be eligible under Serves Lowest Income Tenants/Rent Reduction criterion unless the project is a RAD 1 conversion with 50% or more of the units covered by a section 8 rental assistance contract."]
[]
["6. Efficient Use of Scarce Resources and Leverage",null,null,null,null,null,null,null,null,null,null,null,null,null,"0 to 38 points",{"$f":"EfficientUseOfScareResourcesTotalScore","v":0}]
[null,"A.","Financial Readiness to Proceed/Leveraged Funds",null,null,null,null,null,null,null,null,null,null,null,"0 to 16 points",{"$f":"FinancialReadinessTotalScore","v":0}]
[]
[null,null,"1.","Applicants who have secured funding commitments for one or more permanent capital funding sources at the time of application, except commitments for funding from Minnesota Housing and Funding Partners (i.e., Greater Minnesota Housing Fund, Metropolitan Council Local Housing Incentive Account) are only included if obtained in a previous funding cycle/round.  \nAll capital funding sources must be counted in this criterion.\n\n\n\n"]
[]
[null,null,"2.","Calculate your total using the formula below. The calculation must exclude first mortgage financing and any anticipated proceeds from the current tax credit request."]
[]
[null,null,null,"Total eligible funding secured, awarded or committed (excluding first mortgage financing net of the Tax Increment Financing (TIF) portion, if applicable, any anticipated proceeds from the current tax credit request, and sales tax rebate*) divided by Total Development Cost (excluding first mortgage financing net of the Tax Increment Financing (TIF) portion, if applicable, any anticipated proceeds from the current tax credit request, and sales tax rebate) equals Percentage of Funds Committed (round to nearest tenth):"]
[null,null,null,"Calculate your total by entering values in the shaded fields. This will result in the selection of the appropriate option based on \nthe values entered."]
[]
[null,null,null,null,null,null,null,null,null,null,null,"="]
[null,null,null,null,null,null,null,null,"Total eligible funding secured, awarded or committed*",null,"Total Development Cost*",null,"Percentage of funds Committed (rounded to the nearest tenth)"]
[null,null,null,null,null,null,"a.",null,"70% or more of funding secured, awarded or committed**",null,null,null,null,null,"16 points"]
[null,null,null,null,null,null,"b.",null,"60% to 69.9% of funding secured, awarded or committed",null,null,null,null,null,"14 points"]
[null,null,null,null,null,null,"c.",null,"50% to 59.9% of funding secured, awarded or committed",null,null,null,null,null,"12 points"]
[null,null,null,null,null,null,"d.",null,"40% to 49.9% of funding secured, awarded or committed",null,null,null,null,null,"10 points"]
[null,null,null,null,null,null,"e.",null,"30% to 39.9% of funding secured, awarded or committed",null,null,null,null,null,"8 points"]
[null,null,null,null,null,null,"f.",null,"20% to 29.9% of funding secured, awarded or committed",null,null,null,null,null,"6 points"]
[null,null,null,null,null,null,"g.",null,"10% to 19.9% of funding secured, awarded or committed",null,null,null,null,null,"4 points"]
[null,null,null,null,null,null,"h.",null,"9.9% and below of funding secured, awarded or committed",null,null,null,null,null,"0 points"]
[]
[null,null,null,"*","Sales tax rebate, for the purpose of this scoring category, should be calculated as 40% of the construction contract amount multiplied by the local tax rate for the area where the project is located."]
[null,null,null,"**","Projects that have both a numerator and denominator equal to zero are eligible to claim 70% or more of funding secured, awarded or committed. NOTE: Zero must be entered in both the numerator and denominator fields in order to result in the selection of option a."]
[]
[null,null,"The documentation must be in the form of a project specific Letter of Intent, city or council resolution, letter of approval, or statement of agreement or eligibility. Commitment documentation must state the amount, terms and conditions and be executed or approved by the lender or contributor and the applicant. Documentation containing words synonymous with “consider” or “may,” (as in “may award”) regarding the commitment will not be acceptable."]
[]
[null,null,"Financial Readiness/Leverage Funding Commitments include:"]
[null,null,"\u009f","Syndication proceeds due to previously awarded tax credits: Syndication proceeds from tax credits awarded in a previous cycle/round may be included if verification is included in the application. Acceptable verification is an executed syndicator agreement or executed Letter of Intent from the syndicator that is acceptable to Minnesota Housing. The executed Letter of Intent must:"]
[null,null,null,"◦","Be current within 15 days of submission of the application"]
[null,null,null,"◦","Contain a projected closing date for the development"]
[null,null,null,"◦","Contain a projected equity price for the purchase of the credit"]
[null,null,null,"◦","Contain a detailed explanation of the assumptions being used by the syndicator to arrive at the projected equity price"]
[null,null,"\u009f","Monetary grants/donations"]
[null,null,"\u009f","Amortizing first mortgage incorporates tax abatement  for properties with a first mortgage"]
[null,null,"\u009f","Tax Increment Financing (TIF): Provide satisfactory documentation that the contribution is committed to the development at the time of application, including a letter from the city and a city council resolution, indicating its intention to provide TIF assistance and the anticipated amount and term. The documentation should include the TIF analysis from the city or its consultant."]
[null,null,"\u009f","Deferred loans with a minimum 30-year term with an interest rate at or below the Applicable Federal Rate (AFR)"]
[null,null,"\u009f","Grants from nonprofit charitable organizations converted to deferred loans with a minimum 30-year term that is with an interest rate at or below the AFR. Award letter from the nonprofit charitable organization contributor must be provided at the time of application verifying the contribution. Documentation must evidence that the contribution is restricted for housing development uses and the contribution must be included as a development source."]
[null,null,"\u009f","Historic Tax Credits: In addition to the commitment documentation, at the time of application provide written documentation of eligibility through evidence of Historic Register listing or approval of Part 1—Evaluation of Significance."]
[null,null,"\u009f","Funder commitments to modify existing debt including: approval of assumption of debt and extension of loan term; commitments must contain no contingencies other than receipt of a tax credit award. At the time of application, written documentation of approval from the funder clearly demonstrating that the approval is for the re-syndication/receipt of new deferred or tax credit award, justifying the amount and the terms of the contribution must be provided."]
[null,null,"\u009f","Deferred developer fee: The applicant must provide the required commitment documentation and provide evidence of repayment within 10 years by the projected cash flow."]
[]
[null,null,"NOTE:  Financial Readiness to Proceed/Leveraged Funds and Other Contributions selection criteria cannot be claimed for the same sources."]
[]
[null,"B.","Other Contributions",null,null,null,null,null,null,null,null,null,null,null,"0 to 10 points",{"$f":"OtherContributionsTotalScore","v":0}]
[]
[null,null,"1.","For projects that receive non-capital contributions referenced below from the federal government; a local unit of government; an area employer; and/or a private philanthropic, religious or charitable organization. Calculate your total using the formula below.\n\nIdentity of Interest exclusion: Contributions from any part of the ownership entity will be considered general partner cash and excluded from the calculation unless the contributions are awarded by 1) nonprofit charitable organizations pursuant to a funding competition; 2) local units of government; or 3) tribal governments or tribally designated housing entities.\n\nTotal “Other” non-funding contributions from federal/local/philanthropic sources divided by Total Development Cost equals Other Contributions (rounded to the nearest tenth):"]
[null,null,null,"Calculate your total by entering values in the shaded fields. This will result in the selection of the appropriate option based \non the values entered."]
[]
[]
[null,null,null,null,null,null,null,null,null,"/",null,"=",{"$f":"IF(DevOtherContributionsDevelopmentCost=0,0, ROUND(DevOtherContributionsFunding/DevOtherContributionsDevelopmentCost,3))","v":0}]
[null,null,null,null,null,null,null,null,"Total \"Other\" non-funding contributions",null,"Total Development Cost",null,"Percentage of Other Funds Committed (rounded to the nearest 10th)"]
[null,null,null,null,null,null,"a.",null,"20.1% and above",null,null,null,null,null,"10 points"]
[null,null,null,null,null,null,"b.",null,"15.1 to 20% ",null,null,null,null,null,"8 points"]
[null,null,null,null,null,null,"c.",null,"10.1 to 15% ",null,null,null,null,null,"6 points"]
[null,null,null,null,null,null,"d.",null,"5.1 to 10% ",null,null,null,null,null,"4 points"]
[null,null,null,null,null,null,"e.",null,"2.1 to 5% ",null,null,null,null,null,"2 points"]
[null,null,null,null,null,null,"f.",null,"0 to 2 % ",null,null,null,null,null,"0 points"]
[]
[null,null,"At the time of application, written documentation from the contributor justifying the amount and the terms of the contribution must be provided and be consistent with current market comparable costs. The documentation must be in the form of a project specific Letter of Intent, city or council resolution, letter of approval, statement of agreement or eligibility, or memorandum of understanding. \n\nThe documentation must state the amount, terms and conditions and must be executed or approved, at a minimum, by the contributor. Documentation containing words synonymous with “consider” or “may” (as in “may award”) regarding the contribution will not be acceptable. Lack of acceptable documentation will result in the reevaluation and adjustment of the tax credits or RFP award, up to and including the total recapture of tax credits or RFP funds.\n\nOther Contributions include:"]
[null,null,"\u009f","Land donation or city write-down of the development site.  Documentation used to determine the market value must be submitted.  This could include an appraisal, assessment information, broker opinion with comparable properties, or other data deemed acceptable by Minnesota Housing."]
[null,null,"\u009f","In-kind work and materials donated at no cost"]
[null,null,"\u009f","Local government donation/waiver of project specific costs, assessments or fees (e.g., SAC/WAC)"]
[null,null,"\u009f","Reservation land not subject to local property taxes (calculate net present value (NPV) by using NPV discounted by applicable federal rate (AFR) for the term of the LURA)"]
[null,null,"\u009f","Reservation land with long-term low cost leases"]
[null,null,"\u009f","Funder commitments to modify existing debt including: debt forgiveness; forgiveness of interest payable; reduction in interest rate (measured as amount of interest saved over term of loan). Commitments must contain no contingencies other than receipt of a tax credit award. At the time of application, written documentation from the funder justifying the amount and the terms of the contribution must be provided."]
[null,null,"\u009f","Tax Increment Financing (TIF) (calculate the net present value (NPV) by using NPV discounted by applicable federal rate (AFR) for the term of the TIF loan).  Provide satisfactory documentation that the contribution is committed to the development at the time of application, including a letter from the city and a city council resolution, indicating its intention to provide TIF assistance and the anticipated amount and term.  The documentation should include the TIF analysis from the city or its consultant."]
[null,null,"\u009f","Tax abatement (calculate net present value (NPV) by using NPV discounted by applicable federal rate (AFR) for 30 years)."]
[]
[null,null,"NOTE:  Financial Readiness to Proceed/Leveraged Funds and Other Contributions selection criteria cannot be claimed for the same sources."]
[]
[null,"C.","Intermediary Costs",null,null,null,null,null,null,null,null,null,null,null,"0 to 6 points",{"$f":"IntermediaryCostsTotalScore","v":0}]
[]
[null,null,"1.","Intermediary costs are third-party service costs related to the project development.  Excluded costs are Park Dedication Fees, Surveys, Soil Borings, Payment and Performance Bond Premium, Sewer-Water Access Charge, Furnishing and Equipment, and Hazard and Liability Insurance.\n\nProjects with the lowest intermediary costs on a sliding scale based on percentage of total development costs. For selected projects, this percentage will be enforced at the time of closing for deferred loans or at issuance of the IRS Form 8609 for HTC developments. Calculate your total using the formula below.\n\nIntermediary cost amount divided by Total Development Costs Equals Intermediary Percentage (rounded to the nearest tenth):"]
[]
[null,null,null,"Calculate your total by entering values in the shaded fields. This will result in the selection of the appropriate option based on the values entered."]
[]
[null,null,null,null,null,null,null,null,null,"/",null,"=",{"$f":"IF(DevIntermediaryDevelopmentCost=0,0,ROUND(DevIntermediaryCosts/DevIntermediaryDevelopmentCost,3))","v":0}]
[null,null,null,null,null,null,null,null,"Intermediary Cost Amount",null,"Total Development Cost",null,"Intermediary Percentage (rounded to the nearest tenth)"]
[null,null,null,null,null,null,"a.",null,"0.0 to 15% ",null,null,null,null,null,"6 points"]
[null,null,null,null,null,null,"b.",null,"15.1 to 20% ",null,null,null,null,null,"3 points"]
[null,null,null,null,null,null,"c.",null,"20.1 to 25% ",null,null,null,null,null,"2 points"]
[null,null,null,null,null,null,"d.",null,"25.1 to 30% ",null,null,null,null,null,"1 point"]
[null,null,null,null,null,null,"e.",null,"30.1% and over ",null,null,null,null,null,"0 points"]
[]
[null,"D.","Cost Containment",null,null,null,null,null,null,null,null,null,null,null,"6 points",{"$f":"CostContainmentTotalScore","v":0}]
[]
[null,null,"1.",null,"Proposals will receive points based on the cost containment methodology. For each of the four competition groups, the cost  per unit"]
[null,null,null,null,"at the 50th percentile in Round 1 will determine the cut-off point or threshold for receiving points for 4% tax credits."]
[null,null,"1.",null,"50% of developments with the lowest costs within each development type/location group will receive priority (subject to the methodology "]
[null,null,null,null,"described in Cost Containment Methodology). \n\nApplicants may claim this criterion and Minnesota Housing will review costs for all applications to confirm eligibility in the funding round. \n\nA different process occurs for the second round of 9% tax credit selections. For each of the four competition groups, the cost per unit of the proposal at the 50th percentile in Round 1 will determine the cut-off point or threshold for receiving points in Round 2."]
[]
[null,null,"NOTE: Proposals that believe they have contained their costs should select this criterion. Only proposals that claim cost containment and are awarded through the process described above will be eligible for cost containment."]
[null,null,"CAUTION: If a project receives points under this criterion, failure to keep project costs under the applicable cost threshold will be considered an unacceptable practice and will result in negative four points being awarded in all of the applicant’s tax credit submissions in the next funding round in which submissions are made. The penalty will be assessed to an application submitted to the same funding round (Competitive or 4% Only) for which the points were initially awarded. Tax credit developments awarded points via the 4% Only allocation process will receive a penalty if the points were necessary to meet the minimum point requirement. If developers are concerned about their costs and keeping them within the “applicable cost threshold,” they should not claim the cost-containment points. \n"]
[null,null,"CAUTION: If a project receives points under this criterion, failure to keep project costs under the applicable cost threshold will be considered an unacceptable practice and will result in negative four points being awarded in all of the applicant’s tax credit submissions in the next funding round in which submissions are made. The penalty will be assessed to an application submitted to the same funding round (Competitive or 4% Only) for which the points were initially awarded. If developers are concerned about their costs and keeping them within the “applicable cost threshold,” they should not claim the cost-containment points. \n"]
[]
[null,null,"Link to Cost Containment Methodology "]
[]
["7. Building Characteristics",null,null,null,null,null,null,null,null,null,null,null,null,null,"1 to 4 points",{"$f":"BuildingCharacteristicsTotalScore","v":0}]
[null,"A.","Universal Design",null,null,null,null,null,null,null,null,null,null,null,"3 points",{"$f":"UniversalDesignTotalScore","v":0}]
[]
[null,null,"1.","A unit that includes all Minimum Essential Universal Design Features below, along with eight Optional Features for units in a new construction or adaptive re-use project, and four Optional Features for units in a rehabilitation project. Type A accessible units (as referenced in Minnesota Housing’s Rental Housing Design and Construction Standards) also meet the definition of a Universal Design unit."]
[]
[null,null,null,"Select one:",null,null,null,null,null,null,null,null,null,null,null,null,"Number of Units"]
[]
[null,null,null,"a.",null,"An elevator building with 100% of assisted units meeting the definition of a Universal Design Unit OR",null,null,null,null,null,null,null,null,"3 points"]
[]
[null,null,null,"b.",null,"A non-elevator building with at least 10% of assisted units meeting the definition of a Universal Design Unit",null,null,null,null,null,null,null,null,"3 points"]
[]
[]
[]
[null,null,"Minimum Essential Universal Design Features: "]
[null,null,"\u009f","At least one bedroom or space that can be converted to a bedroom (without changing door locations for new construction or adaptive re-use) on an accessible level and connected to an accessible route, or efficiency units (without a bedroom) on an accessible level and connected to an accessible route"]
[null,null,"\u009f","42” minimum hallways within a unit for new construction or adaptive re-use"]
[null,null,"\u009f","At least one three quarter bathroom on an accessible level with five foot open radius for new construction or adaptive re-use, and clear floor space of 30” x 48” for rehabilitation"]
[null,null,"\u009f","Lever handles on all doors and fixtures"]
[null,null,"\u009f","Provide wall blocking in all tub and shower areas for new construction or adaptive re-use, and for rehabilitation if showers are being replaced"]
[null,null,"\u009f","Door thresholds flush with the floor with maximum threshold height of ½” beveled or ¼”square edged"]
[null,null,"\u009f","Kitchen and laundry appliances have parallel approach clear floor space with all controls within maximum height of 48”. Range controls must have lockout feature. Stackable laundry units with a maximum reach range of 54” will meet this requirement"]
[null,null,"\u009f","Kitchen sink area 30” wide minimum with cabinet panel concealing piping or a removable base cabinet"]
[null,null,"\u009f","All common spaces and amenities provided in the housing development located on an accessible route"]
[null,null,"\u009f","For new construction or adaptive re-use projects, deck and patio spaces must have a step-less transition meeting door threshold requirements above, with decking gaps no greater than ¼”.  A step-less transition and door threshold meeting requirements as promulgated by Minnesota Accessibility Code for Type A units is also permitted."]
[null,null,"\u009f","Universal Design features are incorporated in an aesthetic, marketable, non-institutional manner"]
[]
[null,null,"Optional Features:"]
[null,null,"\u009f","High contrast finish selections that include floor to wall transitions, top treads of stairs, counters and adjacent flooring and walls"]
[null,null,"\u009f","Single lever, hands free or touch faucets"]
[null,null,"\u009f","At least 50% of kitchen storage space within reach range. This can include pull-out shelves, full extension glide drawers or pantry design"]
[null,null,"\u009f","A variety of work surface heights in kitchen and one five foot open radius"]
[null,null,"\u009f","Roll under vanity or sink in 25% of Universal Design qualifying units, rounded up to the nearest whole number"]
[null,null,"\u009f","Cabinet hardware with “D” type pull handles or operation for people with limited dexterity"]
[null,null,"\u009f","Zero threshold shower or transfer space at tub is provided for minimum of half the qualifying Universal Design units, rounded up to the nearest whole number"]
[null,null,"\u009f","Slip resistant flooring in kitchens and baths"]
[null,null,"\u009f","Toilets provided with seats 17”– 19” from the floor"]
[null,null,"\u009f","Windows are provided with maximum sill height of 36”, parallel clear floor space and locks/operating mechanism within 48” and easily operable with one hand. Sidelight or view window at main entry door from a seated position"]
[null,null,"\u009f","Thermostats designed for visually impaired or ability to monitor and operate with electronic device such as a tablet computer"]
[null,null,"\u009f","Closet storage is adjustable in a majority of the closets provided"]
[null,null,"\u009f","Audio/visual doorbell"]
[null,null,"\u009f","Covered entry with adequate lighting and interior or exterior bench space for parcels or groceries"]
[null,null,"\u009f","Lettering and numbering with all characters and symbols contrasting with their background"]
[null,null,"\u009f","Parking spaces provided for at least 50% of Universal Design qualifying units, rounded up to the nearest whole number, with a five foot wide adjacent auxiliary space connected to accessible route"]
[null,null,"\u009f","Residential elevator or chair lift space structured for future use in multiple level homes"]
[null,null,"\u009f","Enterprise Green Communities Model Specifications are used for applicable sections for the Universal Design qualifying units"]
[null,null,"\u009f","On-site physical activity is provided for in a fitness area, biking or walking path or community garden"]
[null,null,"\u009f","Other modifications that make units livable for disabled populations, as demonstrated by credible evidence provided in the application, and at the sole discretion of Minnesota Housing"]
[]
[null,"B.","Smoke Free Buildings",null,null,null,null,null,null,null,null,null,null,null,"1 point",{"$f":"SUM('Named Ranges'!AN176)","v":0}]
[]
[null,null,null,"The projects will institute and maintain a written policy* prohibiting smoking in all the units and all common areas within"]
[null,null,null,"the building/s of the project. The project must include a non-smoking clause in the lease for every household. Projects awarded a point in this scoring criteria will be required to maintain the smoke-free policy for the term of the declaration. "]
[]
[null,null,"*","The written policy must be submitted with the application and should include procedures regarding transitioning to smoke-free for existing residents and establishment of smoking areas outside of units and common areas if applicable. Consequences for violating the smoke-free policy are determined by the owner but must be included in the written policy."]
[]
["8. Unacceptable Practices",null,null,null,null,null,null,null,null,null,null,null,null,null,"-4 to -25 points",{"$f":"UnacceptablePracticesTotalScore","v":0}]
[]
[null,null,null,"Minnesota Housing will impose penalty points for unacceptable practices as identified in Chapter 2.G. of the HTC"]
[null,null,null,"Program Procedural Manual."]
[]
["Total Points",null,null,null,null,null,null,null,null,null,null,null,null,null,null,{"$f":"TotalPoints","v":0}]
[]
[]
["Signatures"]
[]
["Under penalty of perjury, owner hereby certifies the information provided herein is true and accurate."]
[]
[]
[null,"Name of Owner"]
[]
[null,"By (Signature)"]
[]
[null,"Of (Name of Legal Entity)"]
[]
[null,"Its (Title) (Managing General Partner)"]
[]
[null,"Print or Type Name of Signatory:"]
[]
["NOTE: During the competition process, Minnesota Housing’s review of the submitted Self-Scoring Worksheet is only to validate that the points claimed are eligible, to reduce points claimed if not eligible, and to determine points awarded. Minnesota Housing will not award additional points that are not initially claimed by the applicant/owner. Many performance obligations are created by the claiming of certain scoring points. As such, Minnesota Housing will not assume the position of creating any such performance obligations on behalf of the applicant/owner. In addition, applications funded under the Joint Powers Agreement must also comply with the suballocators' selection criteria defined in their Qualified Allocation Plan."]

{"sheet":"Named Ranges","index":2,"n_rows":182,"n_cols":41,"rows_kept":182,"cut":false,"hidden":true,"merged":[]}
["Display Order","Deferred Only","SCTN_TMPLT_SEQ_ID_Deffered","HTC4 and Deferred","SCTN_TMPLT_SEQ_ID_HTCandDeferred","HTC4","SCTN_TMPLT_SEQ_ID_HTC4","QSTN_TMPLT_SEQ_ID_Deffered","QSTN_TMPLT_SEQ_ID_HTC4andDEF","QSTN_TMPLT_SEQ_ID_HTC4","QSTN_DSP_ORD","SCTN_TMPLT_DSP_ORD","SCTN_TMPLT_NM","SCTN_TMPLT_TYP_CD","Header","Main Section","Sub Sect 1","Sub Sect 2","Sub Sect 3","SubFormHeader","SubTotal","SubFormHeaderTotal","ValidationTotal","QSTN_TMPLT_INCL_SUB_TOT_VAL","QSTN_TMPT_DFRR_OVLP_IND","QSTN_TMPLT_DFRR_OVLP_SCR_NUM","QSTN_TMPLT_RVW_LVLS","QSTN_TMPLT_DATA_VALID","QSTN_TMPLT_CNTRL_TYP","QSTN_TMPT_SCR_TYP_CD","QSTN_TMPLT_MIN_NUM_UNITS","Checkbox Name","QSTN_TMPLT_FRMT_CD","QSTN_TMPLT_SCALE_NUM","Named Range for Values","Values","SCTN_TMPLT_MIN_NUM_SCR_VAL","SCTN_TMPLT_MAX_NUM_SCR_VAL","Question Points",null,false]
[1,501217359,null,null,null,null,null,null,null,null,null,1,"Round 1 - Minimum Threshold Requirements","MAIN_SECT","Round 1 - Minimum Threshold Requirements",null,null,null,null,true]
[2,501217359,508600498,null,null,null,null,null,null,null,null,2,"Strategic Priority Thresholds","MAIN_SECT","Strategic Priority Thresholds",null,null,null,null,null,null,null,null,null,null,null,null,null,null,null,null,null,null,null,""]
[3,501217359,508600498,null,null,null,null,508620394,null,null,1,null,null,null,null,null,null,null,null,null,null,null,null,null,null,null,null,"'True'; 'False'",111,"CHECKBOX",null,"ckSPTAccessToFixedTransit","Boolean",null,"SPTAccessToFixedTransit",false]
[4,501217359,508600498,null,null,null,null,508620395,null,null,2,null,null,null,null,null,null,null,null,null,null,null,null,null,null,null,null,"'True'; 'False'",111,"CHECKBOX",null,"ckSPTGreaterMNWorkforceHsg","Boolean",null,"SPTGreaterMNWorkforceHsg",false]
[5,501217359,508600498,null,null,null,null,508620396,null,null,3,null,null,null,null,null,null,null,null,null,null,null,null,null,null,null,null,"'True'; 'False'",111,"CHECKBOX",null,"ckSPTEconomicIntegration","Boolean",null,"SPTEconomicIntegration",false]
[6,501217359,508600498,null,null,null,null,508620397,null,null,4,null,null,null,null,null,null,null,null,null,null,null,null,null,null,null,null,"'True'; 'False'",111,"CHECKBOX",null,"ckSPTTribal","Boolean",null,"SPTTribal",false]
[7,501217359,508600498,null,null,null,null,508620398,null,null,5,null,null,null,null,null,null,null,null,null,null,null,null,null,null,null,null,"'True'; 'False'",111,"CHECKBOX",null,"ckSPTPlannedCommunity","Boolean",null,"SPTPlannedCommunity",false]
[8,501217359,508600498,null,null,null,null,508620399,null,null,6,null,null,null,null,null,null,null,null,null,null,null,null,null,null,null,null,"'True'; 'False'",111,"CHECKBOX",null,"ckSPTPreservation","Boolean",null,"SPTPreservation",false]
[9,501217359,508600498,null,null,null,null,508620400,null,null,7,null,null,null,null,null,null,null,null,null,null,null,null,null,null,null,null,"'True'; 'False'",111,"CHECKBOX",null,"ckSPTSupportiveHsg","Boolean",null,"SPTSupportiveHsg",false]
[10,501217359,508600499,501217358,508600450,501217357,508600405,null,null,null,null,3,"2019 Housing Tax Credit Selection Criteria","MAIN_SECT","2019 Housing Tax Credit Selection Criteria",null,null,null,null,true]
[11,501217359,508600500,501217358,508600451,501217357,508600406,null,null,null,null,4,"Greatest Need Tenant Targeting","SUB_SECT_2",null,"Greatest Need Tenant Targeting",null,null,null,null,true,true,null,null,null,null,null,null,null,null,null,null,null,null,null,null,5,39,null,null,{"$f":"SUM(AN14:AN34)","v":0}]
[12,501217359,508600501,501217358,508600452,501217357,508600407,null,null,null,null,5,"Large Family Housing","SUB_SECT_3",null,null,"Large Family Housing",null,null,null,true,null,true,null,null,null,null,null,null,null,null,null,null,null,null,null,5,7,null,null,{"$f":"SUM(AN14:AN18)","v":0}]
[13,501217359,508600501,501217358,508600452,501217357,508600407,508620401,508620515,508620635,8,null,null,null,null,null,null,null,null,null,null,null,null,null,null,5,null,"0 Or Is Null Or 2",109,"CHECKBOX",null,"ckLargeFamily2Bedroom","Boolean",null,"LargeFamily2Bedroom",false,null,null,{"$f":"IF(HTCOnlyScoresheet=TRUE,10, 5)","v":5},{"$f":"IF(LargeFamily2Bedroom=TRUE, AM14,0)","v":0}]
[14,501217359,508600501,501217358,508600452,501217357,508600407,508620402,508620516,508620636,9,null,null,null,null,null,null,null,null,null,null,null,null,null,null,null,1,null,109,"UNITS_VAL",null,null,"Fixed",0,"LargeFamilyHousing2BedroomUnitsValue",{"$f":"DevLargeFamilyHousing2BedroomUnitsValue","v":0}]
[15,501217359,508600501,501217358,508600452,501217357,508600407,508620403,508620517,508620637,10,null,null,null,null,null,null,null,null,null,null,null,null,null,null,null,1,null,109,"UNITS_VAL",null,null,"Fixed",0,"LargeFamilyHousing3BedroomUnitsValue",{"$f":"DevLargeFamilyHousing3BedroomUnitsValue","v":0}]
[16,501217359,508600501,501217358,508600452,501217357,508600407,508620404,508620518,508620638,11,null,null,null,null,null,null,null,null,null,null,null,null,null,null,null,1,null,109,"UNITS_VAL",null,null,"Fixed",0,"LargeFamilyHousing4BedroomUnitsValue",{"$f":"DevLargeFamilyHousing4BedroomUnitsValue","v":0}]
[17,501217359,508600501,501217358,508600452,501217357,508600407,508620405,508620519,508620639,12,null,null,null,null,null,null,null,null,null,null,null,null,null,null,2,null,null,109,"CHECKBOX",null,"ckLargeFamily3Bedroom","Boolean",null,"LargeFamily3Bedroom",false,null,null,{"$f":"IF(HTCOnlyScoresheet=TRUE,5, 2)","v":2},{"$f":"IF(LargeFamily3Bedroom=TRUE, AM18,0)","v":0}]
[18,501217359,508600502,501217358,508600453,501217357,508600408,null,null,null,null,6,"Permanent Supportive Housing for High Priority Homeless","SUB_SECT_3",null,null,"Permanent Supportive Housing for High Priority Homeless",null,null,null,true,null,true,null,null,null,null,null,null,null,null,null,null,null,null,null,7,22,null,null,{"$f":"SUM(AN20:AN29)","v":0}]
[19,501217359,508600502,501217358,508600453,501217357,508600408,508620406,508620520,508620640,13,null,null,null,null,null,null,null,null,null,null,null,null,null,null,20,null,"0 Or Is Null Or 20",109,"CHECKBOX",20,"ckSupportiveHousing20Units","Boolean",null,"SupportiveHousing20Units",false,null,null,20,{"$f":"IF(AJ20 = TRUE, AM20, 0)","v":0}]
[20,501217359,508600502,501217358,508600453,501217357,508600408,508620407,508620521,508620641,14,null,null,null,null,null,null,null,null,null,null,null,null,null,null,10,null,"0 Or Is Null Or 10",109,"CHECKBOX",7,"ckSupportiveHousing7Units","Boolean",null,"SupportiveHousing7Units",false,null,null,10,{"$f":"IF(AJ21 = TRUE, AM21, 0)","v":0}]
[21,501217359,508600502,501217358,508600453,501217357,508600408,508620408,508620522,508620642,15,null,null,null,null,null,null,null,null,null,null,null,null,null,null,7,null,"0 Or Is Null Or 7",109,"CHECKBOX",4,"ckSupportiveHousing4Units","Boolean",null,"SupportiveHousing4Units",false,null,null,7,{"$f":"IF(AJ22 = TRUE, AM22, 0)","v":0}]
[22,501217359,508600502,501217358,508600453,501217357,508600408,508620409,508620523,508620643,16,null,null,null,null,null,null,null,null,null,null,null,null,null,null,null,1,null,109,"UNITS_VAL",null,null,"Fixed",0,"SupportiveHousingFamiliesUnitsValue",{"$f":"DevSupportiveHousingFamiliesUnitsValue","v":0}]
[23,501217359,508600502,501217358,508600453,501217357,508600408,508620410,508620524,508620644,17,null,null,null,null,null,null,null,null,null,null,null,null,null,null,null,1,null,109,"UNITS_VAL",null,null,"Fixed",0,"SupportiveHousingYouthWithChildrenUnitsValue",{"$f":"DevSupportiveHousingYouthWithChildrenUnitsValue","v":0}]
[24,501217359,508600502,501217358,508600453,501217357,508600408,508620411,508620525,508620645,18,null,null,null,null,null,null,null,null,null,null,null,null,null,null,null,1,null,109,"UNITS_VAL",null,null,"Fixed",0,"SupportiveHousingYouthUnitsValue",{"$f":"DevSupportiveHousingYouthUnitsValue","v":0}]
[25,501217359,508600502,501217358,508600453,501217357,508600408,508620412,508620526,508620646,19,null,null,null,null,null,null,null,null,null,null,null,null,null,null,null,1,null,109,"UNITS_VAL",null,null,"Fixed",0,"SupportiveHousingSingleAdultUnitsValue",{"$f":"DevSupportiveHousingSingleAdultUnitsValue","v":0}]
[26,501217359,508600502,501217358,508600453,501217357,508600408,508620413,508620527,508620647,20,null,null,null,null,null,null,null,null,null,null,null,null,null,null,2,null,"0 Or Is Null Or 2",109,"CHECKBOX",null,"ckSupportiveHousingPriority","Boolean",null,"SupportiveHousingPriority",false,null,null,2,{"$f":"IF(AJ27 = TRUE, AM27, 0)","v":0}]
[27,501217359,508600502,501217358,508600453,501217357,508600408,508620414,508620528,508620648,21,null,null,null,null,null,null,null,null,null,null,null,null,null,null,null,1,null,109,"UNITS_VAL",null,null,"Fixed",0,"SupportiveHousingPriorityUnitsValue",{"$f":"DevSupportiveHousingPriorityUnitsValue","v":0}]
[28,501217359,508600502,501217358,508600453,501217357,508600408,508620415,508620529,508620649,22,null,null,null,null,null,null,null,null,null,null,null,null,null,null,null,1,"'Families with Children'; 'Youth Singles'; 'Youth with Children';'Single Adults'",111,"UNITS_VAL",null,null,"Fixed",null,"SupportiveHousingPriorityType",{"$f":"DevSupportiveHousingPriorityType","v":""}]
[29,501217359,508600503,501217358,508600454,501217357,508600409,null,null,null,null,7,"People with Disabilities","SUB_SECT_3",null,null,"People with Disabilities",null,null,null,true,null,true,null,null,null,null,null,null,null,null,null,null,null,"",null,7,10,null,null,{"$f":"SUM(AN31:AN33)","v":0}]
[30,501217359,508600503,501217358,508600454,501217357,508600409,508620416,508620530,508620650,23,null,null,null,null,null,null,null,null,null,null,null,null,null,null,10,null,"0 Or Is Null Or 10",109,"CHECKBOX",null,"ckDisabilities15Percent","Boolean",null,"Disabilities15Percent",false,null,null,10,{"$f":"IF(AJ31 = TRUE, AM31, 0)","v":0}]
[31,501217359,508600503,501217358,508600454,501217357,508600409,508620417,508620531,508620651,24,null,null,null,null,null,null,null,null,null,null,null,null,null,null,9,null,"0 Or Is Null Or 9",109,"CHECKBOX",null,"ckDisabilities10Percent","Boolean",null,"Disabilities10Percent",false,null,null,9,{"$f":"IF(AJ32 = TRUE, AM32, 0)","v":0}]
[32,501217359,508600503,501217358,508600454,501217357,508600409,508620418,508620532,508620652,25,null,null,null,null,null,null,null,null,null,null,null,null,null,null,7,null,"0 Or Is Null Or 7",109,"CHECKBOX",4,"ckDisabilities5Percent","Boolean",null,"Disabilities5Percent",false,null,null,7,{"$f":"IF(AJ33 = TRUE, AM33, 0)","v":0}]
[33,501217359,508600503,501217358,508600454,501217357,508600409,508620419,508620533,508620653,26,null,null,null,null,null,null,null,null,null,null,null,null,null,null,null,1,null,109,"UNITS_VAL",null,null,"Fixed",0,"DisabilitiesUnitsValue",{"$f":"DevDisabilitiesUnitsValue","v":0}]
[34,501217359,508600504,501217358,508600455,501217357,508600410,null,null,null,null,8,"Serves Lowest Income for Long Durations","SUB_SECT_2",null,"Serves Lowest Income for Long Durations",null,null,null,null,true,true,true,null,null,null,null,null,null,null,null,null,null,null,"",null,2,49,null,null,{"$f":"SUM(AN36:AN61)","v":0}]
[35,501217359,508600505,501217358,508600456,501217357,508600411,null,null,null,null,9,"Serves Lowest Income Tenants/Rent Reduction","SUB_SECT_3",null,null,"Serves Lowest Income Tenants/Rent Reduction",null,null,null,true,null,null,null,null,null,null,null,null,null,null,null,null,null,"",null,8,13,null,null,{"$f":"SUM(AN37:AN38)","v":0}]
[36,501217359,508600505,501217358,508600456,501217357,508600411,508620420,508620534,508620654,27,null,null,null,null,null,null,null,null,null,null,null,null,null,null,13,null,"0 Or Is Null Or 13",109,"CHECKBOX",null,"ckServesLowestIncOpt1","Boolean",null,"ServesLowestIncOpt1",false,null,null,13,{"$f":"IF(AJ37 = TRUE, AM37, 0)","v":0}]
[37,501217359,508600505,501217358,508600456,501217357,508600411,508620421,508620535,508620655,28,null,null,null,null,null,null,null,null,null,null,null,null,null,null,8,null,"0 Or Is Null Or 8",109,"CHECKBOX",null,"ckServesLowestIncOpt2","Boolean",null,"ServesLowestIncOpt2",false,null,null,8,{"$f":"IF(AJ38 = TRUE, AM38, 0)","v":0}]
[38,501217359,508600505,501217358,508600456,501217357,508600411,508620422,508620536,508620656,29,null,null,null,null,null,null,null,null,null,null,null,null,null,null,null,1,null,109,"UNITS_VAL",null,null,"Fixed",0,"ServesLowestIncUnitsValue",{"$f":"DevServesLowestIncUnitsValue","v":0}]
[39,501217359,508600506,501217358,508600457,501217357,508600412,null,null,null,null,10,"Rental Assistance","SUB_SECT_3",null,null,"Rental Assistance",null,null,null,true,null,null,null,null,null,null,null,null,null,null,null,null,null,"",null,2,26,null,null,{"$f":"SUM(AN42:AN49,AN51:AN56)","v":0}]
[40,501217359,508600507,501217358,508600458,501217357,508600413,null,null,null,null,11,"For developments that agree to set aside units and have the required binding commitment ","SUB_SECT_4",null,null,null,"For developments that agree to set aside units and have the required binding commitment ",null,null,true,null,true,null,null,null,null,null,null,null,null,null,null,null,""]
[41,501217359,508600507,501217358,508600458,501217357,508600413,508620423,508620537,508620657,30,null,null,null,null,null,null,null,null,null,null,null,null,null,null,15,null,"0 Or Is Null Or 15",109,"CHECKBOX",null,"ckRA100PercentUnits","Boolean",null,"RA100PercentUnits",false,null,null,15,{"$f":"IF(AJ42 = TRUE, AM42, 0)","v":0}]
[42,501217359,508600507,501217358,508600458,501217357,508600413,508620424,508620538,508620658,31,null,null,null,null,null,null,null,null,null,null,null,null,null,null,null,1,null,109,"UNITS_VAL",null,null,"Fixed",0,"RA100PercentUnitsValue",{"$f":"DevRAUnitsValue","v":0}]
[43,501217359,508600507,501217358,508600458,501217357,508600413,508620425,508620539,508620659,32,null,null,null,null,null,null,null,null,null,null,null,null,null,null,12,null,"0 Or Is Null Or 12",109,"CHECKBOX",null,"ckRA51PercentUnits","Boolean",null,"RA51PercentUnits",false,null,null,12,{"$f":"IF(AJ44 = TRUE, AM44, 0)","v":0}]
[44,501217359,508600507,501217358,508600458,501217357,508600413,508620426,508620540,508620660,33,null,null,null,null,null,null,null,null,null,null,null,null,null,null,9,null,"0 Or Is Null Or 9",109,"CHECKBOX",null,"ckRA20PercentUnits","Boolean",null,"RA20PercentUnits",false,null,null,9,0]
[45,501217359,508600507,501217358,508600458,501217357,508600413,508620427,508620541,508620661,34,null,null,null,null,null,null,null,null,null,null,null,null,null,null,6,null,"0 Or Is Null Or 6",109,"CHECKBOX",4,"ckRA10PercentUnits","Boolean",null,"RA10PercentUnits",false,null,null,6,0]
[46,501217359,508600507,501217358,508600458,501217357,508600413,508620428,508620542,508620662,35,null,null,null,null,null,null,null,null,null,null,null,null,null,null,3,null,"0 Or Is Null Or 3",109,"CHECKBOX",4,"ckRA5PercentUnits","Boolean",null,"RA5PercentUnits",false,null,null,3,0]
[47,501217359,508600507,501217358,508600458,501217357,508600413,508620429,508620543,508620663,36,null,null,null,null,null,null,null,null,null,null,null,null,null,null,2,null,"0 Or Is Null Or 2",109,"CHECKBOX",4,"ckRALessThan5PercentUnits","Boolean",null,"RALessThan5PercentUnits",false,null,null,2,0]
[48,501217359,508600507,501217358,508600458,501217357,508600413,508620430,508620544,508620664,37,null,null,null,null,null,null,null,null,null,null,null,null,null,null,4,null,"0 Or Is Null Or 4",109,"CHECKBOX",null,"ckRA10YearContract","Boolean",null,"RA10YearContract",false,null,null,4,0]
[49,501217359,508600508,501217358,508600459,501217357,508600414,null,null,null,null,12,"Projects that have rental assistance that agree to further restrict units","SUB_SECT_4",null,null,null,"Projects that have rental assistance that agree to further restrict units",null,null,true,null,true,null,null,null,null,null,null,null,null,null,null,null,""]
[50,501217359,508600508,501217358,508600459,501217357,508600414,508620431,508620545,508620665,38,null,null,null,null,null,null,null,null,null,null,null,null,null,null,3,null,"0 Or Is Null Or 7",109,"CHECKBOX",4,"ckRA15Percent10YrUnits","Boolean",null,"RA15Percent10YrUnits",false,null,null,3,{"$f":"IF(AJ51 = TRUE, AM51, 0)","v":0}]
[51,501217359,508600508,501217358,508600459,501217357,508600414,508620432,508620546,508620666,39,null,null,null,null,null,null,null,null,null,null,null,null,null,null,null,1,null,109,"UNITS_VAL",null,null,"Fixed",0,"RA15Percent10YrUnitsValue",{"$f":"DevRA10YrUnitsValue","v":0}]
[52,501217359,508600508,501217358,508600459,501217357,508600414,508620433,508620547,508620667,40,null,null,null,null,null,null,null,null,null,null,null,null,null,null,4,null,"0 Or Is Null Or 6",109,"CHECKBOX",null,"ckRA25Percent10YrUnits","Boolean",null,"RA25Percent10YrUnits",false,null,null,4,{"$f":"IF(AJ53 = TRUE, AM53, 0)","v":0}]
[53,501217359,508600508,501217358,508600459,501217357,508600414,508620434,508620548,508620668,41,null,null,null,null,null,null,null,null,null,null,null,null,null,null,5,null,"0 Or Is Null Or 5",109,"CHECKBOX",null,"ckRA50Percent10YrUnits","Boolean",null,"RA50Percent10YrUnits",false,null,null,5,{"$f":"IF(AJ54 = TRUE, AM54, 0)","v":0}]
[54,501217359,508600508,501217358,508600459,501217357,508600414,508620435,508620549,508620669,42,null,null,null,null,null,null,null,null,null,null,null,null,null,null,6,null,"0 Or Is Null Or 4",109,"CHECKBOX",null,"ckRA75Percent10YrUnits","Boolean",null,"RA75Percent10YrUnits",false,null,null,6,{"$f":"IF(AJ55 = TRUE, AM55, 0)","v":0}]
[55,501217359,508600508,501217358,508600459,501217357,508600414,508620436,508620550,508620670,43,null,null,null,null,null,null,null,null,null,null,null,null,null,null,7,null,"0 Or Is Null Or 3",109,"CHECKBOX",null,"ckRA100Percent10YrUnits","Boolean",null,"RA100Percent10YrUnits",false,null,null,7,{"$f":"IF(AJ56 = TRUE, AM56, 0)","v":0}]
[56,null,null,501217358,508600460,501217357,508600415,null,null,null,null,13,"Long Term Affordability","SUB_SECT_3",null,null,"Long Term Affordability",null,null,null,true,null,true,null,null,null,null,null,null,null,null,null,null,null,"",null,8,9,null,null,{"$f":"SUM(AN58:AN61)","v":0}]
[57,null,null,501217358,508600460,501217357,508600415,null,508620551,508620671,44,null,null,null,null,null,null,null,null,null,null,null,null,null,null,null,null,"0 Or Is Null Or 9",109,"CHECKBOX",null,"ckLongTermAffordability40","Boolean",null,"LongTermAffordability40",false,null,null,9,{"$f":"IF(AJ58 = TRUE, AM58, 0)","v":0}]
[58,null,null,501217358,508600460,501217357,508600415,null,508620552,508620672,45,null,null,null,null,null,null,null,null,null,null,null,null,null,null,null,null,"0 Or Is Null Or 8",109,"CHECKBOX",null,"ckLongTermAffordability35","Boolean",null,"LongTermAffordability35",false,null,null,8,{"$f":"IF(AJ59 = TRUE, AM59, 0)","v":0}]
[59,null,null,501217358,508600460,501217357,508600415,null,508620553,508620673,46,null,null,null,null,null,null,null,null,null,null,null,null,null,null,null,null,"0 Or Is Null Or 7",109,"CHECKBOX",null,"ckLongTermAffordabilityWaive30","Boolean",null,"LongTermAffordabilityWaive30",false,null,null,7,{"$f":"IF(AJ60 = TRUE, AM60, 0)","v":0}]
[60,null,null,501217358,508600460,501217357,508600415,null,508620554,508620674,47,null,null,null,null,null,null,null,null,null,null,null,null,null,null,null,null,"0 Or Is Null Or 3",109,"CHECKBOX",null,"ckLongTermAffordabilityWaive25","Boolean",null,"LongTermAffordabilityWaive25",false,null,null,3,{"$f":"IF(AJ61 = TRUE, AM61, 0)","v":0}]
[61,501217359,508600509,501217358,508600461,501217357,508600416,null,null,null,null,14,"Areas of Opportunity","SUB_SECT_2",null,"Areas of Opportunity",null,null,null,null,true,true,null,null,null,null,null,null,null,null,null,null,null,null,"",null,1,28,null,null,{"$f":"SUM(AN64:AN103)","v":0}]
[62,501217359,508600510,501217358,508600462,501217357,508600417,null,null,null,null,15,"Economic Integration","SUB_SECT_3",null,null,"Economic Integration",null,null,null,true,null,true,null,null,null,null,null,null,null,null,null,null,null,"",null,2,9,null,null,{"$f":"SUM(AN64:AN67)","v":0}]
[63,501217359,508600510,501217358,508600462,501217357,508600417,508620437,508620555,508620675,48,null,null,null,null,null,null,null,null,null,null,null,null,null,null,2,null,"0 Or Is Null Or 2",109,"CHECKBOX",null,"ckEconIntegrationMixed","Boolean",null,"EconIntegrationMixed",false,null,null,2,{"$f":"IF(AJ64 = TRUE, AM64, 0)","v":0}]
[64,501217359,508600510,501217358,508600462,501217357,508600417,508620438,508620556,508620676,49,null,null,null,null,null,null,null,null,null,null,null,null,null,null,null,1,null,109,"UNITS_VAL",null,null,null,0,"EconIntegrationMixedUnitsValue",{"$f":"DevEconIntegrationMixedUnitsValue","v":0}]
[65,501217359,508600510,501217358,508600462,501217357,508600417,508620439,508620557,508620677,50,null,null,null,null,null,null,null,null,null,null,null,null,null,null,9,null,"0 Or Is Null Or 9",109,"CHECKBOX",null,"ckEconIntegration1stTier","Boolean",null,"EconIntegration1stTier",false,null,null,9,{"$f":"IF(AJ66 = TRUE, AM66, 0)","v":0}]
[66,501217359,508600510,501217358,508600462,501217357,508600417,508620440,508620558,508620678,51,null,null,null,null,null,null,null,null,null,null,null,null,null,null,7,null,"0 Or Is Null Or 7",109,"CHECKBOX",null,"ckEconIntegration2ndTier","Boolean",null,"EconIntegration2ndTier",false,null,null,7,{"$f":"IF(AJ67 = TRUE, AM67, 0)","v":0}]
[67,501217359,508600511,501217358,508600463,501217357,508600418,null,null,null,null,16,"Access to Higher Performing Schools ","SUB_SECT_3",null,null,"Access to Higher Performing Schools ",null,null,null,true,null,true,null,null,null,null,null,null,null,null,null,null,null,"",null,0,4,null,null,{"$f":"SUM(AN69:AN72)","v":0}]
[68,501217359,508600511,501217358,508600463,501217357,508600418,508620441,508620559,508620679,52,null,null,null,null,null,null,null,null,null,null,null,null,null,null,4,null,"0 Or Is Null Or 4",109,"CHECKBOX",null,"ckAccessToSchools","Boolean",null,"AccessToSchools",false,null,null,4,{"$f":"IF(AJ69 = TRUE, AM69, 0)","v":0}]
[69,501217359,508600511,501217358,508600463,501217357,508600418,508620442,508620560,508620680,53,null,null,null,null,null,null,null,null,null,null,null,null,null,null,null,1,null,109,"UNITS_VAL",null,null,"Fixed",0,"AccessToSchools2BedroomsUnitsValue",{"$f":"DevAccessToSchools2BedroomsUnitsValue","v":0}]
[70,501217359,508600511,501217358,508600463,501217357,508600418,508620443,508620561,508620681,54,null,null,null,null,null,null,null,null,null,null,null,null,null,null,null,1,null,109,"UNITS_VAL",null,null,"Fixed",0,"AccessToSchools3BedroomsUnitsValue",{"$f":"DevAccessToSchools3BedroomsUnitsValue","v":0}]
[71,501217359,508600511,501217358,508600463,501217357,508600418,508620444,508620562,508620682,55,null,null,null,null,null,null,null,null,null,null,null,null,null,null,null,1,null,109,"UNITS_VAL",null,null,"Fixed",0,"AccessToSchools4BedroomsUnitsValue",{"$f":"DevAccessToSchools4BedroomsUnitsValue","v":0}]
[72,501217359,508600512,501217358,508600464,501217357,508600419,null,null,null,null,17,"Workforce Housing Communities","SUB_SECT_3",null,null,"Workforce Housing Communities",null,null,null,true,null,true,null,null,null,null,null,null,null,null,null,null,null,"",null,3,6,null,null,{"$f":"SUM(AN74:AN76)","v":0}]
[73,501217359,508600512,501217358,508600464,501217357,508600419,508620445,508620563,508620683,56,null,null,null,null,null,null,null,null,null,null,null,null,null,null,6,null,"0 Or Is Null Or 6",109,"CHECKBOX",null,"ckWorkforceTopJobCenter","Boolean",null,"WorkforceTopJobCenter",false,null,null,6,{"$f":"IF(AJ74 = TRUE, AM74, 0)","v":0}]
[74,501217359,508600512,501217358,508600464,501217357,508600419,508620446,508620564,508620684,57,null,null,null,null,null,null,null,null,null,null,null,null,null,null,6,null,"0 Or Is Null Or 6",109,"CHECKBOX",null,"ckWorkforceEmpGrowth","Boolean",null,"WorkforceEmpGrowth",false,null,null,6,{"$f":"IF(AJ75 = TRUE, AM75, 0)","v":0}]
[75,501217359,508600512,501217358,508600464,501217357,508600419,508620447,508620565,508620685,58,null,null,null,null,null,null,null,null,null,null,null,null,null,null,3,null,"0 Or Is Null Or 3",109,"CHECKBOX",null,"ckWorkforceLongCommute","Boolean",null,"WorkforceLongCommute",false,null,null,3,{"$f":"IF(AJ76 = TRUE, AM76, 0)","v":0}]
[76,501217359,508600513,501217358,508600465,501217357,508600420,null,null,null,null,18,"Location Efficiency","SUB_SECT_3",null,null,"Location Efficiency",null,null,null,true,null,true,null,null,null,null,null,null,null,null,null,null,null,"",null,1,9,null,null,{"$f":"SUM(AN80:AN103)","v":0}]
[77,501217359,508600514,501217358,508600466,501217357,508600421,null,null,null,null,19,"Twin Cities metropolitan area","SUB_SECT_4",null,null,null,"Twin Cities metropolitan area",null,null,null,null,null,null,null,null,null,null,null,null,null,null,null,null,""]
[78,501217359,508600515,501217358,508600467,501217357,508600422,null,null,null,null,20,"Access to Transit","SUB_SECT_5",null,null,null,null,"Access to Transit",null,null,null,null,null,null,null,null,null,null,null,null,null,null,null,""]
[79,501217359,508600515,501217358,508600467,501217357,508600422,508620448,508620566,508620686,59,null,null,null,null,null,null,null,null,null,null,null,null,null,null,7,null,"0 Or Is Null Or 7",109,"CHECKBOX",null,"ckMetroTransitLRTBRT","Boolean",null,"MetroTransitLRTBRT",false,null,null,7,{"$f":"IF(AJ80 = TRUE, AM80, 0)","v":0}]
[80,501217359,508600515,501217358,508600467,501217357,508600422,508620449,508620567,508620687,60,null,null,null,null,null,null,null,null,null,null,null,null,null,null,4,null,"0 Or Is Null Or 4",109,"CHECKBOX",null,"ckMetroTransitHiFrequency","Boolean",null,"MetroTransitHiFrequency",false,null,null,4,{"$f":"IF(AJ81 = TRUE, AM81, 0)","v":0}]
[81,501217359,508600515,501217358,508600467,501217357,508600422,508620450,508620568,508620688,61,null,null,null,null,null,null,null,null,null,null,null,null,null,null,2,null,"0 Or Is Null Or 2",109,"CHECKBOX",null,"ckMetroHighSrvPublicTrans","Boolean",null,"MetroHighSrvPublicTrans",false,null,null,2,{"$f":"IF(AJ82 = TRUE, AM82, 0)","v":0}]
[82,501217359,508600515,501217358,508600467,501217357,508600422,508620451,508620569,508620689,62,null,null,null,null,null,null,null,null,null,null,null,null,null,null,2,null,"0 Or Is Null Or 2",109,"CHECKBOX",null,"ckMetroExpressBusRoute","Boolean",null,"MetroExpressBusRoute",false,null,null,2,{"$f":"IF(AJ83 = TRUE, AM83, 0)","v":0}]
[83,501217359,508600515,501217358,508600467,501217357,508600422,508620452,508620570,508620690,63,null,null,null,null,null,null,null,null,null,null,null,null,null,null,2,null,"0 Or Is Null Or 2",109,"CHECKBOX",null,"ckMetroParkAndRide","Boolean",null,"MetroParkAndRide",false,null,null,2,{"$f":"IF(AJ84 = TRUE, AM84, 0)","v":0}]
[84,501217359,508600516,501217358,508600468,501217357,508600423,null,null,null,null,21,"Walkability","SUB_SECT_5",null,null,null,null,"Walkability",null,null,null,null,null,null,null,null,null,null,null,null,null,null,null,""]
[85,501217359,508600516,501217358,508600468,501217357,508600423,508620453,508620571,508620691,64,null,null,null,null,null,null,null,null,null,null,null,null,null,null,2,null,"0 Or Is Null Or 2",109,"CHECKBOX",null,"ckMetroWalkScore70","Boolean",null,"MetroWalkScore70",false,null,null,2,{"$f":"IF(AJ86 = TRUE, AM86, 0)","v":0}]
[86,501217359,508600516,501217358,508600468,501217357,508600423,508620454,508620572,508620692,65,null,null,null,null,null,null,null,null,null,null,null,null,null,null,1,null,"0 Or Is Null Or 1",109,"CHECKBOX",null,"ckMetroWalkScore50","Boolean",null,"MetroWalkScore50",false,null,null,1,{"$f":"IF(AJ87 = TRUE, AM87, 0)","v":0}]
[87,501217359,508600517,501217358,508600469,501217357,508600424,null,null,null,null,22,"Greater Minnesota","SUB_SECT_4",null,null,null,"Greater Minnesota",null,null,null,null,null,null,null,null,null,null,null,null,null,null,null,null,""]
[88,501217359,508600518,501217358,508600470,501217357,508600425,null,null,null,null,23,"Access to Transit","SUB_SECT_5",null,null,null,null,"Access to Transit",null,null,null,null,null,null,null,null,null,null,null,null,null,null,null,""]
[89,501217359,508600518,501217358,508600470,501217357,508600425,508620455,508620573,508620693,66,null,null,null,null,null,null,null,null,null,null,null,null,null,null,7,null,"0 Or Is Null Or 7",109,"CHECKBOX",null,"ckGrtMnFixedOneQtrMile","Boolean",null,"GrtMnFixedOneQtrMile",false,null,null,7,{"$f":"IF(AJ90 = TRUE, AM90, 0)","v":0}]
[90,501217359,508600518,501217358,508600470,501217357,508600425,508620456,508620574,508620694,67,null,null,null,null,null,null,null,null,null,null,null,null,null,null,4,null,"0 Or Is Null Or 4",109,"CHECKBOX",null,"ckGrtMnFixedOneHalfMile","Boolean",null,"GrtMnFixedOneHalfMile",false,null,null,4,{"$f":"IF(AJ91 = TRUE, AM91, 0)","v":0}]
[91,501217359,508600518,501217358,508600470,501217357,508600425,508620457,508620575,508620695,68,null,null,null,null,null,null,null,null,null,null,null,null,null,null,4,null,"0 Or Is Null Or 4",109,"CHECKBOX",null,"ckGrtMnFixedExpressBusRoute","Boolean",null,"GrtMnFixedExpressBusRoute",false,null,null,4,{"$f":"IF(AJ92 = TRUE, AM92, 0)","v":0}]
[92,501217359,508600519,501217358,508600471,501217357,508600426,null,null,null,null,24,"Walkability","SUB_SECT_5",null,null,null,null,"Walkability",null,null,null,null,null,null,null,null,null,null,null,null,null,null,null,""]
[93,501217359,508600519,501217358,508600471,501217357,508600426,508620458,508620576,508620696,69,null,null,null,null,null,null,null,null,null,null,null,null,null,null,2,null,"0 Or Is Null Or 2",109,"CHECKBOX",null,"ckGrtMnFixedWalkScore70","Boolean",null,"GrtMnFixedWalkScore70",false,null,null,2,{"$f":"IF(AJ94 = TRUE, AM94, 0)","v":0}]
[94,501217359,508600519,501217358,508600471,501217357,508600426,508620459,508620577,508620697,70,null,null,null,null,null,null,null,null,null,null,null,null,null,null,1,null,"0 Or Is Null Or 1",109,"CHECKBOX",null,"ckGrtMnFixedWalkScore50","Boolean",null,"GrtMnFixedWalkScore50",false,null,null,1,{"$f":"IF(AJ95 = TRUE, AM95, 0)","v":0}]
[95,501217359,508600520,501217358,508600472,501217357,508600427,null,null,null,null,25,"Rural and Small Urban Areas","SUB_SECT_4",null,null,null,"Rural and Small Urban Areas",null,null,null,null,null,null,null,null,null,null,null,null,null,null,null,null,""]
[96,501217359,508600521,501217358,508600473,501217357,508600428,null,null,null,null,26,"Access to Transit","SUB_SECT_5",null,null,null,null,"Access to Transit",null,null,null,null,null,null,null,null,null,null,null,null,null,null,null,""]
[97,501217359,508600521,501217358,508600473,501217357,508600428,508620460,508620578,508620698,71,null,null,null,null,null,null,null,null,null,null,null,null,null,null,7,null,"0 Or Is Null Or 7",109,"CHECKBOX",null,"ckGtrMNNoFixedRideOneHour","Boolean",null,"GtrMNNoFixedRideOneHour",false,null,null,7,{"$f":"IF(AJ98 = TRUE, AM98, 0)","v":0}]
[98,501217359,508600521,501217358,508600473,501217357,508600428,508620461,508620579,508620699,72,null,null,null,null,null,null,null,null,null,null,null,null,null,null,4,null,"0 Or Is Null Or 4",109,"CHECKBOX",null,"ckGtrMNNoFixedRideSameDay","Boolean",null,"GtrMNNoFixedRideSameDay",false,null,null,4,{"$f":"IF(AJ99 = TRUE, AM99, 0)","v":0}]
[99,501217359,508600521,501217358,508600473,501217357,508600428,508620462,508620580,508620700,73,null,null,null,null,null,null,null,null,null,null,null,null,null,null,2,null,"0 Or Is Null Or 2",109,"CHECKBOX",null,"ckGtrMNNoFixedLowService","Boolean",null,"GtrMNNoFixedLowService",false,null,null,2,{"$f":"IF(AJ100 = TRUE, AM100, 0)","v":0}]
[100,501217359,508600522,501217358,508600474,501217357,508600429,null,null,null,null,27,"Walkability","SUB_SECT_5",null,null,null,null,"Walkability",null,null,null,null,null,null,null,null,null,null,null,null,null,null,null,""]
[101,501217359,508600522,501217358,508600474,501217357,508600429,508620463,508620581,508620701,74,null,null,null,null,null,null,null,null,null,null,null,null,null,null,2,null,"0 Or Is Null Or 2",109,"CHECKBOX",null,"ckGrtMnNoFixedWalkScore50","Boolean",null,"GrtMnNoFixedWalkScore50",false,null,null,2,{"$f":"IF(AJ102 = TRUE, AM102, 0)","v":0}]
[102,501217359,508600522,501217358,508600474,501217357,508600429,508620464,508620582,508620702,75,null,null,null,null,null,null,null,null,null,null,null,null,null,null,1,null,"0 Or Is Null Or 1",109,"CHECKBOX",null,"ckGrtMnNoFixedWalkScore35","Boolean",null,"GrtMnNoFixedWalkScore35",false,null,null,1,{"$f":"IF(AJ103 = TRUE, AM103, 0)","v":0}]
[103,501217359,508600523,501217358,508600475,501217357,508600430,null,null,null,null,28,"Supporting Community and Economic Development","SUB_SECT_2",null,"Supporting Community and Economic Development",null,null,null,null,true,true,null,null,null,null,null,null,null,null,null,null,null,null,"",null,1,18,null,null,{"$f":"SUM(AN106:AN114)","v":0}]
[104,501217359,508600524,501217358,508600476,501217357,508600431,null,null,null,null,29,"Planned Community Development","SUB_SECT_3",null,null,"Planned Community Development",null,null,null,true,null,true,null,null,null,null,null,null,null,null,null,null,null,"",null,1,18]
[105,501217359,508600524,501217358,508600476,501217357,508600431,508620465,508620583,508620703,76,null,null,null,null,null,null,null,null,null,null,null,null,null,null,3,null,"0 Or Is Null Or 3",109,"CHECKBOX",null,"ckPlannedCommunityDev","Boolean",null,"PlannedCommunityDev",false,null,null,3,{"$f":"IF(AJ106 = TRUE, AM106, 0)","v":0}]
[106,null,null,501217358,508600477,501217357,508600432,null,null,null,null,30,"Eventual Tenant Ownership","SUB_SECT_3",null,null,"Eventual Tenant Ownership",null,null,null,true,null,true,null,null,null,null,null,null,null,null,null,null,null,""]
[107,null,null,501217358,508600477,501217357,508600432,null,508620584,508620704,77,null,null,null,null,null,null,null,null,null,null,null,null,null,1,null,null,"0 Or Is Null Or 1",109,"CHECKBOX",null,"ckEventualTenantOwnership","Boolean",null,"EventualTenantOwnership",false,null,null,1,{"$f":"IF(AJ108 = TRUE, AM108, 0)","v":0}]
[108,501217359,508600525,501217358,508600478,501217357,508600433,null,null,null,null,31,"Rural/Tribal","SUB_SECT_3",null,null,"Rural/Tribal",null,null,null,true,null,true,null,null,null,null,null,null,null,null,null,null,null,""]
[109,501217359,508600525,501217358,508600478,501217357,508600433,508620466,508620585,508620705,78,null,null,null,null,null,null,null,null,null,null,null,null,null,null,10,null,"0 Or Is Null Or 10",109,"CHECKBOX",null,"ckRuralTribalDesignatedArea","Boolean",null,"RuralTribalDesignatedArea",false,null,null,10,{"$f":"IF(AJ110 = TRUE, AM110, 0)","v":0}]
[110,501217359,508600526,501217358,508600479,501217357,508600434,null,null,null,null,32,"QCT/Community Revitalization and Tribal Equivalent Areas","SUB_SECT_3",null,null,"QCT/Community Revitalization and Tribal Equivalent Areas",null,null,null,true,null,true,null,null,null,null,null,null,null,null,null,null,null,""]
[111,501217359,508600526,501217358,508600479,501217357,508600434,508620467,508620586,508620706,79,null,null,null,null,null,null,null,null,null,null,null,null,null,null,1,null,"0 Or Is Null Or 1",109,"CHECKBOX",null,"ckQCTorTribalEquivalent","Boolean",null,"QCTorTribalEquivalent",false,null,null,1,{"$f":"IF(AJ112 = TRUE, AM112, 0)","v":0}]
[112,501217359,508600527,501217358,508600480,501217357,508600435,null,null,null,null,33,"Minority-owned/Women-owned Business Enterprise (MBE/WBE) ","SUB_SECT_3",null,null,"Minority-owned/Women-owned Business Enterprise (MBE/WBE) ",null,null,null,true,null,true,null,null,null,null,null,null,null,null,null,null,null,""]
[113,501217359,508600527,501217358,508600480,501217357,508600435,508620468,508620587,508620707,80,null,null,null,null,null,null,null,null,null,null,null,null,null,null,3,null,"0 Or Is Null Or 3",109,"CHECKBOX",null,"ckMBEWBE","Boolean",null,"MBEWBE",false,null,null,3,{"$f":"IF(AJ114 = TRUE, AM114, 0)","v":0}]
[114,501217359,508600528,501217358,508600481,501217357,508600436,null,null,null,null,34,"Preservation","SUB_SECT_2",null,"Preservation",null,null,null,null,true,true,true,null,null,null,null,null,null,null,null,null,null,null,"",null,5,30,null,null,{"$f":"SUM(AN123:AN135)","v":0}]
[115,501217359,508600529,501217358,508600482,null,null,null,null,null,null,35,"Thresholds","SUB_SECT_3",null,null,"Thresholds",null,null,null,null,null,null,null,null,null,null,null,null,null,null,null,null,null,""]
[116,501217359,508600529,501217358,508600482,null,null,508620469,508620588,null,81,null,null,null,null,null,null,null,null,null,null,null,null,null,null,null,null,"'True'; 'False'",111,"CHECKBOX",null,"ckLossDuetoMarketConversion","Boolean",null,"LossDuetoMarketConversion",false]
[117,501217359,508600529,501217358,508600482,null,null,508620470,508620589,null,82,null,null,null,null,null,null,null,null,null,null,null,null,null,null,null,null,"'True'; 'False'",111,"CHECKBOX",null,"ckLossDuetoCriticalPhysical","Boolean",null,"LossDuetoCriticalPhysical",false]
[118,501217359,508600529,501217358,508600482,null,null,508620471,508620590,null,83,null,null,null,null,null,null,null,null,null,null,null,null,null,null,null,null,"'True'; 'False'",111,"CHECKBOX",null,"ckLossDuetoOwnershipCap","Boolean",null,"LossDuetoOwnershipCap",false]
[119,501217359,508600530,501217358,508600483,501217357,508600437,null,null,null,null,36,"Scoring","SUB_SECT_3",null,null,"Scoring",null,null,null,true,null,null,null,null,null,null,null,null,null,null,null,null,null,""]
[120,501217359,508600531,501217358,508600484,501217357,508600438,null,null,null,null,37,"Existing Federal Assistance","SUB_SECT_3",null,null,"Existing Federal Assistance"]
[121,501217359,508600532,501217358,508600485,501217357,508600439,null,null,null,null,38,"Existing Federally Assisted Units","SUB_SECT_4",null,null,null,"Existing Federally Assisted Units",null,null,null,null,null,null,null,null,null,null,null,null,null,null,null,null,"",null,5,30]
[122,501217359,508600532,501217358,508600485,501217357,508600439,508620472,508620591,508620708,84,null,null,null,null,null,null,null,null,null,null,null,null,null,null,30,null,"0 Or Is Null Or 30",109,"CHECKBOX",null,"ckExistingFedAssistUnits100","Boolean",null,"ExistingFedAssistUnits100",false,null,null,30,{"$f":"IF(AJ123 = TRUE, AM123, 0)","v":0}]
[123,501217359,508600532,501217358,508600485,501217357,508600439,508620473,508620592,508620709,85,null,null,null,null,null,null,null,null,null,null,null,null,null,null,22,null,"0 Or Is Null Or 22",109,"CHECKBOX",null,"ckExistingFedAssistUnits99","Boolean",null,"ExistingFedAssistUnits99",false,null,null,22,{"$f":"IF(AJ124 = TRUE, AM124, 0)","v":0}]
[124,501217359,508600532,501217358,508600485,501217357,508600439,508620474,508620593,508620710,86,null,null,null,null,null,null,null,null,null,null,null,null,null,null,15,null,"0 Or Is Null Or 15",109,"CHECKBOX",null,"ckExistingFedAssistUnits75","Boolean",null,"ExistingFedAssistUnits75",false,null,null,15,{"$f":"IF(AJ125 = TRUE, AM125, 0)","v":0}]
[125,501217359,508600532,501217358,508600485,501217357,508600439,508620475,508620594,508620711,87,null,null,null,null,null,null,null,null,null,null,null,null,null,null,10,null,"0 Or Is Null Or 10",109,"CHECKBOX",null,"ckExistingFedAssistUnits50","Boolean",null,"ExistingFedAssistUnits50",false,null,null,10,{"$f":"IF(AJ126 = TRUE, AM126, 0)","v":0}]
[126,501217359,508600532,501217358,508600485,501217357,508600439,508620476,508620595,508620712,88,null,null,null,null,null,null,null,null,null,null,null,null,null,null,5,null,"0 Or Is Null Or 5",109,"CHECKBOX",null,"ckExistingFedAssistUnits25","Boolean",null,"ExistingFedAssistUnits25",false,null,null,5,{"$f":"IF(AJ127 = TRUE, AM127, 0)","v":0}]
[127,501217359,508600533,501217358,508600486,501217357,508600440,null,null,null,null,39,"Partially Assisted Projects","SUB_SECT_4",null,null,null,"Partially Assisted Projects",null,null,null,null,null,null,null,null,null,null,null,null,null,null,null,null,""]
[128,501217359,508600533,501217358,508600486,501217357,508600440,508620477,508620596,508620713,89,null,null,null,null,null,null,null,null,null,null,null,null,null,null,30,null,"0 Or Is Null Or 30",109,"CHECKBOX",null,"ckPartialFedAssistUnits99","Boolean",null,"PartialFedAssistUnits99",false,null,null,30,{"$f":"IF(AJ129 = TRUE, AM129, 0)","v":0}]
[129,501217359,508600533,501217358,508600486,501217357,508600440,508620478,508620597,508620714,90,null,null,null,null,null,null,null,null,null,null,null,null,null,null,20,null,"0 Or Is Null Or 20",109,"CHECKBOX",null,"ckPartialFedAssistUnits75","Boolean",null,"PartialFedAssistUnits75",false,null,null,20,{"$f":"IF(AJ130 = TRUE, AM130, 0)","v":0}]
[130,501217359,508600533,501217358,508600486,501217357,508600440,508620479,508620598,508620715,91,null,null,null,null,null,null,null,null,null,null,null,null,null,null,10,null,"0 Or Is Null Or 10",109,"CHECKBOX",null,"ckPartialFedAssistUnits25","Boolean",null,"PartialFedAssistUnits25",false,null,null,10,{"$f":"IF(AJ131 = TRUE, AM131, 0)","v":0}]
[131,501217359,null,501217358,null,501217357]
[132,501217359,508600532,501217358,508600485,501217357,508600441,508620480,508620599,508620716,92,null,null,null,null,null,null,null,null,null,null,null,null,null,null,null,1,null,109,"UNITS_VAL",null,null,null,0,"FedAssistUnitsUnitsValue",{"$f":"DevFedAssistUnitsUnitsValue","v":0}]
[133,501217359,508600534,501217358,508600487,501217357,508600441,null,null,null,null,40,"Critical Affordable Units at Risk of Loss","SUB_SECT_4",null,null,null,"Critical Affordable Units at Risk of Loss",null,null,null,null,null,null,null,null,null,null,null,null,null,null,null,null,"",null,0,6]
[134,501217359,508600534,501217358,508600487,501217357,508600441,508620481,508620600,508620717,93,null,null,null,null,null,null,null,null,null,null,null,null,null,null,6,null,"0 Or Is Null Or 6",109,"CHECKBOX",null,"ckCriticalAffordableUnits+7853:147","Boolean",null,"CriticalAffordableUnits",false,null,null,6,{"$f":"IF(AJ135 = TRUE, AM135, 0)","v":0}]
[135,501217359,508600535,501217358,508600488,501217357,508600442,null,null,null,null,41,"Efficient Use of Scarce Resources and Leverage","SUB_SECT_2",null,"Efficient Use of Scarce Resources and Leverage",null,null,null,null,true,true,null,null,null,null,null,null,null,null,null,null,null,null,"",null,1,38,null,null,{"$f":"SUM(AN141:AN167,CostContainmentTotalScore)","v":0}]
[136,501217359,508600536,501217358,508600489,501217357,508600441,null,null,null,null,42,"Financial Readiness to Proceed","SUB_SECT_3",null,null,"Financial Readiness to Proceed",null,null,null,true,null,true,null,null,null,null,null,null,null,null,null,null,null,"",null,0,16,null,null,{"$f":"SUM(AN141:AN148)","v":0}]
[137,501217359,508600536,501217358,508600489,501217357,508600441,508620482,508620601,508620718,94,null,null,null,null,null,null,null,null,null,null,null,null,null,null,null,0,null,109,"SCR_VAL",null,null,"Currency",0,"FinancialReadinessEligibleFunding",{"$f":"DevFinancialReadinessEligibleFunding","v":0}]
[138,501217359,508600536,501217358,508600489,501217357,508600441,508620483,508620602,508620719,95,null,null,null,null,null,null,null,null,null,null,null,null,null,null,null,0,null,109,"SCR_VAL",null,null,"Currency",0,"FinancialReadinessDevelopmentCost",{"$f":"DevFinancialReadinessDevelopmentCost","v":0}]
[139,501217359,508600536,501217358,508600489,501217357,508600441,508620484,508620603,508620720,96,null,null,null,null,null,null,null,null,null,null,null,null,null,null,null,0,null,109,"SCR_VAL",null,null,"Percent",1,"FinancialReadinessFundsCommitted",{"$f":"DevFinancialReadinessFundsCommitted","v":0}]
[140,501217359,508600536,501217358,508600489,501217357,508600441,508620485,508620604,508620721,97,null,null,null,null,null,null,null,null,null,null,null,null,null,null,16,null,"0 Or Is Null Or 16",109,"CHECKBOX",null,"ckHTCFinancialReadiness70","Boolean",null,"FinancialReadiness70",false,null,null,16,{"$f":"IF(AJ141 = TRUE, AM141, 0)","v":0}]
[141,501217359,508600536,501217358,508600489,501217357,508600441,508620486,508620605,508620722,98,null,null,null,null,null,null,null,null,null,null,null,null,null,null,14,null,"0 Or Is Null Or 14",109,"CHECKBOX",null,"ckHTCFinancialReadiness60","Boolean",null,"FinancialReadiness60",false,null,null,14,0]
[142,501217359,508600536,501217358,508600489,501217357,508600441,508620487,508620606,508620723,99,null,null,null,null,null,null,null,null,null,null,null,null,null,null,12,null,"0 Or Is Null Or 12",109,"CHECKBOX",null,"ckHTCFinancialReadiness50","Boolean",null,"FinancialReadiness50",false,null,null,12,0]
[143,501217359,508600536,501217358,508600489,501217357,508600441,508620488,508620607,508620724,100,null,null,null,null,null,null,null,null,null,null,null,null,null,null,10,null,"0 Or Is Null Or 10",109,"CHECKBOX",null,"ckHTCFinancialReadiness40","Boolean",null,"FinancialReadiness40",false,null,null,10,0]
[144,501217359,508600536,501217358,508600489,501217357,508600441,508620489,508620608,508620725,101,null,null,null,null,null,null,null,null,null,null,null,null,null,null,8,null,"0 Or Is Null Or 8",109,"CHECKBOX",null,"ckHTCFinancialReadiness30","Boolean",null,"FinancialReadiness30",false,null,null,8,0]
[145,501217359,508600536,501217358,508600489,501217357,508600441,508620490,508620609,508620726,102,null,null,null,null,null,null,null,null,null,null,null,null,null,null,6,null,"0 Or Is Null Or 6",109,"CHECKBOX",null,"ckHTCFinancialReadiness20","Boolean",null,"FinancialReadiness20",false,null,null,6,0]
[146,501217359,508600536,501217358,508600489,501217357,508600441,508620491,508620610,508620727,103,null,null,null,null,null,null,null,null,null,null,null,null,null,null,4,null,"0 Or Is Null Or 4",109,"CHECKBOX",null,"ckHTCFinancialReadiness10","Boolean",null,"FinancialReadiness10",false,null,null,4,0]
[147,501217359,508600536,501217358,508600489,501217357,508600441,508620492,508620611,508620728,104,null,null,null,null,null,null,null,null,null,null,null,null,null,null,0,null,"0 Or Is Null Or 0",109,"CHECKBOX",null,"ckHTCFinancialReadiness9","Boolean",null,"FinancialReadiness9",false,null,null,0,0]
[148,501217359,508600537,501217358,508600490,501217357,508600442,null,null,null,null,43,"Other Contributions","SUB_SECT_3",null,null,"Other Contributions",null,null,null,true,null,true,null,null,null,null,null,null,null,null,null,null,null,"",null,0,10,null,null,{"$f":"SUM(AN153:AN158)","v":0}]
[149,501217359,508600537,501217358,508600490,501217357,508600442,508620493,508620612,508620729,105,null,null,null,null,null,null,null,null,null,null,null,null,null,null,null,0,null,109,"SCR_VAL",null,null,"Currency",0,"OtherContributionsFunding",{"$f":"DevOtherContributionsFunding","v":0}]
[150,501217359,508600537,501217358,508600490,501217357,508600442,508620494,508620613,508620730,106,null,null,null,null,null,null,null,null,null,null,null,null,null,null,null,0,null,109,"SCR_VAL",null,null,"Currency",0,"OtherContributionsDevelopmentCost",{"$f":"DevOtherContributionsDevelopmentCost","v":0}]
[151,501217359,508600537,501217358,508600490,501217357,508600442,508620495,508620614,508620731,107,null,null,null,null,null,null,null,null,null,null,null,null,null,null,null,0,null,109,"SCR_VAL",null,null,"Percent",1,"OtherFundsCommittedPercentage",{"$f":"DevOtherFundsCommittedPercentage","v":0}]
[152,501217359,508600537,501217358,508600490,501217357,508600442,508620496,508620615,508620732,108,null,null,null,null,null,null,null,null,null,null,null,null,null,null,10,null,"0 Or Is Null Or 10",109,"CHECKBOX",null,"ckOtherFunds20","Boolean",null,"OtherFunds20",false,null,null,10,{"$f":"IF(AJ153 = TRUE, AM153, 0)","v":0}]
[153,501217359,508600537,501217358,508600490,501217357,508600442,508620497,508620616,508620733,109,null,null,null,null,null,null,null,null,null,null,null,null,null,null,8,null,"0 Or Is Null Or 8",109,"CHECKBOX",null,"ckOtherFunds15","Boolean",null,"OtherFunds15",false,null,null,8,0]
[154,501217359,508600537,501217358,508600490,501217357,508600442,508620498,508620617,508620734,110,null,null,null,null,null,null,null,null,null,null,null,null,null,null,6,null,"0 Or Is Null Or 6",109,"CHECKBOX",null,"ckOtherFunds10","Boolean",null,"OtherFunds10",false,null,null,6,0]
[155,501217359,508600537,501217358,508600490,501217357,508600442,508620499,508620618,508620735,111,null,null,null,null,null,null,null,null,null,null,null,null,null,null,4,null,"0 Or Is Null Or 4",109,"CHECKBOX",null,"ckOtherFunds5","Boolean",null,"OtherFunds5",false,null,null,4,0]
[156,501217359,508600537,501217358,508600490,501217357,508600442,508620500,508620619,508620736,112,null,null,null,null,null,null,null,null,null,null,null,null,null,null,2,null,"0 Or Is Null Or 2",109,"CHECKBOX",null,"ckOtherFunds2","Boolean",null,"OtherFunds2",false,null,null,2,0]
[157,501217359,508600537,501217358,508600490,501217357,508600442,508620501,508620620,508620737,113,null,null,null,null,null,null,null,null,null,null,null,null,null,null,0,null,"0 Or Is Null Or 0",109,"CHECKBOX",null,"ckOtherFunds0","Boolean",null,"OtherFunds0",false,null,null,0,0]
[158,501217359,508600538,501217358,508600491,501217357,508600443,null,null,null,null,44,"Intermediary Costs","SUB_SECT_3",null,null,"Intermediary Costs",null,null,null,true,null,true,null,null,null,null,null,null,null,null,null,null,null,"",null,0,6,null,null,{"$f":"SUM(AN163:AN167)","v":0}]
[159,501217359,508600538,501217358,508600491,501217357,508600443,508620502,508620621,508620738,114,null,null,null,null,null,null,null,null,null,null,null,null,null,null,null,0,null,109,"SCR_VAL",null,null,"Currency",0,"IntermediaryCosts",{"$f":"DevIntermediaryCosts","v":0}]
[160,501217359,508600538,501217358,508600491,501217357,508600443,508620503,508620622,508620739,115,null,null,null,null,null,null,null,null,null,null,null,null,null,null,null,0,null,109,"SCR_VAL",null,null,"Currency",0,"IntermediaryDevelopmentCost",{"$f":"DevIntermediaryDevelopmentCost","v":0}]
[161,501217359,508600538,501217358,508600491,501217357,508600443,508620504,508620623,508620740,116,null,null,null,null,null,null,null,null,null,null,null,null,null,null,null,0,null,109,"SCR_VAL",null,null,"Percent",1,"IntermediaryPercentage",{"$f":"DevIntermediaryPercentage","v":0}]
[162,501217359,508600538,501217358,508600491,501217357,508600443,508620505,508620624,508620741,117,null,null,null,null,null,null,null,null,null,null,null,null,null,null,6,null,"0 Or Is Null Or 6",109,"CHECKBOX",null,"ckHTCIntermediaryCost15","Boolean",null,"IntermediaryCost15",false,null,null,6,{"$f":"IF(AJ163 = TRUE, AM163, 0)","v":0}]
[163,501217359,508600538,501217358,508600491,501217357,508600443,508620506,508620625,508620742,118,null,null,null,null,null,null,null,null,null,null,null,null,null,null,3,null,"0 Or Is Null Or 3",109,"CHECKBOX",null,"ckHTCIntermediaryCost20","Boolean",null,"IntermediaryCost20",false,null,null,3,{"$f":"IF(AJ164 = TRUE, AM164, 0)","v":0}]
[164,501217359,508600538,501217358,508600491,501217357,508600443,508620507,508620626,508620743,119,null,null,null,null,null,null,null,null,null,null,null,null,null,null,2,null,"0 Or Is Null Or 2",109,"CHECKBOX",null,"ckHTCIntermediaryCost25","Boolean",null,"IntermediaryCost25",false,null,null,2,{"$f":"IF(AJ165 = TRUE, AM165, 0)","v":0}]
[165,501217359,508600538,501217358,508600491,501217357,508600443,508620508,508620627,508620744,120,null,null,null,null,null,null,null,null,null,null,null,null,null,null,1,null,"0 Or Is Null Or 1",109,"CHECKBOX",null,"ckHTCIntermediaryCost30","Boolean",null,"IntermediaryCost30",false,null,null,1,{"$f":"IF(AJ166 = TRUE, AM166, 0)","v":0}]
[166,501217359,508600538,501217358,508600491,501217357,508600443,508620509,508620628,508620745,121,null,null,null,null,null,null,null,null,null,null,null,null,null,null,0,null,"0 Or Is Null Or 0",109,"CHECKBOX",null,"ckHTCIntermediaryCostOver30","Boolean",null,"IntermediaryCostOver30",false,null,null,0,{"$f":"IF(AJ167 = TRUE, AM167, 0)","v":0}]
[167,501217359,508600539,501217358,508600492,501217357,508600444,null,null,null,null,45,"Cost Containment","SUB_SECT_3",null,null,"Cost Containment",null,null,null,true,null,true,null,null,null,null,null,null,null,null,null,null,null,"",null,0,6]
[168,501217359,508600539,501217358,508600492,501217357,508600444,508620510,508620629,508620746,122,null,null,null,null,null,null,null,null,null,null,null,null,null,null,6,null,"0 Or Is Null Or 6",109,"CHECKBOX",null,"ckCostContainment","Boolean",null,"CostContainment",false,null,null,6,{"$f":"IF(AJ169 = TRUE, AM169, 0)","v":0}]
[169,501217359,508600540,501217358,508600493,501217357,508600445,null,null,null,null,46,"Building Characteristics","SUB_SECT_2",null,"Building Characteristics",null,null,null,null,true,true,true,null,null,null,null,null,null,null,null,null,null,null,"",null,null,null,null,null,{"$f":"SUM(AN172:AN176)","v":0}]
[170,501217359,508600541,501217358,508600494,501217357,508600446,null,null,null,null,47,"Universal Design","SUB_SECT_3",null,null,"Universal Design",null,null,null,true,null,null,null,null,null,null,null,null,null,null,null,null,null,"",null,1,4,null,null,{"$f":"SUM(AN172:AN173)","v":0}]
[171,501217359,508600541,501217358,508600494,501217357,508600446,508620511,508620630,508620747,123,null,null,null,null,null,null,null,null,null,null,null,null,null,null,3,null,"0 Or Is Null Or 3",109,"CHECKBOX",null,"ckElevator","Boolean",null,"Elevator",false,null,null,3,{"$f":"IF(AJ172 = TRUE, AM172, 0)","v":0}]
[172,501217359,508600541,501217358,508600494,501217357,508600446,508620512,508620631,508620748,124,null,null,null,null,null,null,null,null,null,null,null,null,null,null,3,null,"0 Or Is Null Or 3",109,"CHECKBOX",null,"ckNonElevator","Boolean",null,"NonElevator",false,null,null,3,{"$f":"IF(AJ173 = TRUE, AM173, 0)","v":0}]
[173,501217359,508600541,501217358,508600494,501217357,508600446,508620513,508620632,508620749,125,null,null,null,null,null,null,null,null,null,null,null,null,null,null,null,1,null,109,"UNITS_VAL",null,null,"Fixed",0,"UniversalDesignUnitsValue",{"$f":"DevUniversalDesignUnitsValue","v":0}]
[174,501217359,508600542,501217358,508600495,501217357,508600447,null,null,null,null,48,"Smoke Free Buildings","SUB_SECT_3",null,null,"Smoke Free Buildings",null,null,null,true,null,null,null,null,null,null,null,null,null,null,null,null,null,""]
[175,501217359,508600542,501217358,508600495,501217357,508600447,508620514,508620633,508620750,126,null,null,null,null,null,null,null,null,null,null,null,null,null,null,1,null,"0 Or Is Null Or 1",109,"CHECKBOX",null,"ckSmokeFreeBuildings","Boolean",null,"SmokeFreeBuildings",false,null,null,1,{"$f":"IF(AJ176 = TRUE, AM176, 0)","v":0}]
[176,null,null,501217358,508600496,501217357,508600448,null,null,null,null,49,"Unacceptable Practices","SUB_SECT_2",null,"Unacceptable Practices",null,null,null,null,true,true,null,null,null,null,null,null,null,null,null,null,null,null,""]
[177,null,null,501217358,508600497,501217357,null,null,null,null,null,50,"Unacceptable Practices","SUB_SECT_3",null,null,"Unacceptable Practices",null,null,null,true,null,null,null,null,null,null,null,null,null,null,null,null,null,"",null,-25,-4]
[178,null,null,501217358,508600497,501217357,508600449,null,508620634,508620751,127,null,null,null,null,null,null,null,null,null,null,null,null,null,1,null,null,"0 Or Is Null Or Between -25 And -4",109,"SCR_VAL",null,null,"Fixed",0,"UnacceptablePractices",{"$f":"DevUnacceptablePractices","v":0},null,null,null,{"$f":"UnacceptablePractices","v":0}]
[null,null,null,null,null,null,null,null,null,null,null,null,null,null,null,null,null,null,null,null,null,null,null,null,null,null,null,null,null,null,null,null,null,null,null,null,null,null,null,null,{"$f":"SUM(AO170,AO136,AO104,AO62,AO35,AO12,AO115,UnacceptablePracticesTotalScore)","v":0}]
[]
[null,null,null,null,null,null,null,null,null,null,null,null,null,null,null,null,null,null,null,null,null,null,null,null,null,null,null,null,null,null,null,"Atlakvitha5En5Gronlenzka"]

{"sheet":"Sheet2","index":3,"n_rows":100,"n_cols":2,"rows_kept":100,"cut":false,"hidden":true,"merged":[]}
["QSTN_NM_RNG_TXT","QSTN_TMPLT_DATA_VALID"]
["LargeFamily3Bedroom","0 Or Is Null Or 2"]
["SupportiveHousing20Units","0 Or Is Null Or 20"]
["SupportiveHousing7Units","0 Or Is Null Or 10"]
["SupportiveHousing4Units","0 Or Is Null Or 7"]
["SupportiveHousingPriority","0 Or Is Null Or 2"]
["SupportiveHousingPriorityType","'Families with Children'; 'Youth Singles'; 'Youth with Children';'Single Adults'"]
["Disabilities15Percent","0 Or Is Null Or 10"]
["Disabilities10Percent","0 Or Is Null Or 9"]
["Disabilities5Percent","0 Or Is Null Or 7"]
["ServesLowestIncOpt1","0 Or Is Null Or 13"]
["ServesLowestIncOpt2","0 Or Is Null Or 8"]
["RA100PercentUnits","0 Or Is Null Or 15"]
["RA51PercentUnits","0 Or Is Null Or 12"]
["RA20PercentUnits","0 Or Is Null Or 9"]
["RA10PercentUnits","0 Or Is Null Or 6"]
["RA5PercentUnits","0 Or Is Null Or 3"]
["RALessThan5PercentUnits","0 Or Is Null Or 2"]
["RA10YearContract","0 Or Is Null Or 4"]
["RA100Percent10YrUnits","0 Or Is Null Or 7"]
["RA75Percent10YrUnits","0 Or Is Null Or 6"]
["RA50Percent10YrUnits","0 Or Is Null Or 5"]
["RA25Percent10YrUnits","0 Or Is Null Or 4"]
["RA15Percent10YrUnits","0 Or Is Null Or 3"]
["LongTermAffordability40","0 Or Is Null Or 9"]
["LongTermAffordability35","0 Or Is Null Or 8"]
["EconIntegrationMixed","0 Or Is Null Or 2"]
["EconIntegration1stTier","0 Or Is Null Or 9"]
["EconIntegration2ndTier","0 Or Is Null Or 7"]
["AccessToSchools","0 Or Is Null Or 4"]
["WorkforceTopJobCenter","0 Or Is Null Or 6"]
["WorkforceEmpGrowth","0 Or Is Null Or 6"]
["WorkforceLongCommute","0 Or Is Null Or 3"]
["MetroTransitLRTBRT","0 Or Is Null Or 7"]
["MetroTransitHiFrequency","0 Or Is Null Or 4"]
["MetroHighSrvPublicTrans","0 Or Is Null Or 2"]
["MetroExpressBusRoute","0 Or Is Null Or 2"]
["MetroParkAndRide","0 Or Is Null Or 2"]
["MetroWalkScore70","0 Or Is Null Or 2"]
["MetroWalkScore50","0 Or Is Null Or 1"]
["GrtMnFixedOneQtrMile","0 Or Is Null Or 7"]
["GrtMnFixedOneHalfMile","0 Or Is Null Or 4"]
["GrtMnFixedExpressBusRoute","0 Or Is Null Or 4"]
["GrtMnFixedWalkScore70","0 Or Is Null Or 2"]
["GrtMnFixedWalkScore50","0 Or Is Null Or 1"]
["GtrMNNoFixedRideOneHour","0 Or Is Null Or 7"]
["GtrMNNoFixedRideSameDay","0 Or Is Null Or 4"]
["GtrMNNoFixedLowService","0 Or Is Null Or 2"]
["GrtMnNoFixedWalkScore50","0 Or Is Null Or 2"]
["GrtMnNoFixedWalkScore35","0 Or Is Null Or 1"]
["PlannedCommunityDev","0 Or Is Null Or 3"]
["EventualTenantOwnership","0 Or Is Null Or 1"]
["RuralTribalDesignatedArea","0 Or Is Null Or 10"]
["QCTorTribalEquivalent","0 Or Is Null Or 1"]
["MBEWBE","0 Or Is Null Or 3"]
["LossDuetoMarketConversion","'True'; 'False'"]
["LossDuetoCriticalPhysical","'True'; 'False'"]
["LossDuetoOwnershipCap","'True'; 'False'"]
["ExistingFedAssistUnits100","0 Or Is Null Or 30"]
["ExistingFedAssistUnits99","0 Or Is Null Or 22"]
["ExistingFedAssistUnits75","0 Or Is Null Or 15"]
["ExistingFedAssistUnits50","0 Or Is Null Or 10"]
["ExistingFedAssistUnits25","0 Or Is Null Or 5"]
["PartialFedAssistUnits99","0 Or Is Null Or 30"]
["PartialFedAssistUnits75","0 Or Is Null Or 20"]
["PartialFedAssistUnits25","0 Or Is Null Or 10"]
["CriticalAffordableUnits","0 Or Is Null Or 6"]
["FinancialReadinessEligibleFunding",""]
["FinancialReadinessDevelopmentCost",""]
["FinancialReadinessFundsCommitted",""]
["FinancialReadiness70","0 Or Is Null Or 16"]
["FinancialReadiness60","0 Or Is Null Or 14"]
["FinancialReadiness50","0 Or Is Null Or 12"]
["FinancialReadiness40","0 Or Is Null Or 10"]
["FinancialReadiness30","0 Or Is Null Or 8"]
["FinancialReadiness20","0 Or Is Null Or 6"]
["FinancialReadiness10","0 Or Is Null Or 4"]
["FinancialReadiness9","0 Or Is Null Or 0"]
["OtherContributionsFunding",""]
["OtherContributionsDevelopmentCost",""]
["OtherFundsCommittedPercentage",""]
["OtherFunds20","0 Or Is Null Or 10"]
["OtherFunds15","0 Or Is Null Or 8"]
["OtherFunds10","0 Or Is Null Or 6"]
["OtherFunds5","0 Or Is Null Or 4"]
["OtherFunds2","0 Or Is Null Or 2"]
["OtherFunds0","0 Or Is Null Or 0"]
["IntermediaryCosts",""]
["IntermediaryDevelopmentCost",""]
["IntermediaryPercentage",""]
["IntermediaryCost15","0 Or Is Null Or 6"]
["IntermediaryCost20","0 Or Is Null Or 3"]
["IntermediaryCost25","0 Or Is Null Or 2"]
["IntermediaryCost30","0 Or Is Null Or 1"]
["IntermediaryCostOver30","0 Or Is Null Or 0"]
["CostContainment","0 Or Is Null Or 6"]
["Elevator","0 Or Is Null Or 3"]
["NonElevator","0 Or Is Null Or 3"]
["SmokeFreeBuildings","0 Or Is Null Or 1"]
["UnacceptablePractices","0 Or Is Null Or Between -25 And -4"]

{"sheet":"Sheet1","index":4,"n_rows":389,"n_cols":23,"rows_kept":389,"cut":false,"hidden":true,"merged":[[0,11,0,12],[0,8,0,9]]}
[null,null,null,null,null,null,null,null,"No SPT Start State",null,"SPTSelectionCriteria Start"]
["Worksheet",null,null,null,"Name","Column","Row","Address","Named Range",null,"Named Range",null,null,null,null,null,null,null,"and",null,null,null,"HTC 4 Only"]
["Cover Sheet Links",null,null,"All","WorkbookName",{"$f":"LEFT(H3,1)","v":"B"},1,"B1","LargeFamily2Bedroom",null,"LargeFamily2Bedroom",null,null,null,null,null,null,"and ",null,"and ",null,null,"HTC 4 with Deferred"]
["Cover Sheet Links",null,null,"All","Version","B",2,"B2","SupportiveHousing20Units",null,"ServesLowestIncOpt1",null,null,null,null,null,null,"and ",null,"and ",null,null,"Deferred Only"]
["Cover Sheet Links",null,null,"All","HTCOnlyScoresheet","E",6,"E6","SupportiveHousing7Units",null,"ServesLowestIncOpt2"]
["Cover Sheet Links",null,null,"All","FundingTypeSelected","E",6,"E6:E8","SupportiveHousing4Units",null,"RA100PercentUnits"]
["Cover Sheet Links",null,null,"All","HTCAndDefScoresheet","E",7,"E7","Disabilities15Percent",null,"RA51PercentUnits"]
["Scoresheet",null,null,"All","DevelopmentName","I",7,"I7","Disabilities10Percent",null,"RA20PercentUnits"]
["Cover Sheet Links",null,null,"All","DEFOnlyScoresheet","E",8,"E8","Disabilities5Percent",null,"RA10PercentUnits"]
["Scoresheet",null,null,"All","DevelopmentNumber","I",8,"I8","ServesLowestIncOpt1",null,"RA5PercentUnits"]
["Scoresheet",null,null,"All","ApplicationNumber","I",9,"I9","ServesLowestIncOpt2",null,"RALessThan5PercentUnits"]
["Scoresheet",null,null,"All","DevelopmentLocation","I",10,"I10","RA100PercentUnits",null,"LongTermAffordability40"]
["Scoresheet",null,null,"All","DevelopmentCity","I",11,"I11","RA51PercentUnits",null,"LongTermAffordability35"]
["Cover Sheet",null,null,"All","chkClrCOMPScoresheet","B",13,"B13","RA20PercentUnits",null,"LongTermAffordabilityWaive30"]
["Cover Sheet",null,null,"All","chkClrCOMPAndDefScoresheet","B",15,"B15","RA10PercentUnits",null,"LongTermAffordabilityWaive25"]
["Cover Sheet",null,null,"All","chkClrDEFOnlyScoresheet","B",17,"B17","RA5PercentUnits",null,"EconIntegrationMixed"]
["Scoresheet",null,null,"All","Worksheet_SelectionCriteriaHeaderText","A",100,"A100","RALessThan5PercentUnits",null,"AccessToSchools"]
["Scoresheet",null,null,"Def","Worksheet_Header_Deferred",{"$f":"LEFT(H18,1)","v":"A"},1,"A1:P2","EconIntegrationMixed",null,"WorkforceTopJobCenter"]
["Scoresheet","X",null,"HTC/Def","Worksheet_Header_HTC","A",3,"A3:P4","EconIntegration1stTier",null,"WorkforceEmpGrowth"]
["Scoresheet",null,null,"Def","Worksheet_DeferredLanguage_OpeningNote","C",13,"C13","EconIntegration2ndTier",null,"WorkforceLongCommute"]
["Cover Sheet",null,null,null,"chkClrDEFand4PercentScoresheet","B",15,"B15","AccessToSchools",null,"MetroTransitLRTBRT"]
["Scoresheet",null,null,"HTC/Def","Worksheet_Instructions_Competitive","A",16,"A16:S39","WorkforceTopJobCenter",null,"MetroTransitHiFrequency"]
["Scoresheet",null,null,null,"HTCInstructions","A",16,"A16:P39","WorkforceEmpGrowth",null,"MetroHighSrvPublicTrans"]
["Scoresheet",null,null,"Def","Worksheet_Instructions_Deferred","A",40,"A40:S50","WorkforceLongCommute",null,"MetroExpressBusRoute"]
["Scoresheet",null,null,"Def","Worksheet_StrategicPriorityThresholds","A",52,"A52:P98","MetroTransitLRTBRT",null,"MetroParkAndRide"]
["Scoresheet",null,null,null,"SPTInstructions","A",54,"A54:P55","MetroTransitHiFrequency",null,"GrtMnFixedOneQtrMile"]
["Scoresheet",null,null,"Def","InstructionsStrategicPriorityThresholds","A",55,"A55","MetroHighSrvPublicTrans",null,"GrtMnFixedOneHalfMile"]
["Scoresheet",null,null,"Def","chkClrSPTAccessToFixedTransit","C",61,"C61","MetroExpressBusRoute",null,"GrtMnFixedExpressBusRoute"]
["Scoresheet",null,null,"Def","chkClrSPTGreaterMNWorkforceHsg","C",65,"C65","MetroParkAndRide",null,"GtrMNNoFixedRideOneHour"]
["Scoresheet",null,null,"Def","chkClrSPTEconomicIntegration","C",74,"C74","GrtMnFixedOneQtrMile",null,"GtrMNNoFixedRideSameDay"]
["Scoresheet",null,null,"Def","InstructionsStrategicPriorityThresholdsEconomicIntegration","D",76,"D76","GrtMnFixedOneHalfMile",null,"GtrMNNoFixedLowService"]
["Scoresheet",null,null,"Def","chkClrSPTTribal","C",80,"C80","GrtMnFixedExpressBusRoute",null,"EventualTenantOwnership"]
["Scoresheet",null,null,"Def","chkClrSPTPlannedCommunity","C",84,"C84","GtrMNNoFixedRideOneHour",null,"RuralTribalDesignatedArea"]
["Scoresheet",null,null,"Def","InstructionsStrategicPriorityThresholdsPlannedCommunityDevelopment","D",86,"D86","GtrMNNoFixedRideSameDay",null,"QCTorTribalEquivalent"]
["Scoresheet",null,null,"Def","chkClrSPTPreservation","C",90,"C90","GtrMNNoFixedLowService",null,"MBEWBE"]
["Scoresheet",null,null,"Def","InstructionsStrategicPriorityThresholdsPreservation","D",92,"D92","PlannedCommunityDev",null,"CostContainment"]
["Scoresheet",null,null,"Def","chkClrSPTSupportiveHsg","C",96,"C96","RuralTribalDesignatedArea",null,"Elevator"]
["Scoresheet",null,null,"Def","InstructionsStrategicPriorityThresholdsSupportiveHousing","D",98,"D98","QCTorTribalEquivalent",null,"NonElevator"]
["Scoresheet",null,null,"All","DevEditUnitsValueCells","R",104,"R104,R116,R124,R156,R202,R237,R260,R295,R316,R535,R668","MBEWBE",null,"SmokeFreeBuildings"]
["Scoresheet",null,null,"All","DevLargeFamilyHousing2BedroomUnitsValue","R",105,"R105","ExistingFedAssistUnits100"]
["Scoresheet",null,null,"All","DevLargeFamilyHousingUnitsValue","R",105,"R105:R107","ExistingFedAssistUnits99"]
["Scoresheet",null,null,"All","chkClrLargeFamily2Bedroom","E",106,"E106","ExistingFedAssistUnits75"]
["Scoresheet",null,null,"All","DevLargeFamilyHousing3BedroomUnitsValue","R",106,"R106","ExistingFedAssistUnits50"]
["Scoresheet",null,null,"All","DevLargeFamilyHousingGrtMNUnitsValue","R",106,"R106:R107","ExistingFedAssistUnits25"]
["Scoresheet",null,null,"All","DevLargeFamilyHousing4BedroomUnitsValue","R",107,"R107","PartialFedAssistUnits99"]
["Scoresheet",null,null,"All","chkClrLargeFamily3Bedroom","E",108,"E108","PartialFedAssistUnits75"]
["Scoresheet",null,null,"Def","InstructionsPermanentSupportiveHousing","C",113,"C113","PartialFedAssistUnits25"]
["Scoresheet",null,null,"All","DevSupportiveHousingUnitsValue","R",117,"R117,R118,R120,R121","CriticalAffordableUnits"]
["Scoresheet",null,null,"All","DevSupportiveHousingYouthWithChildrenUnitsValue","R",117,"R117","DevFinancialReadinessEligibleFunding"]
["Scoresheet",null,null,"All","DevSupportiveHousingYouthUnitsValue",{"$f":"LEFT(H50,1)","v":"R"},118,"R118","DevFinancialReadinessDevelopmentCost"]
["Scoresheet",null,null,"All","chkClrSupportiveHousing20Units","E",119,"E119","DevOtherContributionsFunding"]
["Scoresheet",null,null,"All","DevSupportiveHousingSingleAdultUnitsValue","R",120,"R120","DevOtherContributionsDevelopmentCost"]
["Scoresheet",null,null,"All","chkClrSupportiveHousing7Units","E",121,"E121","DevIntermediaryCosts"]
["Scoresheet",null,null,"All","DevSupportiveHousingFamiliesUnitsValue","R",121,"R121","DevIntermediaryDevelopmentCost"]
["Scoresheet",null,null,"All","chkClrSupportiveHousing4Units","E",123,"E123","CostContainment"]
["Scoresheet",null,null,"All","DevSupportiveHousingPriorityUnitsValue","R",125,"R125","Elevator"]
["Scoresheet",null,null,"All","DevSupportiveHousingPriorityValues","R",125,"R125,R126","NonElevator"]
["Scoresheet",null,null,"All","DevSupportiveHousingPriorityType","R",126,"R126","SmokeFreeBuildings"]
["Scoresheet",null,null,"All","chkClrSupportiveHousingPriority","E",130,"E130","LossDuetoMarketConversion"]
["Scoresheet",null,null,"HTC/Def","Worksheet_CompetitiveLanguage_PermanentSupportiveHousing","C",149,"C149","LossDuetoCriticalPhysical"]
["Scoresheet",null,null,"Def","Worksheet_DeferredLanguage_PermanentSupportiveHousing","C",150,"C150","LossDuetoOwnershipCap"]
["Scoresheet",null,null,"Def","InstructionsPeopleWithDisabilities","C",155,"C155","LongTermAffordability40"]
["Scoresheet",null,null,"All","DevDisabilitiesUnitsValue","R",157,"R157","LongTermAffordability35"]
["Scoresheet",null,null,"All","chkClrDisabilities15Percent","E",159,"E159","LongTermAffordabilityWaive30"]
["Scoresheet",null,null,"All","chkClrDisabilities10Percent","E",161,"E161","LongTermAffordabilityWaive25"]
["Scoresheet",null,null,"All","chkClrDisabilities5Percent","E",163,"E163","EventualTenantOwnership"]
["Scoresheet",null,null,"All","DevServesLowestIncUnitsValue","R",203,"R203","DevUnacceptablePractices"]
["Scoresheet",null,null,"All","chkClrServesLowestIncOpt1","E",209,"E209"]
["Scoresheet",null,null,"All","chkClrServesLowestIncOpt2","E",211,"E211"]
["Scoresheet",null,null,"All","DevRAUnitsValue","R",238,"R238"]
["Scoresheet",null,null,"All","chkClrRA100PercentUnits","E",240,"E240"]
["Scoresheet",null,null,"All","chkClrRA51PercentUnits","E",242,"E242"]
["Scoresheet",null,null,"All","chkClrRA20PercentUnits","E",244,"E244"]
["Scoresheet",null,null,"All","chkClrRA10PercentUnits","E",246,"E246"]
["Scoresheet",null,null,"All","chkClrRA5PercentUnits","E",248,"E248"]
["Scoresheet",null,null,"All","chkClrRALessThan5PercentUnits","E",250,"E250"]
["Scoresheet",null,null,"All","chkClrRA10YearContract","E",252,"E252"]
["Scoresheet",null,null,"Def","InstructionsDEFRAPercent10YrUnits","C",255,"C255:N257"]
["Scoresheet",null,null,"HTC/Def","InstructionsHTCRAPercent10YrUnits","C",258,"C258:N261"]
["Scoresheet",null,null,"All","DevRA10YrUnitsValue","R",261,"R261"]
["Scoresheet",null,null,"All","chkClrRA100Percent10YrUnits","E",263,"E263"]
["Scoresheet",null,null,"All","chkClrRA75Percent10YrUnits",{"$f":"LEFT(H82,1)","v":"E"},265,"E265"]
["Scoresheet",null,null,"All","chkClrRA50Percent10YrUnits","E",267,"E267"]
["Scoresheet",null,null,"All","chkClrRA25Percent10YrUnits","E",269,"E269"]
["Scoresheet",null,null,"All","chkClrRA15Percent10YrUnits","E",271,"E271"]
["Scoresheet",null,null,"HTC/Def","Worksheet_Language_LongTermAffordability","A",281,"A281:N292"]
["Scoresheet",null,null,"HTC/Def","chkClrLongTermAffordability40","E",285,"E285"]
["Scoresheet",null,null,"HTC/Def","chkClrLongTermAffordability35","E",287,"E287"]
["Scoresheet",null,null,"HTC/Def","chkClrLongTermAffordabilityWaive30","E",289,"E289"]
["Scoresheet",null,null,"HTC/Def","chkClrLongTermAffordabilityWaive25","E",291,"E291"]
["Scoresheet",null,null,"All","DevEconIntegrationMixedUnitsValue","R",296,"R296"]
["Scoresheet",null,null,"All","chkClrEconIntegrationMixed","E",298,"E298"]
["Scoresheet",null,null,null,"Worksheet_CompetitiveLanguage_EconomicIntegration","F",299,"F299"]
["Scoresheet",null,null,"Def","Worksheet_DeferredLanguage_EconomicIntegration","E",303,"E303"]
["Scoresheet",null,null,null,"InstructionsDEFEconIntegration","E",303,"E303"]
["Scoresheet",null,null,"All","InstructionsEconIntegrationRuralTribal","E",304,"E304"]
["Scoresheet",null,null,"All","chkClrEconIntegration1stTier","F",306,"F306"]
["Scoresheet",null,null,"All","chkClrEconIntegration2ndTier","F",308,"F308"]
["Scoresheet",null,null,"All","DevAccessToSchools2BedroomsUnitsValue","R",318,"R318"]
["Scoresheet",null,null,"All","DevAccessToSchoolsUnitsValue","R",318,"R318:R320"]
["Scoresheet",null,null,"All","DevAccessToSchools3BedroomsUnitsValue","R",319,"R319"]
["Scoresheet",null,null,"All","DevAccessToSchools4BedroomsUnitsValue","R",320,"R320"]
["Scoresheet",null,null,"All","chkClrAccessToSchools","E",321,"E321"]
["Scoresheet",null,null,"All","chkClrWorkforceTopJobCenter","E",330,"E330"]
["Scoresheet",null,null,"All","chkClrWorkforceEmpGrowth","E",332,"E332"]
["Scoresheet",null,null,"All","chkClrWorkforceLongCommute","E",335,"E335"]
["Scoresheet",null,null,"All","chkClrMetroTransitLRTBRT","F",348,"F348"]
["Scoresheet",null,null,"All","chkClrMetroTransitHiFrequency","F",350,"F350"]
["Scoresheet",null,null,"All","chkClrMetroHighSrvPublicTrans","F",352,"F352"]
["Scoresheet",null,null,"All","chkClrMetroExpressBusRoute","F",354,"F354"]
["Scoresheet",null,null,"All","chkClrMetroParkAndRide","F",356,"F356"]
["Scoresheet",null,null,"All","chkClrMetroWalkScore70","F",360,"F360"]
["Scoresheet",null,null,"All","chkClrMetroWalkScore50","F",363,"F363"]
["Scoresheet",null,null,"All","chkClrGrtMnFixedOneQtrMile",{"$f":"LEFT(H114,1)","v":"G"},372,"G372"]
["Scoresheet",null,null,"All","chkClrGrtMnFixedOneHalfMile","G",374,"G374"]
["Scoresheet",null,null,"All","chkClrGrtMnFixedExpressBusRoute","G",376,"G376"]
["Scoresheet",null,null,"All","chkClrGrtMnFixedWalkScore70","G",380,"G380"]
["Scoresheet",null,null,"All","chkClrGrtMnFixedWalkScore50","G",383,"G383"]
["Scoresheet",null,null,"All","chkClrGtrMNNoFixedRideOneHour","G",390,"G390"]
["Scoresheet",null,null,"All","chkClrGtrMNNoFixedRideSameDay","G",393,"G393"]
["Scoresheet",null,null,"All","chkClrGtrMNNoFixedLowService","G",396,"G396"]
["Scoresheet",null,null,"All","chkClrGrtMnNoFixedWalkScore50","G",401,"G401"]
["Scoresheet",null,null,"All","chkClrGrtMnNoFixedWalkScore35","G",404,"G404"]
["Scoresheet",null,null,"Def","InstructionsDEFPlannedCommunityDev","C",422,"C422,F429:N429,F431:N434,E435:N435,E438:N439,E442:N449"]
["Scoresheet",null,null,"All","chkClrPlannedCommunityDev","D",424,"D424"]
["Scoresheet",null,null,"Def","Worksheet_Language_Deferred_PlannedCommunityDev","F",429,"F429:N429,F431:N434,E438:N439,E442:N449"]
["Scoresheet",null,null,"HTC/Def","Worksheet_Language_HTC_PlannedCommunityDev","E",436,"E436:N437,E441"]
["Scoresheet",null,null,"HTC/Def","Worksheet_Language_HTC_EventualTenantOwnership",{"$f":"LEFT(H128,1)","v":"A"},453,"A453:N459"]
["Scoresheet",null,null,"HTC/Def","chkClrEventualTenantOwnership","D",455,"D455"]
["Scoresheet",null,null,"All","orderRuralTribalDesignatedArea","B",460,"B460"]
["Scoresheet",null,null,"All","InstructionsRuralTribalDesignatedArea","C",463,"C463"]
["Scoresheet",null,null,"All","chkClrRuralTribalDesignatedArea","D",465,"D465"]
["Scoresheet",null,null,"All","orderQCTorTribalEquivalent","B",471,"B471"]
["Scoresheet",null,null,"All","chkClrQCTorTribalEquivalent","D",473,"D473"]
["Scoresheet",null,null,"All","orderMBEWBE","B",480,"B480"]
["Scoresheet",null,null,"All","chkClrMBEWBE","D",482,"D482"]
["Scoresheet",null,null,"Def, HTC/Def","InstructionsPreservationThresholds","B",488,"B488"]
["Scoresheet",null,null,"Def, HTC/Def","Worksheet_Language_DeferredAnd4HTC_PreservationThresholds","B",489,"B489:N531"]
["Scoresheet",null,null,"Def, HTC/Def","chkClrLossDuetoMarketConversion","D",495,"D495"]
["Scoresheet",null,null,"Def, HTC/Def","chkClrLossDuetoCriticalPhysical","D",509,"D509"]
["Scoresheet",null,null,"Def, HTC/Def","chkClrLossDuetoOwnershipCap","D",518,"D518"]
["Scoresheet",null,null,"All","DevManualEntryCellsInstructionsPreservationFedAssist","Q",535,"Q535"]
["Scoresheet",null,null,"All","DevFedAssistUnitsUnitsValue","R",536,"R536"]
["Scoresheet",null,null,"All","chkClrExistingFedAssistUnits100","F",540,"F540"]
["Scoresheet",null,null,"All","chkClrExistingFedAssistUnits99","F",542,"F542"]
["Scoresheet",null,null,"All","chkClrExistingFedAssistUnits75","F",544,"F544"]
["Scoresheet",null,null,"All","chkClrExistingFedAssistUnits50","F",546,"F546"]
["Scoresheet",null,null,"All","chkClrExistingFedAssistUnits25","F",548,"F548"]
["Scoresheet",null,null,"All","chkClrPartialFedAssistUnits99","F",552,"F552"]
["Scoresheet",null,null,"All","chkClrPartialFedAssistUnits75","F",554,"F554"]
["Scoresheet",null,null,"All","chkClrPartialFedAssistUnits25","F",556,"F556"]
["Scoresheet",null,null,"All","chkClrCriticalAffordableUnits","E",562,"E562"]
["Scoresheet",null,null,"All","DevFinancialReadiness","I",577,"I577,K577"]
["Scoresheet",null,null,"All","DevFinancialReadinessEligibleFunding","I",577,"I577"]
["Scoresheet",null,null,"All","DevFinancialReadinessDevelopmentCost","K",577,"K577"]
["Scoresheet",null,null,"All","DevFinancialReadinessFundsCommitted","M",577,"M577"]
["Scoresheet",null,null,"All","Worksheet_Language_HTCFinancialReadiness","C",608,"C608"]
["Scoresheet",null,null,"All","DevOtherContributions","I",616,"I616,K616"]
["Scoresheet",null,null,"All","DevOtherContributionsFunding","I",616,"I616"]
["Scoresheet",null,null,"All","DevOtherContributionsDevelopmentCost","K",616,"K616"]
["Scoresheet",null,null,"All","DevOtherFundsCommittedPercentage","M",616,"M616"]
["Scoresheet",null,null,"HTC/Def","Worksheet_Language_HTCDef_FinancialReadiness","B",635]
["Scoresheet",null,null,"All","DevIntermediaryCosts",{"$f":"LEFT(H163,1)","v":"I"},643,"I643"]
["Scoresheet",null,null,"All","DevIntermediary","K",643,"K643,I643"]
["Scoresheet",null,null,"All","DevIntermediaryDevelopmentCost","K",643,"K643"]
["Scoresheet",null,null,"All","DevIntermediaryPercentage","M",643,"M643"]
["Scoresheet",null,null,"HTC/Def","Worksheet_HTC4CostContainment","C",653,"C653:N654,C660"]
["Scoresheet",null,null,"Def","Worksheet_DEFCostContainment","C",655,"C655:N657"]
["Scoresheet",null,null,"All","chkClrCostContainment","D",655,"D655"]
["Scoresheet",null,null,"All","DevUniversalDesignUnitsValue","R",669,"R669"]
["Scoresheet",null,null,"All","chkClrElevator","E",671,"E671"]
["Scoresheet",null,null,"All","chkClrNonElevator","E",673,"E673"]
["Scoresheet",null,null,"All","chkClrSmokeFreeBuildings","C",714,"C714"]
["Scoresheet",null,null,"HTC/Def","Worksheet_CompetitiveLanguage_End","A",719,"A719:N742"]
["Scoresheet",null,null,null,"Worksheet_Language_UnacceptablePractices","B",719,"B719:N723"]
["Scoresheet",null,null,"HTC/Def","DevUnacceptablePractices","B",721,"B721"]
["Scoresheet",null,null,null,"Worksheet_HTCSignature","A",724,"A724:N742"]
["Cover Sheet",null,null,"All","Cover SheetPrint_Area","A",null,"A1:P33"]
["Named Ranges",null,null,"Def","SPTSelectionCriteria","M 185",null,"M185,M182,M181,M178,M124,M122,M120,M118,M110,M109,M108,M102,M101,M100,M94,M93,M92,M91,M90,M86,M85,M84,M79,M74,M71,M70,M60,M59,M58,M57,M56,M54,M50,M49,M26"]
[null,null,null,"All","DevAllUnitsCells"]
[null,null,null,"All","DevManualEntryCells"]
[null,null,null,null,"InstructionsStrategicPriorityThresholdsAll"]
["Dropdown Lists",null,null,null,"List_HighPriorityHomelessType",{"$f":"LEFT(H183,1)","v":"A"},2,"A2:A5"]
["Dropdown Lists",null,null,null,"List_UnacceptablePractices","C",2,"C2:C23"]
["Named Ranges",null,null,null,"MTRAll",{"$f":"LEFT(H185,1)","v":"M"},4,"M4,M5,M6,M8,M10,M12,M14"]
["Named Ranges",null,null,null,"MTRMetro","M",4,"M4:M6"]
["Named Ranges",null,null,null,"MTRMetroNewConstruction","M",4,"M4:M5,M8"]
["Named Ranges",null,null,null,"MTRMetroSRO","M",4,"M4"]
["Named Ranges",null,null,null,"MTROutMetro","M",4,"M4,M5,M6,M8"]
["Named Ranges",null,null,null,"MTRMetroLargeFamily","M",5,"M5"]
["Named Ranges",null,null,null,"MTRMetroOutRehabilitation","M",6,"M6,M8"]
["Named Ranges",null,null,null,"MTRMetroRehabilitation","M",6,"M6"]
["Named Ranges",null,null,null,"MTRShortSupply","M",8,"M8"]
["Named Ranges",null,null,null,"MTRNotRestricted","M",10,"M10"]
["Named Ranges",null,null,null,"MTRPreservation","M",12,"M12"]
["Named Ranges",null,null,null,"MTRRuralDevelopment","M",14,"M14"]
["Named Ranges",null,null,null,"SPTAll","M",16,"M16:M22"]
["Named Ranges",null,null,null,"SPTAccessToFixedTransit","M",16,"M16"]
["Named Ranges",null,null,null,"SPTGreaterMNWorkforceHsg","M",17,"M17"]
["Named Ranges",null,null,null,"SPTEconomicIntegration","M",18,"M18"]
["Named Ranges",null,null,null,"SPTTribal","M",19,"M19"]
["Named Ranges",null,null,null,"SPTPlannedCommunity","M",20,"M20"]
["Named Ranges",null,null,null,"SPTPreservation","M",21,"M21"]
["Named Ranges",null,null,null,"SPTSupportiveHsg","M",22,"M22"]
["Named Ranges",null,null,null,"AllSelectionCriteria","M",26,"M26,M30,M32,M33,M34,M39,M43,M44,M45,M49,M50"]
["Named Ranges",null,null,null,"LargeFamily2Bedroom","M",26,"M26","M26","M26"]
["Named Ranges",null,null,null,"LargeFamilyHousing2BedroomUnitsValue","M",27,"M27"]
["Named Ranges",null,null,null,"LargeFamilyHousing3BedroomUnitsValue","M",28,"M28",null,null,{"$f":"RIGHT(J206, LEN(J206)-1)","v":"26"}]
["Named Ranges",null,null,null,"LargeFamilyHousing4BedroomUnitsValue","M",29,"M29"]
["Named Ranges",null,null,null,"LargeFamily3Bedroom","M",30,"M30"]
["Named Ranges",null,null,null,"SupportiveHousing","M",32,"M32,M33,M34,M39,M43,M44,M45"]
["Named Ranges",null,null,null,"SupportiveHousingUnits","M",32,"M32,M33,M34"]
["Named Ranges",null,null,null,"SupportiveHousing20Units","M",32,"M32"]
["Named Ranges",null,null,null,"SupportiveHousing7Units","M",33,"M33"]
["Named Ranges",null,null,null,"SupportiveHousing4Units","M",34,"M34"]
["Named Ranges",null,null,null,"SupportiveHousingFamiliesUnitsValue","M",35,"M35"]
["Named Ranges",null,null,null,"SupportiveHousingYouthWithChildrenUnitsValue",{"$f":"LEFT(H217,1)","v":"M"},36,"M36"]
["Named Ranges",null,null,null,"SupportiveHousingYouthUnitsValue","M",37,"M37"]
["Named Ranges",null,null,null,"SupportiveHousingSingleAdultUnitsValue","M",38,"M38"]
["Named Ranges",null,null,null,"SupportiveHousingPriority","M",39,"M39"]
["Named Ranges",null,null,null,"SupportiveHousingPriorityUnitsValue","M",40,"M40"]
["Named Ranges",null,null,null,"SupportiveHousingPriorityType","M",41,"M41"]
["Named Ranges",null,null,null,"Disabilities","M",43,"M43,M44,M45"]
["Named Ranges",null,null,null,"Disabilities15Percent","M",43,"M43"]
["Named Ranges",null,null,null,"Disabilities10Percent","M",44,"M44"]
["Named Ranges",null,null,null,"Disabilities5Percent","M",45,"M45"]
["Named Ranges",null,null,null,"DisabilitiesUnitsValue","M",46,"M46"]
["Named Ranges",null,null,null,"ServesLowestInc","M",49,"M49,M50"]
["Named Ranges",null,null,null,"ServesLowestIncOpt1","M",49,"M49","M49","M49"]
["Named Ranges",null,null,null,"ServesLowestIncOpt2","M",50,"M50","M50","M50"]
["Named Ranges",null,null,null,"ServesLowestIncUnitsValue","M",51,"M51",null,null,{"$f":"RIGHT(J229, LEN(J229)-1)","v":"49"}]
["Named Ranges",null,null,null,"RAPercentUnits","M",54,"M54,M56:M60",null,null,{"$f":"RIGHT(J230, LEN(J230)-1)","v":"50"}]
["Named Ranges",null,null,null,"RA100PercentUnitsValue","M",55,"M55"]
["Named Ranges",null,null,null,"RA100PercentUnits","M",54,"M54","M54","M54"]
["Named Ranges",null,null,null,"RA51PercentUnits","M",56,"M56","M56","M56"]
["Named Ranges",null,null,null,"RA20PercentUnits","M",57,"M57","M57","M57",{"$f":"RIGHT(J234, LEN(J234)-1)","v":"54"}]
["Named Ranges",null,null,null,"RA10PercentUnits","M",58,"M58","M58","M58","56"]
["Named Ranges",null,null,null,"RA5PercentUnits","M",59,"M59","M59","M59","57"]
["Named Ranges",null,null,null,"RALessThan5PercentUnits","M",60,"M60","M60","M60","58"]
["Named Ranges",null,null,null,"RA10YearContract","M",61,"M61",null,null,"59"]
["Named Ranges",null,null,null,"RA15Percent10YrUnits","M",63,"M63",null,null,"60"]
["Named Ranges",null,null,null,"RAPercent10YrUnits","M",63,"M63,M65,M66,M67,M68"]
["Named Ranges",null,null,null,"RA15Percent10YrUnitsValue","M",64,"M64"]
["Named Ranges",null,null,null,"RA25Percent10YrUnits","M",65,"M65"]
["Named Ranges",null,null,null,"RA50Percent10YrUnits","M",66,"M66"]
["Named Ranges",null,null,null,"RA75Percent10YrUnits","M",67,"M67"]
["Named Ranges",null,null,null,"RA100Percent10YrUnits","M",68,"M68"]
["Named Ranges",null,null,null,"LongTermAffordability","M",70,"M70:M71"]
["Named Ranges",null,null,null,"LongTermAffordability40","M",70,"M70","M70","M70"]
["Named Ranges",null,null,null,"LongTermAffordability35","M",71,"M71","M71","M71"]
[null,null,null,null,"LongTermAffordabilityWaive30",null,null,null,null,null,{"$f":"RIGHT(J249, LEN(J249)-1)","v":"70"}]
[null,null,null,null,"LongTermAffordabilityWaive25",null,null,null,null,null,{"$f":"RIGHT(J250, LEN(J250)-1)","v":"71"}]
["Named Ranges",null,null,null,"EconIntegrationMixedUnitsValue",{"$f":"LEFT(H253,1)","v":"M"},75,"M75"]
["Named Ranges",null,null,null,"EconIntegrationMixed","M",74,"M74","M74","M74"]
["Named Ranges",null,null,null,"EconIntegrationTiers","M",76,"M76:M77"]
["Named Ranges",null,null,null,"EconIntegration1stTier","M",76,"M76",null,null,{"$f":"RIGHT(J254, LEN(J254)-1)","v":"74"}]
["Named Ranges",null,null,null,"EconIntegration2ndTier","M",77,"M77"]
["Named Ranges",null,null,null,"AccessToSchools","M",79,"M79","M79","M79"]
["Named Ranges",null,null,null,"AccessToSchools2BedroomsUnitsValue","M",80,"M80"]
["Named Ranges",null,null,null,"AccessToSchools3BedroomsUnitsValue","M",81,"M81",null,null,{"$f":"RIGHT(J258, LEN(J258)-1)","v":"79"}]
["Named Ranges",null,null,null,"AccessToSchools4BedroomsUnitsValue","M",82,"M82"]
["Named Ranges",null,null,null,"WorkforceHousing","M",84,"M84:M86"]
["Named Ranges",null,null,null,"WorkforceTopJobCenter","M",84,"M84","M84","M84"]
["Named Ranges",null,null,null,"WorkforceEmpGrowth","M",85,"M85","M85","M85"]
["Named Ranges",null,null,null,"WorkforceLongCommute","M",86,"M86","M86","M86",{"$f":"RIGHT(J263, LEN(J263)-1)","v":"84"}]
["Named Ranges",null,null,null,"AccessToTransitMetro","M",90,"M90:M94",null,null,{"$f":"RIGHT(J264, LEN(J264)-1)","v":"85"}]
["Named Ranges",null,null,null,"LocationEfficiency","M",90,"M90:M94,M96,M97,M100,M101,M102,M104,M105,M108:M110,M112",null,null,{"$f":"RIGHT(J265, LEN(J265)-1)","v":"86"}]
["Named Ranges",null,null,null,"LocationEfficiencyMetro","M",90,"M90:M94,M96,M97"]
["Named Ranges",null,null,null,"MetroTransitLRTBRT","M",90,"M90","M90","M90"]
["Named Ranges",null,null,null,"MetroTransitHiFrequency","M",91,"M91","M91","M91"]
["Named Ranges",null,null,null,"MetroHighSrvPublicTrans","M",92,"M92","M92","M92",{"$f":"RIGHT(J269, LEN(J269)-1)","v":"90"}]
["Named Ranges",null,null,null,"MetroExpressBusRoute","M",93,"M93","M93","M93",{"$f":"RIGHT(J270, LEN(J270)-1)","v":"91"}]
["Named Ranges",null,null,null,"MetroParkAndRide","M",94,"M94","M94","M94",{"$f":"RIGHT(J271, LEN(J271)-1)","v":"92"}]
["Named Ranges",null,null,null,"WalkabilityMetro","M",96,"M96:M97",null,null,{"$f":"RIGHT(J272, LEN(J272)-1)","v":"93"}]
["Named Ranges",null,null,null,"MetroWalkScore70","M",96,"M96",null,null,{"$f":"RIGHT(J273, LEN(J273)-1)","v":"94"}]
["Named Ranges",null,null,null,"MetroWalkScore50","M",97,"M97"]
["Named Ranges",null,null,null,"LocationEfficiencyGtrMN","M",100,"M100,M101,M102,M104,M105,M108,M109,M110,M112,M113"]
["Named Ranges",null,null,null,"AccessToTransitFixedGtrMN","M",100,"M100:M102"]
["Named Ranges",null,null,null,"LocationEfficiencyGtrMNFixed","M",100,"M100:M102,M104,M105"]
["Named Ranges",null,null,null,"GrtMnFixedOneQtrMile","M",100,"M100","M100","M100"]
["Named Ranges",null,null,null,"GrtMnFixedOneHalfMile","M",101,"M101","M101","M101"]
["Named Ranges",null,null,null,"GrtMnFixedExpressBusRoute","M",102,"M102","M102","M102",{"$f":"RIGHT(J280, LEN(J280)-1)","v":"100"}]
["Named Ranges",null,null,null,"WalkabilityFixedGtrMN","M",104,"M104:M105",null,null,{"$f":"RIGHT(J281, LEN(J281)-1)","v":"101"}]
["Named Ranges",null,null,null,"GrtMnFixedWalkScore70","M",104,"M104",null,null,{"$f":"RIGHT(J282, LEN(J282)-1)","v":"102"}]
["Named Ranges",null,null,null,"GrtMnFixedWalkScore50",{"$f":"LEFT(H285,1)","v":"M"},105,"M105"]
["Named Ranges",null,null,null,"AccessToTransitNoFixedGtrMN","M",108,"M108:M110"]
["Named Ranges",null,null,null,"LocationEfficiencyGtrMNNoFixed","M",108,"M108:M110,M112,M113"]
["Named Ranges",null,null,null,"GtrMNNoFixedRideOneHour","M",108,"M108","M108","M108"]
["Named Ranges",null,null,null,"GtrMNNoFixedRideSameDay","M",109,"M109","M109","M109"]
["Named Ranges",null,null,null,"GtrMNNoFixedLowService","M",110,"M110","M110","M110",{"$f":"RIGHT(J288, LEN(J288)-1)","v":"108"}]
["Named Ranges",null,null,null,"WalkabilityNoFixedGtrMN","M",112,"M112:M113",null,null,{"$f":"RIGHT(J289, LEN(J289)-1)","v":"109"}]
["Named Ranges",null,null,null,"GrtMnNoFixedWalkScore50","M",112,"M112",null,null,{"$f":"RIGHT(J290, LEN(J290)-1)","v":"110"}]
["Named Ranges",null,null,null,"GrtMnNoFixedWalkScore35","M",113,"M113"]
["Named Ranges",null,null,null,"PlannedCommunityDev","M",116,"M116","M116"]
["Named Ranges",null,null,null,"EventualTenantOwnership","M",118,"M118","M118","M118"]
["Named Ranges",null,null,null,"RuralTribalDesignatedArea","M",120,"M120","M120","M120"]
["Named Ranges",null,null,null,"QCTorTribalEquivalent","M",122,"M122","M122","M122",{"$f":"RIGHT(J295, LEN(J295)-1)","v":"118"}]
["Named Ranges",null,null,null,"MBEWBE","M",124,"M124","M124","M124",{"$f":"RIGHT(J296, LEN(J296)-1)","v":"120"}]
["Named Ranges",null,null,null,"PreservationThresholds","M",127,"M127:M129",null,null,{"$f":"RIGHT(J297, LEN(J297)-1)","v":"122"}]
["Named Ranges",null,null,null,"LossDuetoMarketConversion","M",127,"M127","M127",null,{"$f":"RIGHT(J298, LEN(J298)-1)","v":"124"}]
["Named Ranges",null,null,null,"LossDuetoCriticalPhysical","M",128,"M128","M128"]
["Named Ranges",null,null,null,"LossDuetoOwnershipCap","M",129,"M129","M129"]
["Named Ranges",null,null,null,"Preservation","M",132,"M132,M133,M134,M135,M136,M138,M139,M140,M144"]
["Named Ranges",null,null,null,"ExistingFedAssistUnits","M",132,"M132:M136"]
["Named Ranges",null,null,null,"FedAssistUnits","M",132,"M132:M136,M138,M139,M140"]
["Named Ranges",null,null,null,"ExistingFedAssistUnits100","M",132,"M132"]
["Named Ranges",null,null,null,"ExistingFedAssistUnits99","M",133,"M133"]
["Named Ranges",null,null,null,"ExistingFedAssistUnits75","M",134,"M134"]
["Named Ranges",null,null,null,"ExistingFedAssistUnits50","M",135,"M135"]
["Named Ranges",null,null,null,"ExistingFedAssistUnits25","M",136,"M136"]
["Named Ranges",null,null,null,"PartialFedAssistUnits","M",138,"M138:M140"]
["Named Ranges",null,null,null,"PartialFedAssistUnits99","M",138,"M138"]
["Named Ranges",null,null,null,"PartialFedAssistUnits75","M",139,"M139"]
["Named Ranges",null,null,null,"PartialFedAssistUnits25","M",140,"M140"]
["Named Ranges",null,null,null,"FedAssistUnitsUnitsValue","M",142,"M142"]
["Named Ranges",null,null,null,"CriticalAffordableUnits","M",144,"M144"]
["Named Ranges",null,null,null,"FinancialReadinessEligibleFunding",{"$f":"LEFT(H317,1)","v":"M"},147,"M147"]
["Named Ranges",null,null,null,"FinancialReadinessDevelopmentCost","M",148,"M148"]
["Named Ranges",null,null,null,"FinancialReadinessFundsCommitted","M",149,"M149"]
["Named Ranges",null,null,null,"FinancialReadiness","M",150,"M150,M151,M152,M153,M154,M155,M156,M157"]
["Named Ranges",null,null,null,"FinancialReadiness70","M",150,"M150"]
["Named Ranges",null,null,null,"FinancialReadiness60","M",151,"M151"]
["Named Ranges",null,null,null,"FinancialReadiness50","M",152,"M152"]
["Named Ranges",null,null,null,"FinancialReadiness40","M",153,"M153"]
["Named Ranges",null,null,null,"FinancialReadiness30","M",154,"M154"]
["Named Ranges",null,null,null,"FinancialReadiness20","M",155,"M155"]
["Named Ranges",null,null,null,"FinancialReadiness10","M",156,"M156"]
["Named Ranges",null,null,null,"FinancialReadiness9","M",157,"M157"]
["Named Ranges",null,null,null,"OtherContributionsFunding","M",159,"M159"]
["Named Ranges",null,null,null,"OtherContributionsDevelopmentCost","M",160,"M160"]
["Named Ranges",null,null,null,"OtherFundsCommittedPercentage","M",161,"M161"]
["Named Ranges",null,null,null,"OtherFunds","M",162,"M162,M163,M164,M165,M166,M167"]
["Named Ranges",null,null,null,"OtherFunds20","M",162,"M162"]
["Named Ranges",null,null,null,"OtherFunds15","M",163,"M163"]
["Named Ranges",null,null,null,"OtherFunds10","M",164,"M164"]
["Named Ranges",null,null,null,"OtherFunds5","M",165,"M165"]
["Named Ranges",null,null,null,"OtherFunds2","M",166,"M166"]
["Named Ranges",null,null,null,"OtherFunds0","M",167,"M167"]
["Named Ranges",null,null,null,"IntermediaryCosts","M",169,"M169"]
["Named Ranges",null,null,null,"IntermediaryDevelopmentCost","M",170,"M170"]
["Named Ranges",null,null,null,"IntermediaryPercentage","M",171,"M171"]
["Named Ranges",null,null,null,"IntermediaryCost","M",172,"M172,M173,M174,M175,M176"]
["Named Ranges",null,null,null,"IntermediaryCost15","M",172,"M172"]
["Named Ranges",null,null,null,"IntermediaryCost20","M",173,"M173"]
["Named Ranges",null,null,null,"IntermediaryCost25","M",174,"M174"]
["Named Ranges",null,null,null,"IntermediaryCost30","M",175,"M175"]
["Named Ranges",null,null,null,"IntermediaryCostOver30","M",176,"M176"]
["Named Ranges",null,null,null,"CostContainment","M",178,"M178","M178","M178"]
["Named Ranges",null,null,null,"UniversalDesign",{"$f":"LEFT(H349,1)","v":"M"},181,"M181:M182"]
["Named Ranges",null,null,null,"UniversalDesignUnitsValue","M",183,"M183",null,null,"178"]
["Named Ranges",null,null,null,"Elevator","M",181,"M181","M181","M181"]
["Named Ranges",null,null,null,"NonElevator","M",182,"M182","M182","M182"]
["Named Ranges",null,null,null,"SmokeFreeBuildings","M",185,"M185","M185","M185",181]
["Named Ranges",null,null,null,"UnacceptablePractices","M",188,"M188","M188",null,182]
["Named Ranges",null,null,null,"LargeFamily2BedroomQstnScore","Q",26,"Q26",null,null,185]
["Named Ranges",null,null,null,"LargeFamily3BedroomQstnScore","Q",30,"Q30"]
["Named Ranges",null,null,null,"PlannedCommunityDevelopmentTotalScore","Q",116,"Q116"]
["Named Ranges",null,null,null,"EventualTenantOwnershipTotalScore","Q",118,"Q118"]
["Named Ranges",null,null,null,"RuralTribalDesignatedAreaTotalScore","Q",120,"Q120"]
["Named Ranges",null,null,null,"QCTOrTribalEquivalentTotalScore","Q",122,"Q122"]
["Named Ranges",null,null,null,"MBEWBETotalScore","Q",124,"Q124"]
["Named Ranges",null,null,null,"CostContainmentTotalScore","Q",178,"Q178"]
["Named Ranges",null,null,null,"SmokeFreeBuildingsTotalScore","Q",185,"Q185"]
["Named Ranges",null,null,null,"UnacceptablePracticesTotalScore","Q",188,"Q188"]
["Named Ranges",null,null,null,"InitialSetupComplete","R",2,"R2"]
["Named Ranges",null,null,null,"GreatestNeedTenantTargetingTotalScore","R",24,"R24"]
["Named Ranges",null,null,null,"LargeFamilyHousingTotalScore","R",25,"R25"]
["Named Ranges",null,null,null,"PermanentSupportiveHousingTotalScore","R",31,"R31"]
["Named Ranges",null,null,null,"PeopleWithDisabilitiesTotalScore","R",42,"R42"]
["Named Ranges",null,null,null,"ServesLowestIncomeTotalScore","R",47,"R47"]
["Named Ranges",null,null,null,"ServesLowestIncomeTenantsTotalScore","R",48,"R48"]
["Named Ranges",null,null,null,"RentalAssitanceTotalScore","R",52,"R52"]
["Named Ranges",null,null,null,"LongTermAffordabilityTotalScore","R",69,"R69"]
["Named Ranges",null,null,null,"AreasOfOpportunityTotalScore","R",72,"R72"]
["Named Ranges",null,null,null,"EconomicIntegrationTotalScore","R",73,"R73"]
["Named Ranges",null,null,null,"AccessToSchoolsTotalScore","R",78,"R78"]
["Named Ranges",null,null,null,"WorkforceHousingCommunitiesTotalScore","R",83,"R83"]
["Named Ranges",null,null,null,"LocationEfficiencyTotalScore","R",87,"R87"]
["Named Ranges",null,null,null,"SupportingCommunityTotalScore","R",114,"R114"]
["Named Ranges",null,null,null,"PreservationTotalScore","R",125,"R125"]
["Named Ranges",null,null,null,"EfficientUseOfScareResourcesTotalScore",{"$f":"LEFT(H381,1)","v":"R"},145,"R145"]
["Named Ranges",null,null,null,"FinancialReadinessTotalScore","R",146,"R146"]
["Named Ranges",null,null,null,"OtherContributionsTotalScore","R",158,"R158"]
["Named Ranges",null,null,null,"IntermediaryCostsTotalScore","R",168,"R168"]
["Named Ranges",null,null,null,"BuildingCharacteristicsTotalScore","R",179,"R179"]
["Named Ranges",null,null,null,"UniversalDesignTotalScore","R",180,"R180"]
["Named Ranges",null,null,null,"TotalPoints","R",189,"R189"]
["TOC Data",null,null,null,"DEFTableOfContents",null,null,"A40:D71"]
["TOC Data",null,null,null,"TableOfContents",null,null,"A1:D36"]

{"sheet":"TOC Data","index":5,"n_rows":105,"n_cols":4,"rows_kept":105,"cut":false,"hidden":true,"merged":[]}
["Strategic Priority Thresholds",null,"chkClrSPTAccessToFixedTransit",-9]
["Selection Criteria",null,"chkClrLargeFamily2Bedroom",-6]
["Greatest Need Tenant Targeting",null,"chkClrLargeFamily2Bedroom",-5]
[null,"Large Family","chkClrLargeFamily2Bedroom",-4]
[null,"Permanent Supportive Housing - Homeless","chkClrSupportiveHousing20Units",-7]
[null,"People with Disabilities","chkClrDisabilities15Percent",-5]
["Serves Lowest Income for Long Durations",null,"chkClrServesLowestIncOpt1",-11]
[null,"Serves Lowest Income Tenants","chkClrServesLowestIncOpt1",-10]
[null,"Rental Assistance","chkClrRA100PercentUnits",-14]
[null,"Long Term Affordability","chkClrLongTermAffordability40",-4]
["Areas of Opportunity",null,"chkClrEconIntegrationMixed",-5]
[null,"Economic Integration","chkClrEconIntegrationMixed",-4]
[null,"Access to Higher Performing Schools","chkClrAccessToSchools",-6]
[null,"Workforce Housing Communities","chkClrWorkforceTopJobCenter",-4]
[null,"Location Efficiency - Metro","chkClrMetroTransitLRTBRT",-6]
[null,"Location Efficiency - Greater MN Urbanized","chkClrGrtMnFixedOneQtrMile",-6]
[null,"Location Efficiency - Greater MN Rural","chkClrGtrMNNoFixedRideOneHour",-4]
["Supporting Community and Economic Development",null,"chkClrPlannedCommunityDev",-4]
[null,"Community Development Initiative","chkClrPlannedCommunityDev",-3]
[null,"Eventual Tenant Ownership","chkClrEventualTenantOwnership",-2]
[null,"Rural/Tribal","chkClrRuralTribalDesignatedArea",-5]
[null,"QCT/Community Revitalization","chkClrQCTorTribalEquivalent",-2]
[null,"Minority-owned/Women-owned Business Enterprise","chkClrMBEWBE",-2]
["Preservation",null,"chkClrLossDuetoMarketConversion",-8]
[null,"Preservation Thresholds","chkClrLossDuetoMarketConversion",-4]
[null,"Preservation Scoring Criteria","chkClrExistingFedAssistUnits100",-9]
["Efficient Use of Scarce Resources",null,"DevFinancialReadinessEligibleFunding",-10]
[null,"Financial Readiness to Proceed","DevFinancialReadinessEligibleFunding",-9]
[null,"Other Contributions","DevOtherContributionsFunding",-6]
[null,"Intermediary Costs","DevIntermediaryCosts",-6]
[null,"Cost Containment","chkClrCostContainment",-2]
["Building Characteristics",null,"chkClrElevator",-7]
[null,"Universal Design","chkClrElevator",-6]
[null,"Smoke Free Buildings","chkClrSmokeFreeBuildings",-2]
["Unacceptable Practices",null,"DevUnacceptablePractices",-2]
[]
[]
[]
["Strategic Priority Thresholds",null,"chkClrSPTAccessToFixedTransit",-9]
["Selection Criteria",null,"chkClrLargeFamily2Bedroom",-6]
["Greatest Need Tenant Targeting",null,"chkClrLargeFamily2Bedroom",-5]
[null,"Large Family","chkClrLargeFamily2Bedroom",-4]
[null,"Permanent Supportive Housing - Homeless","chkClrSupportiveHousing20Units",-7]
[null,"People with Disabilities","chkClrDisabilities15Percent",-5]
["Serves Lowest Income for Long Durations",null,"chkClrServesLowestIncOpt1",-11]
[null,"Serves Lowest Income Tenants","chkClrServesLowestIncOpt1",-10]
[null,"Rental Assistance","chkClrRA100PercentUnits",-14]
["Areas of Opportunity",null,"chkClrEconIntegrationMixed",-5]
[null,"Economic Integration","chkClrEconIntegrationMixed",-4]
[null,"Access to Higher Performing Schools","chkClrAccessToSchools",-6]
[null,"Workforce Housing Communities","chkClrWorkforceTopJobCenter",-4]
[null,"Location Efficiency - Metro","chkClrMetroTransitLRTBRT",-6]
[null,"Location Efficiency - Greater MN Urbanized","chkClrGrtMnFixedOneQtrMile",-6]
[null,"Location Efficiency - Greater MN Rural","chkClrGtrMNNoFixedRideOneHour",-4]
["Supporting Community and Economic Development",null,"chkClrPlannedCommunityDev",-4]
[null,"Community Development Initiative","chkClrPlannedCommunityDev",-3]
[null,"Rural/Tribal","chkClrRuralTribalDesignatedArea",-5]
[null,"QCT/Community Revitalization","chkClrQCTorTribalEquivalent",-2]
[null,"Minority-owned/Women-owned Business Enterprise","chkClrMBEWBE",-2]
["Preservation",null,"chkClrLossDuetoMarketConversion",-8]
[null,"Preservation Thresholds","chkClrLossDuetoMarketConversion",-4]
[null,"Preservation Scoring Criteria","chkClrExistingFedAssistUnits100",-9]
["Efficient Use of Scarce Resources",null,"DevFinancialReadinessEligibleFunding",-10]
[null,"Financial Readiness to Proceed","DevFinancialReadinessEligibleFunding",-9]
[null,"Other Contributions","DevOtherContributionsFunding",-6]
[null,"Intermediary Costs","DevIntermediaryCosts",-6]
[null,"Cost Containment","chkClrCostContainment",-2]
["Building Characteristics",null,"chkClrElevator",-7]
[null,"Universal Design","chkClrElevator",-6]
[null,"Smoke Free Buildings","chkClrSmokeFreeBuildings",-2]
[]
[]
["Selection Criteria",null,"chkClrLargeFamily2Bedroom",-6]
["Greatest Need Tenant Targeting",null,"chkClrLargeFamily2Bedroom",-5]
[null,"Large Family","chkClrLargeFamily2Bedroom",-4]
[null,"Permanent Supportive Housing - Homeless","chkClrSupportiveHousing20Units",-7]
[null,"People with Disabilities","chkClrDisabilities15Percent",-5]
["Serves Lowest Income for Long Durations",null,"chkClrServesLowestIncOpt1",-11]
[null,"Serves Lowest Income Tenants","chkClrServesLowestIncOpt1",-10]
[null,"Rental Assistance","chkClrRA100PercentUnits",-14]
[null,"Long Term Affordability","chkClrLongTermAffordability40",-4]
["Areas of Opportunity",null,"chkClrEconIntegrationMixed",-5]
[null,"Economic Integration","chkClrEconIntegrationMixed",-4]
[null,"Access to Higher Performing Schools","chkClrAccessToSchools",-6]
[null,"Workforce Housing Communities","chkClrWorkforceTopJobCenter",-4]
[null,"Location Efficiency - Metro","chkClrMetroTransitLRTBRT",-6]
[null,"Location Efficiency - Greater MN Urbanized","chkClrGrtMnFixedOneQtrMile",-6]
[null,"Location Efficiency - Greater MN Rural","chkClrGtrMNNoFixedRideOneHour",-4]
["Supporting Community and Economic Development",null,"chkClrPlannedCommunityDev",-4]
[null,"Community Development Initiative","chkClrPlannedCommunityDev",-3]
[null,"Eventual Tenant Ownership","chkClrEventualTenantOwnership",-2]
[null,"Rural/Tribal","chkClrRuralTribalDesignatedArea",-5]
[null,"QCT/Community Revitalization","chkClrQCTorTribalEquivalent",-2]
[null,"Minority-owned/Women-owned Business Enterprise","chkClrMBEWBE",-2]
["Preservation",null,"chkClrLossDuetoMarketConversion",-8]
[null,"Preservation Scoring Criteria","chkClrExistingFedAssistUnits100",-9]
["Efficient Use of Scarce Resources",null,"DevFinancialReadinessEligibleFunding",-10]
[null,"Financial Readiness to Proceed","DevFinancialReadinessEligibleFunding",-9]
[null,"Other Contributions","DevOtherContributionsFunding",-6]
[null,"Intermediary Costs","DevIntermediaryCosts",-6]
[null,"Cost Containment","chkClrCostContainment",-2]
["Building Characteristics",null,"chkClrElevator",-7]
[null,"Universal Design","chkClrElevator",-6]
[null,"Smoke Free Buildings","chkClrSmokeFreeBuildings",-2]
["Unacceptable Practices",null,"DevUnacceptablePractices",-2]

{"sheet":"Dropdown Lists","index":6,"n_rows":23,"n_cols":3,"rows_kept":23,"cut":false,"hidden":true,"merged":[]}
["High Priority Homeless List",null,"Unacceptable Practices list"]
["Families with Children",null,-4]
["Youth Singles",null,-5]
["Youth with Children",null,-6]
["Single Adults",null,-7]
[null,null,-8]
[null,null,-9]
[null,null,-10]
[null,null,-11]
[null,null,-12]
[null,null,-13]
[null,null,-14]
[null,null,-15]
[null,null,-16]
[null,null,-17]
[null,null,-18]
[null,null,-19]
[null,null,-20]
[null,null,-21]
[null,null,-22]
[null,null,-23]
[null,null,-24]
[null,null,-25]

{"sheet":"Cover Sheet Links","index":7,"n_rows":8,"n_cols":5,"rows_kept":8,"cut":false,"hidden":true,"merged":[]}
["Workbook Name:","2019 Self Scoring Workbook"]
["Workbook Version:","2019 11 20 Ver 1"]
[]
[]
["Funding Type Selected"]
["ckCompOnly",null,"4% only","COMPScoresheet",false]
["ckCompAndDef",null,"4% & Def","COMPAndDefScoresheet",false]
["ckDEFOnly",null,"Def Only","DEFOnlyScoresheet",false]